account_party,address,code,date,document_number,expense_code_name,expense_code_name_short,id,party_cell,party_cell_code,party_cell_geoobject,purpose,source_bank_account_number,source_bank_account_type,sum,target_legal_personality,target_legal_personality_code,target_type
УГП,"Львівська область, Львів, вулиця Сербська, 1",70,2017-12-29,525852,Банківські послуги,Інші витрати,250988,Львівська обласна організація,40014820,Львівська область,"Комісія за pозрахункове обслуговування Клієнтів по системі ""Клієнт-Банк"" за період 01.12.17-31.12.17 зг. договору. №N40.00.002425/РКО вiд 17.09.2015.",2600477437,current,50.00,"АТ ""АКБ ""Львів""",09801546,юридична особа
УГП,"Львівська область, Львів, вулиця Сербська, 1",70,2017-12-29,525849,Банківські послуги,Інші витрати,250987,Львівська обласна організація,40014820,Львівська область,Комісія за ведення функціонуючого рахунку за період 01.12.17-31.12.17 зг. договору. №N40.00.002425/РКО вiд 17.09.2015.,2600477437,current,100.00,"АТ ""АКБ ""Львів""",09801546,юридична особа
УГП,"Львівська область, Львів, вулиця Сербська, 1",70,2017-12-29,529158,Банківські послуги,Інші витрати,250616,Центральний офіс,39481037,Україна,"Комісія за pозрахункове обслуговування Клієнтів по системі ""Клієнт-Банк"" за період 01.12.17-31.12.17 зг. договору. №N40.00.002175/РКО вiд 10.12.2014.",2600671275,current,50.00,"АТ ""АКБ ""Львів""",09801546,юридична особа
УГП,"Львівська область, Львів, вулиця Сербська, 1",70,2017-12-29,529157,Банківські послуги,Інші витрати,250615,Центральний офіс,39481037,Україна,Комісія за ведення функціонуючого рахунку за період 01.12.17-31.12.17 зг. договору. №N40.00.002175/РКО вiд 10.12.2014.,2600671275,current,100.00,"АТ ""АКБ ""Львів""",09801546,юридична особа
УГП,"Львівська область, Львів, вулиця Сербська, 1",70,2017-12-29,472848,Банківські послуги,Інші витрати,250614,Центральний офіс,39481037,Україна,"Сплата комісії за зарахуванню коштів на рахунки фізичних осіб підприємства по зарплатному проекту по документу №472847, від 29.12.2017. Без ПДВ.",2600671275,current,63.30,"АТ ""АКБ ""Львів""",09801546,юридична особа
УГП,"Львівська область, Львів",84,2017-12-29,472852,"Заробітна плата, премії","Заробітна плата, лікарняні, вагітності, відрядження, компенсації",250067,Центральний офіс,39481037,Україна,Заробітна плата за 2 половину грудня 2017 року.,2600671275,current,1267.88,Герич Ганна Вікторівна,,фізична особа
УГП,"Тернопільська область, Чортківський район, Косів",84,2017-12-29,472851,"Заробітна плата, премії","Заробітна плата, лікарняні, вагітності, відрядження, компенсації",250066,Центральний офіс,39481037,Україна,Заробітна плата за 2 половину грудня 2017 року.,2600671275,current,2825.55,Велиган Ігор Богданович,,фізична особа
УГП,"Львівська область, Львів",84,2017-12-29,472850,"Заробітна плата, премії","Заробітна плата, лікарняні, вагітності, відрядження, компенсації",250065,Центральний офіс,39481037,Україна,Заробітна плата за 2 половину грудня 2017 року.,2600671275,current,2825.55,Лозинський Роман Михайлович,,фізична особа
УГП,"Львівська область, Львів",84,2017-12-29,472849,"Заробітна плата, премії","Заробітна плата, лікарняні, вагітності, відрядження, компенсації",250064,Центральний офіс,39481037,Україна,Заробітна плата за 2 половину грудня 2017 року.,2600671275,current,3631.18,Панкевич Богдан Романович,,фізична особа
УГП,"Тернопільська область, Тернопіль, проспект Степана Бандери, 38",70,2017-12-28,CSO0NODUJY,Банківські послуги,Інші витрати,251140,Тернопільська обласна організація,40011526,Тернопільська область,"Комiсiя за виконання платежiв в нацiональнiй валютi, згiдно з вiдкритою офертою банку N б/н вiд 21.09.2015 та тарифiв банку, без ПДВ.",26006055117228,current,3.00,"ПАТ КБ ""Приватбанк""",14360570,юридична особа
УГП,"Тернопільська область, Тернопіль, проспект Степана Бандери, 38",70,2017-12-28,CSO0NODUPY,Банківські послуги,Інші витрати,251139,Тернопільська обласна організація,40011526,Тернопільська область,"Комiсiя за виконання платежiв в нацiональнiй валютi, згiдно з вiдкритою офертою банку N б/н вiд 21.09.2015 та тарифiв банку, без ПДВ.",26006055117228,current,3.00,"ПАТ КБ ""Приватбанк""",14360570,юридична особа
УГП,"Тернопільська область, Тернопіль, проспект Степана Бандери, 38",70,2017-12-28,CSO0NODURY,Банківські послуги,Інші витрати,251138,Тернопільська обласна організація,40011526,Тернопільська область,"Комiсiя за виконання платежiв в нацiональнiй валютi, згiдно з вiдкритою офертою банку N б/н вiд 21.09.2015 та тарифiв банку, без ПДВ.",26006055117228,current,3.00,"ПАТ КБ ""Приватбанк""",14360570,юридична особа
УГП,"Тернопільська область, Тернопіль, проспект Степана Бандери, 38",70,2017-12-28,129,Банківські послуги,Інші витрати,251137,Тернопільська обласна організація,40011526,Тернопільська область,Комiсiя РКО вiд зарплати за другу половину грудня 2017р.,26006055117228,current,17.51,"ПАТ КБ ""Приватбанк""",14360570,юридична особа
УГП,"Тернопільська область, Тернопіль, бульвар Тараса Шевченка, 3",61,2017-12-28,128,Військовий збір,Податкові платежі,251136,Тернопільська обласна організація,40011526,Тернопільська область,Вiйськовий збiр вiд зарплати за другу половину грудня 2017р.,26006055117228,current,130.50,УДКСУ у м. Тернопіль,37977726,юридична особа
УГП,"Тернопільська область, Тернопіль, бульвар Тараса Шевченка, 3",63,2017-12-28,126,Податок на доходи,Податкові платежі,251135,Тернопільська обласна організація,40011526,Тернопільська область,ПДФО вiд зарплати за другу половину грудня 2017р.,26006055117228,current,1566.00,УДКСУ у м. Тернопіль,37977726,юридична особа
УГП,"Тернопільська область, Тернопіль, вулиця Білецька, 1",62,2017-12-28,127,Сплата ЄСВ,Податкові платежі,251134,Тернопільська обласна організація,40011526,Тернопільська область,ЄСВ вiд зарплати за другу половину грудня 2017р.,26006055117228,current,1914.00,Тернопільська ОДПІ ГУ ДФС в Тернопільській області,39502025,юридична особа
УГП,"Тернопільська область, Бучацький район, Трибухівці",84,2017-12-28,125,"Заробітна плата, премії","Заробітна плата, лікарняні, вагітності, відрядження, компенсації",251020,Тернопільська обласна організація,40011526,Тернопільська область,Зарплата за другу половину грудня 2017р.,26006055117228,current,2415.00,Кізюк Іван Йосипович,,фізична особа
УГП,"Тернопільська область, Теребовлянський район, Застіноче",84,2017-12-28,125,"Заробітна плата, премії","Заробітна плата, лікарняні, вагітності, відрядження, компенсації",251019,Тернопільська обласна організація,40011526,Тернопільська область,Зарплата за другу половину грудня 2017р.,26006055117228,current,2817.50,Вітвіцький Олег Іванович,,фізична особа
УГП,"Тернопільська область, Тернопіль",84,2017-12-28,125,"Заробітна плата, премії","Заробітна плата, лікарняні, вагітності, відрядження, компенсації",251018,Тернопільська обласна організація,40011526,Тернопільська область,Зарплата за другу половину грудня 2017р.,26006055117228,current,1771.00,Богун Андрій Ігорович,,фізична особа
УГП,"Івано-Франківська область, Івано-Франківськ, вулиця Січових стрільців, 15",70,2017-12-28,CSO0NPKVYY,Банківські послуги,Інші витрати,250929,Івано-Франківська обласна організація,40026836,Івано-Франківська область,"Комiсiя за виконання платежiв в нацiональнiй валютi, згiдно з вiдкритою офертою банку N б/н вiд 29.09.2015 та тарифiв банку, без ПДВ.",26005052517967,current,3.00,"ПАТ КБ ""Приватбанк""",14360570,юридична особа
УГП,"Івано-Франківська область, Івано-Франківськ, вулиця Михайла Грушевського, 21",51,2017-12-28,244,Оплата ефірного часу на ТБ,Телереклама,250928,Івано-Франківська обласна організація,40026836,Івано-Франківська область,"Оплата за трансляцiю програми згiдно рах.N 378 вiд 26.12.2017р., в т.ч.ПДВ - 1000,00грн.",26005052517967,current,6000.00,"Івано-Франківське обласне телебачення ""Галичина""",13641427,юридична особа
УГП,"Івано-Франківська область, Івано-Франківськ, вулиця Січових стрільців, 15",70,2017-12-28,CSO0NPCAMY,Банківські послуги,Інші витрати,250927,Івано-Франківська обласна організація,40026836,Івано-Франківська область,"Комiсiя за виконання платежiв в нацiональнiй валютi, згiдно з вiдкритою офертою банку N б/н вiд 29.09.2015 та тарифiв банку, без ПДВ.",26005052517967,current,3.00,"ПАТ КБ ""Приватбанк""",14360570,юридична особа
УГП,"Івано-Франківська область, Івано-Франківськ, вулиця Січових стрільців, 15",70,2017-12-28,CSO0NPCAYY,Банківські послуги,Інші витрати,250926,Івано-Франківська обласна організація,40026836,Івано-Франківська область,"Комiсiя за виконання платежiв в нацiональнiй валютi, згiдно з вiдкритою офертою банку N б/н вiд 29.09.2015 та тарифiв банку, без ПДВ.",26005052517967,current,3.00,"ПАТ КБ ""Приватбанк""",14360570,юридична особа
УГП,"Івано-Франківська область, Івано-Франківськ, вулиця Січових стрільців, 15",70,2017-12-28,CSO0NPCBDY,Банківські послуги,Інші витрати,250925,Івано-Франківська обласна організація,40026836,Івано-Франківська область,"Комiсiя за виконання платежiв в нацiональнiй валютi, згiдно з вiдкритою офертою банку N б/н вiд 29.09.2015 та тарифiв банку, без ПДВ.",26005052517967,current,3.00,"ПАТ КБ ""Приватбанк""",14360570,юридична особа
УГП,"Івано-Франківська область, Івано-Франківськ, вулиця Незалежності",62,2017-12-28,240,Сплата ЄСВ,Податкові платежі,250924,Івано-Франківська обласна організація,40026836,Івано-Франківська область,*;101;40026836;Сплата єдиного соцiального внеску з зарплати за грудень 2017р;;;,26005052517967,current,2277.00,ДПІ в м. Івано-Франківську ГУ ДФС в Івано-Франківській області,39508514,юридична особа
УГП,"Івано-Франківська область, Івано-Франківськ, вулиця Незалежності, 46",61,2017-12-28,242,Військовий збір,Податкові платежі,250923,Івано-Франківська обласна організація,40026836,Івано-Франківська область,*;101;40026836;Сплата вiйськового збору з зарплати за грудень 2017р;;;,26005052517967,current,155.25,УДКСУ у м. Івано-Франківську,37952250,юридична особа
УГП,"Івано-Франківська область, Івано-Франківськ, вулиця Незалежності, 46",63,2017-12-28,241,Податок на доходи,Податкові платежі,250922,Івано-Франківська обласна організація,40026836,Івано-Франківська область,*;101;40026836;Податок з доходiв фiзичних осiб з зарплати за грудень 2017р;;;,26005052517967,current,1863.00,УДКСУ у м. Івано-Франківську,37952250,юридична особа
УГП,"Івано-Франківська область, Нові Стрілища",84,2017-12-28,243,"Заробітна плата, премії","Заробітна плата, лікарняні, вагітності, відрядження, компенсації",250656,Івано-Франківська обласна організація,40026836,Івано-Франківська область,Заробітна плата за грудень 2017р.,26005052517967,current,2415.00,Федоришин Наталія Ярославівна,,фізична особа
УГП,"Івано-Франківська область, Галицький район, Вікторів",84,2017-12-28,243,"Заробітна плата, премії","Заробітна плата, лікарняні, вагітності, відрядження, компенсації",250655,Івано-Франківська обласна організація,40026836,Івано-Франківська область,Заробітна плата за грудень 2017р.,26005052517967,current,2817.50,Сербин Наталія Зіновіївна,,фізична особа
УГП,"Івано-Франківська область, Івано-Франківськ",84,2017-12-28,243,"Заробітна плата, премії","Заробітна плата, лікарняні, вагітності, відрядження, компенсації",250654,Івано-Франківська обласна організація,40026836,Івано-Франківська область,Заробітна плата за грудень 2017р.,26005052517967,current,1408.75,Федоляк Наталія Орестівна,,фізична особа
УГП,"Івано-Франківська область, Івано-Франківськ",84,2017-12-28,243,"Заробітна плата, премії","Заробітна плата, лікарняні, вагітності, відрядження, компенсації",250653,Івано-Франківська обласна організація,40026836,Івано-Франківська область,Заробітна плата за грудень 2017р.,26005052517967,current,1690.50,Романчук Любомир Петрович,,фізична особа
УГП,"Львівська область, Львів, вулиця Сербська, 1",70,2017-12-28,453595,Банківські послуги,Інші витрати,250613,Центральний офіс,39481037,Україна,"Сплата комісії за переказ коштів з поточного рахунку в операційний час за межі Банку за допомогою системи Клієнт-Банк по документу №418, від 28.12.2017. Без ПДВ",2600671275,current,5.00,"АТ ""АКБ ""Львів""",09801546,юридична особа
УГП,"Львівська область, Львів, вулиця Стрийська, 35",62,2017-12-28,418,Сплата ЄСВ,Податкові платежі,250612,Центральний офіс,39481037,Україна,"*;101;39481037; 22,0% нарах. єдиного внеску на зароб.плату за 2 пол. грудня 2017р. - 2910,60 грн.;;;",2600671275,current,2910.60,Залізнична ОДПІ ГУ ДФС у Львівській області,39554382,юридична особа
УГП,"Львівська область, Львів, вулиця Сербська, 1",70,2017-12-28,453559,Банківські послуги,Інші витрати,250611,Центральний офіс,39481037,Україна,"Сплата комісії за переказ коштів з поточного рахунку в операційний час за межі Банку за допомогою системи Клієнт-Банк по документу №417, від 28.12.2017. Без ПДВ",2600671275,current,5.00,"АТ ""АКБ ""Львів""",09801546,юридична особа
УГП,"Львівська область, Львів, вулиця Сербська, 1",70,2017-12-28,453545,Банківські послуги,Інші витрати,250610,Центральний офіс,39481037,Україна,"Сплата комісії за переказ коштів з поточного рахунку в операційний час за межі Банку за допомогою системи Клієнт-Банк по документу №416, від 28.12.2017. Без ПДВ",2600671275,current,5.00,"АТ ""АКБ ""Львів""",09801546,юридична особа
УГП,"Львівська область, Львів, вулиця Конотопська, 6/8",61,2017-12-28,416,Військовий збір,Податкові платежі,250609,Центральний офіс,39481037,Україна,"*;101;39481037; утриманий військовий збір із заробітної плати за 2 пол. грудня 2017р.,1,5% - 198,44 грн.;;;",2600671275,current,198.44,УДКСУ у Франківському районі м. Львова,37965138,юридична особа
УГП,"Львівська область, Львів, вулиця Конотопська, 6/8",63,2017-12-28,417,Податок на доходи,Податкові платежі,250608,Центральний офіс,39481037,Україна,"*;101;39481037; податок на доходи фізичних осіб із зароб.плати за 2 пол. грудня 2017р.,18% - 2381,40 грн.;;;",2600671275,current,2381.40,УДКСУ у Франківському районі м. Львова,37965138,юридична особа
УГП,"Львівська область, Львів, вулиця Сербська, 1",70,2017-12-28,448766,Банківські послуги,Інші витрати,250607,Центральний офіс,39481037,Україна,"Сплата комісії за переказ коштів з поточного рахунку в операційний час за межі Банку за допомогою системи Клієнт-Банк по документу №415, від 28.12.2017. Без ПДВ",2600671275,current,5.00,"АТ ""АКБ ""Львів""",09801546,юридична особа
УГП,"Львівська область, Львів, вулиця Сербська, 1",70,2017-12-28,448669,Банківські послуги,Інші витрати,250606,Центральний офіс,39481037,Україна,"Сплата комісії за переказ коштів з поточного рахунку в операційний час за межі Банку за допомогою системи Клієнт-Банк по документу №414, від 28.12.2017. Без ПДВ",2600671275,current,5.00,"АТ ""АКБ ""Львів""",09801546,юридична особа
УГП,"Львівська область, Львів, вулиця Стрийська, 35",62,2017-12-28,414,Сплата ЄСВ,Податкові платежі,250605,Центральний офіс,39481037,Україна,"*;101;39481037; нарах. єдиного внеску на винагороду за надані послуги у грудні 2017р. за цив.-прав.договором №Ц/2017-1 від 11.10.2017р. 22,0% - 1100,00 грн.;;",2600671275,current,1100.00,Залізнична ОДПІ ГУ ДФС у Львівській області,39554382,юридична особа
УГП,"Львівська область, Львів, вулиця Сербська, 1",70,2017-12-28,448630,Банківські послуги,Інші витрати,250604,Центральний офіс,39481037,Україна,"Сплата комісії за переказ коштів з поточного рахунку в операційний час за межі Банку за допомогою системи Клієнт-Банк по документу №412, від 28.12.2017. Без ПДВ",2600671275,current,5.00,"АТ ""АКБ ""Львів""",09801546,юридична особа
УГП,"Львівська область, Львів, вулиця Сербська, 1",70,2017-12-28,448629,Банківські послуги,Інші витрати,250603,Центральний офіс,39481037,Україна,"Сплата комісії за переказ коштів з поточного рахунку в операційний час за межі Банку за допомогою системи Клієнт-Банк по документу №413, від 28.12.2017. Без ПДВ",2600671275,current,5.00,"АТ ""АКБ ""Львів""",09801546,юридична особа
УГП,"Львівська область, Львів, вулиця Конотопська, 6/8",61,2017-12-28,412,Військовий збір,Податкові платежі,250602,Центральний офіс,39481037,Україна,"*;101;39481037; утриманий військ.збір із винагороди за грудень 2017р. за цив.-прав.дог. №Ц/2017-1 від 11.10.2017,1,5% - 75,00 грн.;;;",2600671275,current,75.00,УДКСУ у Франківському районі м. Львова,37965138,юридична особа
УГП,"Львівська область, Львів, вулиця Конотопська, 6/8",63,2017-12-28,413,Податок на доходи,Податкові платежі,250601,Центральний офіс,39481037,Україна,"*;101;39481037; под.на доходи фіз.осіб із винагороди за послуги за грудень 2017р. за цив.-прав.дог.№Ц/2017-1 від 11.10.2017,18% -900,00грн.;;;",2600671275,current,900.00,УДКСУ у Франківському районі м. Львова,37965138,юридична особа
УГП,"Львівська область, Львів, вулиця Сербська, 1",70,2017-12-28,448535,Банківські послуги,Інші витрати,250600,Центральний офіс,39481037,Україна,"Сплата комісії за переказ коштів з поточного рахунку в операційний час за межі Банку за допомогою системи Клієнт-Банк по документу №411, від 28.12.2017. Без ПДВ",2600671275,current,5.00,"АТ ""АКБ ""Львів""",09801546,юридична особа
УГП,"Львівська область, Львів, вулиця Сербська, 1",70,2017-12-28,448451,Банківські послуги,Інші витрати,250598,Центральний офіс,39481037,Україна,"Сплата комісії за переказ коштів з поточного рахунку в операційний час за межі Банку за допомогою системи Клієнт-Банк по документу №410, від 28.12.2017. Без ПДВ",2600671275,current,5.00,"АТ ""АКБ ""Львів""",09801546,юридична особа
УГП,"Київська обл., Бориспіль",82,2017-12-28,415,"Гонорари, в тому числі за надані консультаційні послуги","Гонорари, в тому числі за надані консультаційні послуги",250063,Центральний офіс,39481037,Україна,"Оплата на карту 5168745012660707 Дрога Каріна Миколаївна, ІПН 3414012420, винагороди за цив.-прав.договором №Ц/2017-1 від 11.10.17, за грудень 2017р., без ПДВ",2600671275,current,4025.00,Дрога Каріна Миколаївна,,фізична особа
УГП,"Львівська область, Львів, вулиця Сербська, 1",70,2017-12-27,430528,Банківські послуги,Інші витрати,250596,Центральний офіс,39481037,Україна,"Сплата комісії за переказ коштів з поточного рахунку в операційний час за межі Банку за допомогою системи Клієнт-Банк по документу №409, від 27.12.2017. Без ПДВ",2600671275,current,5.00,"АТ ""АКБ ""Львів""",09801546,юридична особа
УГП,"Львівська область, Львів, вулиця Кондукторська, 16",79,2017-12-27,409,"Оренда будинків і приміщень та експлуатаційні витрати (прибирання, страхування орендованих будинків, охорона, сигналізація, ремонт, вивіз сміття, тощо)",Оренда нерухомості,250595,Центральний офіс,39481037,Україна,"Оплата за послуги центр.охорони обʼєкта за грудень 2017р., згідно рахунку №СФ-0000942 від 27.12.2017р., зг.договору № ЦС 040117 від 17.01.2017р., без ПДВ",2600671275,current,400.00,"ПП ""Приватна безпека""",33562906,юридична особа
УГП,"Львівська область, Львів, вулиця Сербська, 1",70,2017-12-27,419246,Банківські послуги,Інші витрати,250594,Центральний офіс,39481037,Україна,"Сплата комісії за переказ коштів з поточного рахунку в операційний час за межі Банку за допомогою системи Клієнт-Банк по документу №408, від 27.12.2017. Без ПДВ",2600671275,current,5.00,"АТ ""АКБ ""Львів""",09801546,юридична особа
УГП,"Київ, провулок Руслана Лужевського, 14",79,2017-12-27,408,"Оренда будинків і приміщень та експлуатаційні витрати (прибирання, страхування орендованих будинків, охорона, сигналізація, ремонт, вивіз сміття, тощо)",Оренда нерухомості,250593,Центральний офіс,39481037,Україна,"Оплата відшкодування комунал.послуг та опал. за грудень 2017р. згідно Договору суборенди №201 від 24.07.2017р., згідно рахунку №233 від 27.12.17р., без ПДВ.",2600671275,current,2637.99,"ТОВ ""КБД Груп""",40833518,юридична особа
УГП,"Львівська область, Львів, вулиця Сербська, 1",70,2017-12-27,419074,Банківські послуги,Інші витрати,250592,Центральний офіс,39481037,Україна,"Сплата комісії за переказ коштів з поточного рахунку в операційний час в межах системи Банку за допомогою системи Клієнт-Банк по документу №407, від 27.12.2017.",2600671275,current,3.00,"АТ ""АКБ ""Львів""",09801546,юридична особа
УГП,"Львівська область, Дрогобич",58,2017-12-27,407,"Виготовлення друкованих матеріалів (плакатів, листівок, буклетів та інших агітаційних матеріалів)",Друкована агітація,250062,Центральний офіс,39481037,Україна,"Попередня оплата за календарики кишенькові згідно рахунку-фактури №П-00000533 від 26.12.2017 року, без ПДВ.",2600671275,current,9000.00,Походжай Микола Михайлович,,фізична особа
УГП,"Тернопільська область, Тернопіль, проспект Степана Бандери, 38",70,2017-12-22,CMO0N475LY,Банківські послуги,Інші витрати,251133,Тернопільська обласна організація,40011526,Тернопільська область,"Комiсiя за виконання платежiв в нацiональнiй валютi, згiдно з вiдкритою офертою банку N б/н вiд 21.09.2015 та тарифiв банку, без ПДВ.",26006055117228,current,3.00,"ПАТ КБ ""Приватбанк""",14360570,юридична особа
УГП,"Тернопільська область, Тернопіль, проспект Степана Бандери, 38",70,2017-12-22,CMO0N475DY,Банківські послуги,Інші витрати,251132,Тернопільська обласна організація,40011526,Тернопільська область,"Комiсiя за виконання платежiв в нацiональнiй валютi, згiдно з вiдкритою офертою банку N б/н вiд 21.09.2015 та тарифiв банку, без ПДВ.",26006055117228,current,3.00,"ПАТ КБ ""Приватбанк""",14360570,юридична особа
УГП,"Тернопільська область, Тернопіль, вулиця Руська, 44",51,2017-12-22,124,Оплата ефірного часу на ТБ,Телереклама,251130,Тернопільська обласна організація,40011526,Тернопільська область,Оплата за iнформацiйнi послуги згiдно рах. N 105 вiд 08.12.2017р.,26006055117228,current,5500.00,"ПП ""ТРК ""Смайл""Телеканал ""ІНТБ""",34473456,юридична особа
УГП,"Тернопільська область, Тернопіль, проспект Степана Бандери, 38",70,2017-12-22,CMO0N44FJY,Банківські послуги,Інші витрати,251129,Тернопільська обласна організація,40011526,Тернопільська область,"Комiсiя за виконання платежiв в нацiональнiй валютi, згiдно з вiдкритою офертою банку N б/н вiд 21.09.2015 та тарифiв банку, без ПДВ.",26006055117228,current,3.00,"ПАТ КБ ""Приватбанк""",14360570,юридична особа
УГП,"Тернопільська область, Тернопіль, проспект Степана Бандери, 38",70,2017-12-22,121,Банківські послуги,Інші витрати,251128,Тернопільська обласна організація,40011526,Тернопільська область,Комiсiя РКО вiд зарплати за першу половину грудня 2017р.,26006055117228,current,17.71,"ПАТ КБ ""Приватбанк""",14360570,юридична особа
УГП,"Тернопільська область, Тернопіль, бульвар Тараса Шевченка, 3",61,2017-12-22,120,Військовий збір,Податкові платежі,251127,Тернопільська обласна організація,40011526,Тернопільська область,Вiйськовий збiр вiд зарплати за першу половину грудня 2017р.,26006055117228,current,132.00,УДКСУ у м. Тернопіль,37977726,юридична особа
УГП,"Тернопільська область, Тернопіль, проспект Степана Бандери, 38",70,2017-12-22,CMO0N44EXY,Банківські послуги,Інші витрати,251126,Тернопільська обласна організація,40011526,Тернопільська область,"Комiсiя за виконання платежiв в нацiональнiй валютi, згiдно з вiдкритою офертою банку N б/н вiд 21.09.2015 та тарифiв банку, без ПДВ.",26006055117228,current,3.00,"ПАТ КБ ""Приватбанк""",14360570,юридична особа
УГП,"Тернопільська область, Тернопіль, вулиця Білецька, 1",62,2017-12-22,119,Сплата ЄСВ,Податкові платежі,251125,Тернопільська обласна організація,40011526,Тернопільська область,ЄСВ вiд зарплати за першу половину грудня 2017р.,26006055117228,current,1936.00,Тернопільська ОДПІ ГУ ДФС в Тернопільській області,39502025,юридична особа
УГП,"Тернопільська область, Тернопіль, проспект Степана Бандери, 38",70,2017-12-22,CMO0N44G0Y,Банківські послуги,Інші витрати,251124,Тернопільська обласна організація,40011526,Тернопільська область,"Комiсiя за виконання платежiв в нацiональнiй валютi, згiдно з вiдкритою офертою банку N б/н вiд 21.09.2015 та тарифiв банку, без ПДВ.",26006055117228,current,3.00,"ПАТ КБ ""Приватбанк""",14360570,юридична особа
УГП,"Тернопільська область, Тернопіль, бульвар Тараса Шевченка, 3",63,2017-12-22,118,Податок на доходи,Податкові платежі,251123,Тернопільська обласна організація,40011526,Тернопільська область,ПДФО вiд зарплати за першу половину груденя 2017р.,26006055117228,current,1584.00,УДКСУ у м. Тернопіль,37977726,юридична особа
УГП,"Тернопільська область, Тернопіль",79,2017-12-22,122,"Оренда будинків і приміщень та експлуатаційні витрати (прибирання, страхування орендованих будинків, охорона, сигналізація, ремонт, вивіз сміття, тощо)",Оренда нерухомості,251017,Тернопільська обласна організація,40011526,Тернопільська область,Оплата за оренду згiдно договору N28 вiд 01.11.2015р. за грудень 2017р.,26006055117228,current,2500.68,Клепач Валентина Анатоліївна,,фізична особа
УГП,"Тернопільська область, Бучацький район, Трибухівці",84,2017-12-22,117,"Заробітна плата, премії","Заробітна плата, лікарняні, вагітності, відрядження, компенсації",251016,Тернопільська обласна організація,40011526,Тернопільська область,Зарплата за першу половину груденя 2017р.,26006055117228,current,2415.00,Кізюк Іван Йосипович,,фізична особа
УГП,"Тернопільська область, Теребовлянський район, Застіноче",84,2017-12-22,117,"Заробітна плата, премії","Заробітна плата, лікарняні, вагітності, відрядження, компенсації",251015,Тернопільська обласна організація,40011526,Тернопільська область,Зарплата за першу половину груденя 2017р.,26006055117228,current,2817.50,Вітвіцький Олег Іванович,,фізична особа
УГП,"Тернопільська область, Тернопіль",84,2017-12-22,117,"Заробітна плата, премії","Заробітна плата, лікарняні, вагітності, відрядження, компенсації",251014,Тернопільська обласна організація,40011526,Тернопільська область,Зарплата за першу половину груденя 2017р.,26006055117228,current,1851.50,Богун Андрій Ігорович,,фізична особа
УГП,"Івано-Франківська область, Івано-Франківськ, вулиця Незалежності, 6",75,2017-12-22,239,Поштові послуги та поширення друкованих матеріалів,Поштові послуги та поширення друкованих матеріалів,250921,Івано-Франківська обласна організація,40026836,Івано-Франківська область,Оплата за доставку реклами згiдно рахунку N 127 вiд 21.12.2017р. у т.ч. ПДВ - 20 % 660.00 грн.,26005052517967,current,3960.00,Івано-Франківська дирекція АТ Укрпошта,22178632,юридична особа
УГП,"Івано-Франківська область, Івано-Франківськ, вулиця Січових стрільців, 15",70,2017-12-22,CMO0N3A47Y,Банківські послуги,Інші витрати,250920,Івано-Франківська обласна організація,40026836,Івано-Франківська область,"Комiсiя за виконання платежiв в нацiональнiй валютi, згiдно з вiдкритою офертою банку N б/н вiд 29.09.2015 та тарифiв банку, без ПДВ.",26005052517967,current,3.00,"ПАТ КБ ""Приватбанк""",14360570,юридична особа
УГП,"Львівська область, Львів, вулиця Сербська, 1",70,2017-12-22,361297,Банківські послуги,Інші витрати,250591,Центральний офіс,39481037,Україна,"Сплата комісії за переказ коштів з поточного рахунку в операційний час в межах системи Банку за допомогою системи Клієнт-Банк по документу №406, від 22.12.2017.",2600671275,current,3.00,"АТ ""АКБ ""Львів""",09801546,юридична особа
УГП,"Львівська область, Дрогобич",58,2017-12-22,406,"Виготовлення друкованих матеріалів (плакатів, листівок, буклетів та інших агітаційних матеріалів)",Друкована агітація,250061,Центральний офіс,39481037,Україна,"Попередня оплата за календарі згідно рахунку-фактури №П-00000521 від 20.12.2017 року, без ПДВ.",2600671275,current,14000.00,Походжай Микола Михайлович,,фізична особа
УГП,"Івано-Франківська область, Івано-Франківськ, вулиця Незалежності, 46",63,2017-12-21,236,Податок на доходи,Податкові платежі,250919,Івано-Франківська обласна організація,40026836,Івано-Франківська область,*;101;40026836;Податок з доходiв фiзичних осiб з авансу за грудень 2017р;;;,26005052517967,current,1863.00,УДКСУ у м. Івано-Франківську,37952250,юридична особа
УГП,"Івано-Франківська область, Івано-Франківськ, вулиця Січових стрільців, 15",70,2017-12-21,CLO0MY09RY,Банківські послуги,Інші витрати,250918,Івано-Франківська обласна організація,40026836,Івано-Франківська область,"Комiсiя за виконання платежiв в нацiональнiй валютi, згiдно з вiдкритою офертою банку N б/н вiд 29.09.2015 та тарифiв банку, без ПДВ.",26005052517967,current,3.00,"ПАТ КБ ""Приватбанк""",14360570,юридична особа
УГП,"Івано-Франківська область, Івано-Франківськ, вулиця Незалежності, 46",61,2017-12-21,237,Військовий збір,Податкові платежі,250917,Івано-Франківська обласна організація,40026836,Івано-Франківська область,*;101;40026836;Сплата вiйськового збору з авансу за грудень 2017р;;;,26005052517967,current,155.25,УДКСУ у м. Івано-Франківську,37952250,юридична особа
УГП,"Івано-Франківська область, Івано-Франківськ, вулиця Січових стрільців, 15",70,2017-12-21,CLO0MY09VY,Банківські послуги,Інші витрати,250916,Івано-Франківська обласна організація,40026836,Івано-Франківська область,"Комiсiя за виконання платежiв в нацiональнiй валютi, згiдно з вiдкритою офертою банку N б/н вiд 29.09.2015 та тарифiв банку, без ПДВ.",26005052517967,current,3.00,"ПАТ КБ ""Приватбанк""",14360570,юридична особа
УГП,"Івано-Франківська область, Івано-Франківськ, вулиця Незалежності",62,2017-12-21,235,Сплата ЄСВ,Податкові платежі,250915,Івано-Франківська обласна організація,40026836,Івано-Франківська область,*;101;40026836;Сплата єдиного соцiального внеску з авансу за грудень 2017р;;;,26005052517967,current,2277.00,ДПІ в м. Івано-Франківську ГУ ДФС в Івано-Франківській області,39508514,юридична особа
УГП,"Івано-Франківська область, Івано-Франківськ, вулиця Січових стрільців, 15",70,2017-12-21,CLO0MY09YY,Банківські послуги,Інші витрати,250914,Івано-Франківська обласна організація,40026836,Івано-Франківська область,"Комiсiя за виконання платежiв в нацiональнiй валютi, згiдно з вiдкритою офертою банку N б/н вiд 29.09.2015 та тарифiв банку, без ПДВ.",26005052517967,current,3.00,"ПАТ КБ ""Приватбанк""",14360570,юридична особа
УГП,"Івано-Франківська область, Нові Стрілища",84,2017-12-21,238,"Заробітна плата, премії","Заробітна плата, лікарняні, вагітності, відрядження, компенсації",250652,Івано-Франківська обласна організація,40026836,Івано-Франківська область,Аванс за грудень 2017р.,26005052517967,current,2415.00,Федоришин Наталія Ярославівна,,фізична особа
УГП,"Івано-Франківська область, Галицький район, Вікторів",84,2017-12-21,238,"Заробітна плата, премії","Заробітна плата, лікарняні, вагітності, відрядження, компенсації",250651,Івано-Франківська обласна організація,40026836,Івано-Франківська область,Аванс за грудень 2017р.,26005052517967,current,2817.50,Сербин Наталія Зіновіївна,,фізична особа
УГП,"Івано-Франківська область, Івано-Франківськ",84,2017-12-21,238,"Заробітна плата, премії","Заробітна плата, лікарняні, вагітності, відрядження, компенсації",250650,Івано-Франківська обласна організація,40026836,Івано-Франківська область,Аванс за грудень 2017р.,26005052517967,current,1408.75,Федоляк Наталія Орестівна,,фізична особа
УГП,"Івано-Франківська область, Івано-Франківськ",84,2017-12-21,238,"Заробітна плата, премії","Заробітна плата, лікарняні, вагітності, відрядження, компенсації",250649,Івано-Франківська обласна організація,40026836,Івано-Франківська область,Аванс за грудень 2017р.,26005052517967,current,1690.50,Романчук Любомир Петрович,,фізична особа
УГП,"Львівська область, Львів, вулиця Сербська, 1",70,2017-12-20,294420,Банківські послуги,Інші витрати,250590,Центральний офіс,39481037,Україна,"Сплата комісії за переказ коштів з поточного рахунку в операційний час в межах системи Банку за допомогою системи Клієнт-Банк по документу №405, від 20.12.2017.",2600671275,current,3.00,"АТ ""АКБ ""Львів""",09801546,юридична особа
УГП,"Львівська область, Дрогобич",58,2017-12-20,405,"Виготовлення друкованих матеріалів (плакатів, листівок, буклетів та інших агітаційних матеріалів)",Друкована агітація,250060,Центральний офіс,39481037,Україна,"Попередня оплата за календарі згідно рахунку-фактури №П-00000521 від 20.12.2017 року, без ПДВ.",2600671275,current,20000.00,Походжай Микола Михайлович,,фізична особа
УГП,"Львівська область, Львів, вулиця Сербська, 1",70,2017-12-19,289712,Банківські послуги,Інші витрати,250589,Центральний офіс,39481037,Україна,"Сплата комісії за переказ коштів з поточного рахунку в операційний час за межі Банку за допомогою системи Клієнт-Банк по документу №404, від 19.12.2017. Без ПДВ",2600671275,current,5.00,"АТ ""АКБ ""Львів""",09801546,юридична особа
УГП,"Львівська область, Львів",58,2017-12-19,404,"Виготовлення друкованих матеріалів (плакатів, листівок, буклетів та інших агітаційних матеріалів)",Друкована агітація,250059,Центральний офіс,39481037,Україна,"Попередня оплата за листівки згідно рахунку №1840/п від 19.12.2017 року, без ПДВ.",2600671275,current,6125.00,Лопушинський Остап Ростиславович,,фізична особа
УГП,"Тернопільська область, Тернопіль, проспект Степана Бандери, 38",70,2017-12-18,CIO0MK6C8Y,Банківські послуги,Інші витрати,251122,Тернопільська обласна організація,40011526,Тернопільська область,"Комiсiя за виконання платежiв в нацiональнiй валютi, згiдно з вiдкритою офертою банку N б/н вiд 21.09.2015 та тарифiв банку, без ПДВ.",26006055117228,current,3.00,"ПАТ КБ ""Приватбанк""",14360570,юридична особа
УГП,"Тернопільська область, Тернопіль, вулиця Олени Кульчицької, 2",51,2017-12-18,115,Оплата ефірного часу на ТБ,Телереклама,251121,Тернопільська обласна організація,40011526,Тернопільська область,Оплата за рекламнi послуги згiдно рах. N СФ-0000019 вiд 08.11.2017р. Без ПДВ,26006055117228,current,2000.00,"ПП ""Телерадіоорганізація ""Тернопіль-Медіа""",41302104,юридична особа
УГП,"Тернопільська область, Тернопіль",43,2017-12-18,116,Інші витрати,Інші витрати,251013,Тернопільська обласна організація,40011526,Тернопільська область,Оплата згiдно рах. N 281 вiд 13.12.2017р. Без ПДВ,26006055117228,current,1565.00,Красниця Теодозій Володимирович,,фізична особа
УГП,"Львівська область, Львів, вулиця Сербська, 1",70,2017-12-15,239721,Банківські послуги,Інші витрати,250588,Центральний офіс,39481037,Україна,"Сплата комісії за переказ коштів з поточного рахунку в операційний час за межі Банку за допомогою системи Клієнт-Банк по документу №403, від 15.12.2017. Без ПДВ",2600671275,current,5.00,"АТ ""АКБ ""Львів""",09801546,юридична особа
УГП,"Львівська область, Львів, вулиця Сербська, 1",70,2017-12-15,239661,Банківські послуги,Інші витрати,250586,Центральний офіс,39481037,Україна,"Сплата комісії за переказ коштів з поточного рахунку в операційний час за межі Банку за допомогою системи Клієнт-Банк по документу №402, від 15.12.2017. Без ПДВ",2600671275,current,5.00,"АТ ""АКБ ""Львів""",09801546,юридична особа
УГП,"Львівська область, Львів, вулиця Сербська, 1",70,2017-12-15,238726,Банківські послуги,Інші витрати,250584,Центральний офіс,39481037,Україна,"Сплата комісії за переказ коштів з поточного рахунку в операційний час за межі Банку за допомогою системи Клієнт-Банк по документу №401, від 15.12.2017. Без ПДВ",2600671275,current,5.00,"АТ ""АКБ ""Львів""",09801546,юридична особа
УГП,"Львівська область, Львів, вулиця Петра Дорошенка, 43",76,2017-12-15,401,Послуги зв’язку,Послуги зв’язку,250583,Центральний офіс,39481037,Україна,"Оплата за телеком.посл.за листопад 2017,аванс за груд.зг.дог.№ 4600000000017884 від 26.10.16,зг.рах. №4600000000017884.11.2017 від 30.11.17,в т.ч.ПДВ 25,00 грн.",2600671275,current,150.00,"ПАТ ""Укртелеком""",21560766,юридична особа
УГП,"Львівська область, Львів, вулиця Сербська, 1",70,2017-12-15,238657,Банківські послуги,Інші витрати,250582,Центральний офіс,39481037,Україна,"Сплата комісії за переказ коштів з поточного рахунку в операційний час за межі Банку за допомогою системи Клієнт-Банк по документу №400, від 15.12.2017. Без ПДВ",2600671275,current,5.00,"АТ ""АКБ ""Львів""",09801546,юридична особа
УГП,"Київ, бульвар Вацлава Гавела, 26",58,2017-12-15,400,"Виготовлення друкованих матеріалів (плакатів, листівок, буклетів та інших агітаційних матеріалів)",Друкована агітація,250581,Центральний офіс,39481037,Україна,"Оплата за буклет згідно рахунку № ГП-0000802 від 15.12.2017р., в т.ч. ПДВ 336,00 грн.",2600671275,current,2016.00,"ТОВ ""ГАМА ПРИНТ""",41208722,юридична особа
УГП,"Львівська область, Львів, вулиця Сербська, 1",70,2017-12-15,225101,Банківські послуги,Інші витрати,250580,Центральний офіс,39481037,Україна,"Сплата комісії за зарахуванню коштів на рахунки фізичних осіб підприємства по зарплатному проекту по документу №225100, від 15.12.2017. Без ПДВ.",2600671275,current,78.70,"АТ ""АКБ ""Львів""",09801546,юридична особа
УГП,"Львівська область, Львів, вулиця Сербська, 1",70,2017-12-15,224736,Банківські послуги,Інші витрати,250579,Центральний офіс,39481037,Україна,"Сплата комісії за переказ коштів з поточного рахунку в операційний час за межі Банку за допомогою системи Клієнт-Банк по документу №398, від 15.12.2017. Без ПДВ",2600671275,current,5.00,"АТ ""АКБ ""Львів""",09801546,юридична особа
УГП,"Львівська область, Львів, вулиця Сербська, 1",70,2017-12-15,224741,Банківські послуги,Інші витрати,250578,Центральний офіс,39481037,Україна,"Сплата комісії за переказ коштів з поточного рахунку в операційний час за межі Банку за допомогою системи Клієнт-Банк по документу №399, від 15.12.2017. Без ПДВ",2600671275,current,5.00,"АТ ""АКБ ""Львів""",09801546,юридична особа
УГП,"Львівська область, Львів, вулиця Конотопська, 6/8",63,2017-12-15,398,Податок на доходи,Податкові платежі,250577,Центральний офіс,39481037,Україна,"*;101;39481037; податок на доходи фізичних осіб із зароб.плати за 1 половину грудня 2017р.,18% - 2910,60 грн.;;;",2600671275,current,2910.60,УДКСУ у Франківському районі м. Львова,37965138,юридична особа
УГП,"Львівська область, Львів, вулиця Стрийська, 35",62,2017-12-15,399,Сплата ЄСВ,Податкові платежі,250576,Центральний офіс,39481037,Україна,"*;101;39481037; 22,0% нарах. єдиного внеску на зароб.плату за 1 половину грудня 2017р. - 3557,40 грн.;;;",2600671275,current,3557.40,Залізнична ОДПІ ГУ ДФС у Львівській області,39554382,юридична особа
УГП,"Львівська область, Львів, вулиця Сербська, 1",70,2017-12-15,224715,Банківські послуги,Інші витрати,250575,Центральний офіс,39481037,Україна,"Сплата комісії за переказ коштів з поточного рахунку в операційний час за межі Банку за допомогою системи Клієнт-Банк по документу №397, від 15.12.2017. Без ПДВ",2600671275,current,5.00,"АТ ""АКБ ""Львів""",09801546,юридична особа
УГП,"Львівська область, Львів, вулиця Конотопська, 6/8",61,2017-12-15,397,Військовий збір,Податкові платежі,250574,Центральний офіс,39481037,Україна,"*;101;39481037; утриманий військовий збір із заробітної плати за 1 половину грудня 2017р.,1,5% - 242,56 грн.;;;",2600671275,current,242.56,УДКСУ у Франківському районі м. Львова,37965138,юридична особа
УГП,"Львівська область, Львів",84,2017-12-15,225105,"Заробітна плата, премії","Заробітна плата, лікарняні, вагітності, відрядження, компенсації",250058,Центральний офіс,39481037,Україна,Заробітна плата (аванс) за 1 половину грудня 2017 року.,2600671275,current,1549.62,Герич Ганна Вікторівна,,фізична особа
УГП,"Тернопільська область, Чортківський район, Косів",84,2017-12-15,225104,"Заробітна плата, премії","Заробітна плата, лікарняні, вагітності, відрядження, компенсації",250057,Центральний офіс,39481037,Україна,Заробітна плата (аванс) за 1 половину грудня 2017 року.,2600671275,current,3453.45,Велиган Ігор Богданович,,фізична особа
УГП,"Львівська область, Львів",84,2017-12-15,225103,"Заробітна плата, премії","Заробітна плата, лікарняні, вагітності, відрядження, компенсації",250056,Центральний офіс,39481037,Україна,Заробітна плата (аванс) за 1 половину грудня 2017 року.,2600671275,current,3453.45,Лозинський Роман Михайлович,,фізична особа
УГП,"Львівська область, Львів",84,2017-12-15,225102,"Заробітна плата, премії","Заробітна плата, лікарняні, вагітності, відрядження, компенсації",250055,Центральний офіс,39481037,Україна,Заробітна плата (аванс) за 1 половину грудня 2017 року.,2600671275,current,4660.32,Панкевич Богдан Романович,,фізична особа
УГП,"Львівська область, Львів, вулиця Сербська, 1",70,2017-12-12,190793,Банківські послуги,Інші витрати,250573,Центральний офіс,39481037,Україна,"Сплата комісії за переказ коштів з поточного рахунку в післяопераційний час за межі Банку за допомогою системи Клієнт-Банк по документу №396, від 12.12.2017.",2600671275,current,45.20,"АТ ""АКБ ""Львів""",09801546,юридична особа
УГП,"Львівська область, Львів, вулиця Героїв УПА, 65",58,2017-12-12,396,"Виготовлення друкованих матеріалів (плакатів, листівок, буклетів та інших агітаційних матеріалів)",Друкована агітація,250572,Центральний офіс,39481037,Україна,"Oплата за друк газети ""Наша Галичина"" №7 згідно рах.-фак.№ВЗ-0001320 від 12.12.2017р., в т.ч. ПДВ 7533,33 грн.",2600671275,current,45200.00,"ТОВ ""Видавничий дім ""Високий замок""",13807781,юридична особа
УГП,"Івано-Франківська область, Івано-Франківськ, вулиця Січових стрільців, 30А",51,2017-12-08,234,Оплата ефірного часу на ТБ,Телереклама,250913,Івано-Франківська обласна організація,40026836,Івано-Франківська область,"Оплата за трансляцiю передачi""5хв з Галицькою партiєю""згiдно рахунку N 21 вiд 05.12.2017р. у т.ч. ПДВ - 20 % 337,96 грн.",26005052517967,current,2027.76,"Філія ПАТ ""НСТУ"" ""Івано-Франківська регіональна дирекція ""Карпати""",40020572,юридична особа
УГП,"Івано-Франківська область, Івано-Франківськ, вулиця Михайла Грушевського, 21",51,2017-12-08,233,Оплата ефірного часу на ТБ,Телереклама,250912,Івано-Франківська обласна організація,40026836,Івано-Франківська область,"оплата за трансляцiю програми згiдно рах.N 366 вiд 08.12.2017р., в т.ч.ПДВ - 1000,00грн.",26005052517967,current,6000.00,"Івано-Франківське обласне телебачення ""Галичина""",13641427,юридична особа
УГП,"Івано-Франківська область, Івано-Франківськ, вулиця Січових стрільців, 15",70,2017-12-08,C8O0LPNL3Y,Банківські послуги,Інші витрати,250911,Івано-Франківська обласна організація,40026836,Івано-Франківська область,"Комiсiя за виконання платежiв в нацiональнiй валютi, згiдно з вiдкритою офертою банку N б/н вiд 29.09.2015 та тарифiв банку, без ПДВ.",26005052517967,current,3.00,"ПАТ КБ ""Приватбанк""",14360570,юридична особа
УГП,"Івано-Франківська область, Івано-Франківськ, площа Міцкевича, 8",79,2017-12-08,232,"Оренда будинків і приміщень та експлуатаційні витрати (прибирання, страхування орендованих будинків, охорона, сигналізація, ремонт, вивіз сміття, тощо)",Оренда нерухомості,250910,Івано-Франківська обласна організація,40026836,Івано-Франківська область,Оплата за оренду примiщення за грудень 2017 року згiдно рахунку N СФ-1130010 вiд 30.11.2017р. Без ПДВ,26005052517967,current,4454.00,"ТОВ ""Крокус-Станіслав""",38162070,юридична особа
УГП,"Івано-Франківська область, Івано-Франківськ, вулиця Січових стрільців, 15",70,2017-12-08,C8O0LPKFPY,Банківські послуги,Інші витрати,250909,Івано-Франківська обласна організація,40026836,Івано-Франківська область,"Комiсiя за виконання платежiв в нацiональнiй валютi, згiдно з вiдкритою офертою банку N б/н вiд 29.09.2015 та тарифiв банку, без ПДВ.",26005052517967,current,3.00,"ПАТ КБ ""Приватбанк""",14360570,юридична особа
УГП,"Тернопільська область, Тернопіль, бульвар Тараса Шевченка, 3",63,2017-12-07,111,Податок на доходи,Податкові платежі,251120,Тернопільська обласна організація,40011526,Тернопільська область,ПДФО вiд зарплати за другу половину листопада 2017р.,26006055117228,current,1566.00,УДКСУ у м. Тернопіль,37977726,юридична особа
УГП,"Тернопільська область, Тернопіль, вулиця Білецька, 1",62,2017-12-07,112,Сплата ЄСВ,Податкові платежі,251119,Тернопільська обласна організація,40011526,Тернопільська область,ЄСВ вiд зарплати за другу половину листопада 2017р.,26006055117228,current,1914.00,Тернопільська ОДПІ ГУ ДФС в Тернопільській області,39502025,юридична особа
УГП,"Тернопільська область, Тернопіль, проспект Степана Бандери, 38",70,2017-12-07,C7O0LLLO8Y,Банківські послуги,Інші витрати,251118,Тернопільська обласна організація,40011526,Тернопільська область,"Комiсiя за виконання платежiв в нацiональнiй валютi, згiдно з вiдкритою офертою банку N б/н вiд 21.09.2015 та тарифiв банку, без ПДВ.",26006055117228,current,3.00,"ПАТ КБ ""Приватбанк""",14360570,юридична особа
УГП,"Тернопільська область, Тернопіль, бульвар Тараса Шевченка, 3",61,2017-12-07,113,Військовий збір,Податкові платежі,251117,Тернопільська обласна організація,40011526,Тернопільська область,Вiйськовий збiр вiд зарплати за другу половину листопада 2017р.,26006055117228,current,130.50,УДКСУ у м. Тернопіль,37977726,юридична особа
УГП,"Тернопільська область, Тернопіль, проспект Степана Бандери, 38",70,2017-12-07,114,Банківські послуги,Інші витрати,251116,Тернопільська обласна організація,40011526,Тернопільська область,Комiсiя РКО вiд зарплати за другу половину листопада 2017р.,26006055117228,current,17.51,"ПАТ КБ ""Приватбанк""",14360570,юридична особа
УГП,"Тернопільська область, Тернопіль, проспект Степана Бандери, 38",70,2017-12-07,C7O0LLLNWY,Банківські послуги,Інші витрати,251115,Тернопільська обласна організація,40011526,Тернопільська область,"Комiсiя за виконання платежiв в нацiональнiй валютi, згiдно з вiдкритою офертою банку N б/н вiд 21.09.2015 та тарифiв банку, без ПДВ.",26006055117228,current,3.00,"ПАТ КБ ""Приватбанк""",14360570,юридична особа
УГП,"Тернопільська область, Тернопіль, проспект Степана Бандери, 38",70,2017-12-07,C7O0LLLO4Y,Банківські послуги,Інші витрати,251114,Тернопільська обласна організація,40011526,Тернопільська область,"Комiсiя за виконання платежiв в нацiональнiй валютi, згiдно з вiдкритою офертою банку N б/н вiд 21.09.2015 та тарифiв банку, без ПДВ.",26006055117228,current,3.00,"ПАТ КБ ""Приватбанк""",14360570,юридична особа
УГП,"Тернопільська область, Бучацький район, Трибухівці",84,2017-12-07,110,"Заробітна плата, премії","Заробітна плата, лікарняні, вагітності, відрядження, компенсації",251012,Тернопільська обласна організація,40011526,Тернопільська область,Зарплата за другу половину листопада 2017р.,26006055117228,current,2415.00,Кізюк Іван Йосипович,,фізична особа
УГП,"Тернопільська область, Теребовлянський район, Застіноче",84,2017-12-07,110,"Заробітна плата, премії","Заробітна плата, лікарняні, вагітності, відрядження, компенсації",251011,Тернопільська обласна організація,40011526,Тернопільська область,Зарплата за другу половину листопада 2017р.,26006055117228,current,2817.50,Вітвіцький Олег Іванович,,фізична особа
УГП,"Тернопільська область, Тернопіль",84,2017-12-07,110,"Заробітна плата, премії","Заробітна плата, лікарняні, вагітності, відрядження, компенсації",251010,Тернопільська обласна організація,40011526,Тернопільська область,Зарплата за другу половину листопада 2017р.,26006055117228,current,1771.00,Богун Андрій Ігорович,,фізична особа
УГП,"Івано-Франківська область, Івано-Франківськ, вулиця Січових стрільців, 15",70,2017-12-07,16C2000034,Банківські послуги,Інші витрати,250908,Івано-Франківська обласна організація,40026836,Івано-Франківська область,Погашення комiсiї за кас. обслуг. по зарахуванню на картки згiдно 16C20000342 вiд 21.12.2016 р.,26005052517967,current,2.58,"ПАТ КБ ""Приватбанк""",14360570,юридична особа
УГП,"Івано-Франківська область, Івано-Франківськ, вулиця Незалежності, 46",63,2017-12-06,229,Податок на доходи,Податкові платежі,250907,Івано-Франківська обласна організація,40026836,Івано-Франківська область,*;101;40026836;Податок з доходiв фiзичних осiб з виплат за грудень 2017р;;;,26005052517967,current,231.01,УДКСУ у м. Івано-Франківську,37952250,юридична особа
УГП,"Івано-Франківська область, Івано-Франківськ, вулиця Січових стрільців, 15",70,2017-12-06,C6O0LIDRHY,Банківські послуги,Інші витрати,250906,Івано-Франківська обласна організація,40026836,Івано-Франківська область,"Комiсiя за виконання платежiв в нацiональнiй валютi, згiдно з вiдкритою офертою банку N б/н вiд 29.09.2015 та тарифiв банку, без ПДВ.",26005052517967,current,3.00,"ПАТ КБ ""Приватбанк""",14360570,юридична особа
УГП,"Івано-Франківська область, Івано-Франківськ, вулиця Незалежності, 46",61,2017-12-06,230,Військовий збір,Податкові платежі,250905,Івано-Франківська обласна організація,40026836,Івано-Франківська область,*;101;40026836;Сплата вiйськового збору з виплат за грудень 2017р;;;,26005052517967,current,19.25,УДКСУ у м. Івано-Франківську,37952250,юридична особа
УГП,"Івано-Франківська область, Івано-Франківськ, вулиця Січових стрільців, 15",70,2017-12-06,C6O0LIDRIY,Банківські послуги,Інші витрати,250904,Івано-Франківська обласна організація,40026836,Івано-Франківська область,"Комiсiя за виконання платежiв в нацiональнiй валютi, згiдно з вiдкритою офертою банку N б/н вiд 29.09.2015 та тарифiв банку, без ПДВ.",26005052517967,current,3.00,"ПАТ КБ ""Приватбанк""",14360570,юридична особа
УГП,"Івано-Франківська область, Івано-Франківськ, вулиця Незалежності",62,2017-12-06,228,Сплата ЄСВ,Податкові платежі,250903,Івано-Франківська обласна організація,40026836,Івано-Франківська область,*;101;40026836;Сплата єдиного соцiального внеску з виплат за грудень 2017р;;;,26005052517967,current,282.35,ДПІ в м. Івано-Франківську ГУ ДФС в Івано-Франківській області,39508514,юридична особа
УГП,"Івано-Франківська область, Івано-Франківськ, вулиця Січових стрільців, 15",70,2017-12-06,C6O0LIDRKY,Банківські послуги,Інші витрати,250902,Івано-Франківська обласна організація,40026836,Івано-Франківська область,"Комiсiя за виконання платежiв в нацiональнiй валютi, згiдно з вiдкритою офертою банку N б/н вiд 29.09.2015 та тарифiв банку, без ПДВ.",26005052517967,current,3.00,"ПАТ КБ ""Приватбанк""",14360570,юридична особа
УГП,"Івано-Франківська область, Івано-Франківськ, вулиця Січових стрільців, 15",70,2017-12-06,16C2000034,Банківські послуги,Інші витрати,250901,Івано-Франківська обласна організація,40026836,Івано-Франківська область,Погашення комiсiї за кас. обслуг. по зарахуванню на картки згiдно 16C20000342 вiд 21.12.2016 р.,26005052517967,current,10.57,"ПАТ КБ ""Приватбанк""",14360570,юридична особа
УГП,"Івано-Франківська область, Івано-Франківськ",83,2017-12-06,231,"Виплати працівникам (не зарплата): лікарняні, вагітності, відрядження, компенсації ","Заробітна плата, лікарняні, вагітності, відрядження, компенсації",250648,Івано-Франківська обласна організація,40026836,Івано-Франківська область,Відпускні за грудень 2017 року.,26005052517967,current,1033.14,Романчук Любомир Петрович,,фізична особа
УГП,"Львівська область, Львів, вулиця Сербська, 1",70,2017-12-06,87249,Банківські послуги,Інші витрати,250571,Центральний офіс,39481037,Україна,"Сплата комісії за переказ коштів з поточного рахунку в операційний час за межі Банку за допомогою системи Клієнт-Банк по документу №395, від 06.12.2017. Без ПДВ",2600671275,current,5.00,"АТ ""АКБ ""Львів""",09801546,юридична особа
УГП,"Львівська область, Львів, вулиця Героїв УПА, 65",58,2017-12-06,395,"Виготовлення друкованих матеріалів (плакатів, листівок, буклетів та інших агітаційних матеріалів)",Друкована агітація,250570,Центральний офіс,39481037,Україна,"Oплата за друк газети ""Наша Галичина"" cпецвипуск згідно рах.-фак.№ВЗ-0001303 від 06.12.2017р., в т.ч. ПДВ 1487,50 грн.",2600671275,current,8925.00,"ТОВ ""Видавничий дім ""Високий замок""",13807781,юридична особа
УГП,"Івано-Франківська область, Івано-Франківськ, вулиця Незалежності, 46",61,2017-12-05,226,Військовий збір,Податкові платежі,250900,Івано-Франківська обласна організація,40026836,Івано-Франківська область,*;101;40026836;Сплата вiйськового збору з зарплати за листопад 2017р;;;,26005052517967,current,78.75,УДКСУ у м. Івано-Франківську,37952250,юридична особа
УГП,"Івано-Франківська область, Івано-Франківськ, вулиця Січових стрільців, 15",70,2017-12-05,C5O0L9XP7Y,Банківські послуги,Інші витрати,250899,Івано-Франківська обласна організація,40026836,Івано-Франківська область,"Комiсiя за виконання платежiв в нацiональнiй валютi, згiдно з вiдкритою офертою банку N б/н вiд 29.09.2015 та тарифiв банку, без ПДВ.",26005052517967,current,3.00,"ПАТ КБ ""Приватбанк""",14360570,юридична особа
УГП,"Івано-Франківська область, Івано-Франківськ, вулиця Незалежності",62,2017-12-05,224,Сплата ЄСВ,Податкові платежі,250898,Івано-Франківська обласна організація,40026836,Івано-Франківська область,*;101;40026836;Сплата єдиного соцiального внеску з зарплати за листопад 2017р;;;,26005052517967,current,1155.00,ДПІ в м. Івано-Франківську ГУ ДФС в Івано-Франківській області,39508514,юридична особа
УГП,"Івано-Франківська область, Івано-Франківськ, вулиця Січових стрільців, 15",70,2017-12-05,C5O0L9XP9Y,Банківські послуги,Інші витрати,250897,Івано-Франківська обласна організація,40026836,Івано-Франківська область,"Комiсiя за виконання платежiв в нацiональнiй валютi, згiдно з вiдкритою офертою банку N б/н вiд 29.09.2015 та тарифiв банку, без ПДВ.",26005052517967,current,3.00,"ПАТ КБ ""Приватбанк""",14360570,юридична особа
УГП,"Івано-Франківська область, Івано-Франківськ, вулиця Незалежності, 46",63,2017-12-05,225,Податок на доходи,Податкові платежі,250896,Івано-Франківська обласна організація,40026836,Івано-Франківська область,*;101;40026836;Податок з доходiв фiзичних осiб з зарплати за листопад 2017р;;;,26005052517967,current,945.00,УДКСУ у м. Івано-Франківську,37952250,юридична особа
УГП,"Івано-Франківська область, Івано-Франківськ, вулиця Січових стрільців, 15",70,2017-12-05,C5O0L9XPHY,Банківські послуги,Інші витрати,250895,Івано-Франківська обласна організація,40026836,Івано-Франківська область,"Комiсiя за виконання платежiв в нацiональнiй валютi, згiдно з вiдкритою офертою банку N б/н вiд 29.09.2015 та тарифiв банку, без ПДВ.",26005052517967,current,3.00,"ПАТ КБ ""Приватбанк""",14360570,юридична особа
УГП,"Івано-Франківська область, Івано-Франківськ",84,2017-12-05,227,"Заробітна плата, премії","Заробітна плата, лікарняні, вагітності, відрядження, компенсації",250647,Івано-Франківська обласна організація,40026836,Івано-Франківська область,Заробітна плата за листопад 2017р.,26005052517967,current,1408.75,Федоляк Наталія Орестівна,,фізична особа
УГП,"Івано-Франківська область, Івано-Франківськ",84,2017-12-05,227,"Заробітна плата, премії","Заробітна плата, лікарняні, вагітності, відрядження, компенсації",250646,Івано-Франківська обласна організація,40026836,Івано-Франківська область,Заробітна плата за листопад 2017р.,26005052517967,current,2817.50,Романчук Любомир Петрович,,фізична особа
УГП,"Львівська область, Львів, вулиця Сербська, 1",70,2017-12-05,69073,Банківські послуги,Інші витрати,250569,Центральний офіс,39481037,Україна,"Сплата комісії за переказ коштів з поточного рахунку в операційний час за межі Банку за допомогою системи Клієнт-Банк по документу №394, від 05.12.2017. Без ПДВ",2600671275,current,5.00,"АТ ""АКБ ""Львів""",09801546,юридична особа
УГП,"Львівська область, Львів, вулиця Миколи Вороного, 3",51,2017-12-05,394,Оплата ефірного часу на ТБ,Телереклама,250568,Центральний офіс,39481037,Україна,"Оплата за надані інформ.-рекламні послуги 23,24.11.17р., згідно рахунку №04/12 від 04.12.2017р., дог.№2211/17 від 22.11.17р, в т.ч. ПДВ 3600,00 грн.",2600671275,current,21600.00,"ТОВ ""Телерадіокомпанія ""Міст ТБ """,25550345,юридична особа
УГП,"Львівська область, Львів, вулиця Сербська, 1",70,2017-12-04,52306,Банківські послуги,Інші витрати,250567,Центральний офіс,39481037,Україна,"Сплата комісії за переказ коштів з поточного рахунку в операційний час за межі Банку за допомогою системи Клієнт-Банк по документу №393, від 04.12.2017. Без ПДВ",2600671275,current,5.00,"АТ ""АКБ ""Львів""",09801546,юридична особа
УГП,"Львівська область, Львів, вулиця Сербська, 1",70,2017-12-04,51990,Банківські послуги,Інші витрати,250565,Центральний офіс,39481037,Україна,"Сплата комісії за переказ коштів з поточного рахунку в операційний час за межі Банку за допомогою системи Клієнт-Банк по документу №392, від 04.12.2017. Без ПДВ",2600671275,current,5.00,"АТ ""АКБ ""Львів""",09801546,юридична особа
УГП,"Львівська область, Львів, вулиця Сербська, 1",70,2017-12-04,47541,Банківські послуги,Інші витрати,250563,Центральний офіс,39481037,Україна,"Сплата комісії за переказ коштів з поточного рахунку в операційний час за межі Банку за допомогою системи Клієнт-Банк по документу №391, від 04.12.2017. Без ПДВ",2600671275,current,5.00,"АТ ""АКБ ""Львів""",09801546,юридична особа
УГП,"Київ, провулок Руслана Лужевського, 14",79,2017-12-04,391,"Оренда будинків і приміщень та експлуатаційні витрати (прибирання, страхування орендованих будинків, охорона, сигналізація, ремонт, вивіз сміття, тощо)",Оренда нерухомості,250562,Центральний офіс,39481037,Україна,"Оплата відшкодування комунал.послуг та опал. за листопад 2017р. згідно Договору суборенди №201 від 24.07.2017р., згідно рахунку №207 від 30.11.17р., без ПДВ.",2600671275,current,2636.06,"ТОВ ""КБД Груп""",40833518,юридична особа
УГП,"Тернопільська область, Тернопіль, проспект Степана Бандери, 38",70,2017-12-01,AS7bu2zxvp,Банківські послуги,Інші витрати,251113,Тернопільська обласна організація,40011526,Тернопільська область,"Комiсiя за обслуговування рахунку за листопад 2017 р. згiдно договору банкiвського рахунку вiд 21.09.2015, без ПДВ.",26006055117228,current,100.00,"ПАТ КБ ""Приватбанк""",14360570,юридична особа
УГП,"Івано-Франківська область, Івано-Франківськ, вулиця Січових стрільців, 15",70,2017-12-01,AS7bu1skjp,Банківські послуги,Інші витрати,250894,Івано-Франківська обласна організація,40026836,Івано-Франківська область,"Комiсiя за обслуговування рахунку за листопад 2017 р. згiдно договору банкiвського рахунку вiд 29.09.2015, без ПДВ.",26005052517967,current,100.00,"ПАТ КБ ""Приватбанк""",14360570,юридична особа
УГП,"Львівська область, Львів, вулиця Сербська, 1",70,2017-12-01,19884,Банківські послуги,Інші витрати,250561,Центральний офіс,39481037,Україна,"Сплата комісії за переказ коштів з поточного рахунку в операційний час за межі Банку за допомогою системи Клієнт-Банк по документу №388, від 01.12.2017. Без ПДВ",2600671275,current,5.00,"АТ ""АКБ ""Львів""",09801546,юридична особа
УГП,"Львівська область, Львів, вулиця Сербська, 1",70,2017-12-01,19901,Банківські послуги,Інші витрати,250560,Центральний офіс,39481037,Україна,"Сплата комісії за переказ коштів з поточного рахунку в операційний час за межі Банку за допомогою системи Клієнт-Банк по документу №389, від 01.12.2017. Без ПДВ",2600671275,current,5.00,"АТ ""АКБ ""Львів""",09801546,юридична особа
УГП,"Львівська область, Львів, вулиця Сербська, 1",70,2017-12-01,19900,Банківські послуги,Інші витрати,250559,Центральний офіс,39481037,Україна,"Сплата комісії за переказ коштів з поточного рахунку в операційний час за межі Банку за допомогою системи Клієнт-Банк по документу №390, від 01.12.2017. Без ПДВ",2600671275,current,5.00,"АТ ""АКБ ""Львів""",09801546,юридична особа
УГП,"Львівська область, Львів, вулиця Стрийська, 35",62,2017-12-01,388,Сплата ЄСВ,Податкові платежі,250558,Центральний офіс,39481037,Україна,"*;101;39481037; нарах. єдиного внеску на винагороду за листопад 2017р. за цив.-прав.договором №Ц/2017-1 від 11.10.2017р. 22,0% - 1100,00 грн.;;;",2600671275,current,1100.00,Залізнична ОДПІ ГУ ДФС у Львівській області,39554382,юридична особа
УГП,"Львівська область, Львів, вулиця Сербська, 1",70,2017-12-01,19845,Банківські послуги,Інші витрати,250557,Центральний офіс,39481037,Україна,"Сплата комісії за переказ коштів з поточного рахунку в операційний час за межі Банку за допомогою системи Клієнт-Банк по документу №386, від 01.12.2017. Без ПДВ",2600671275,current,5.00,"АТ ""АКБ ""Львів""",09801546,юридична особа
УГП,"Львівська область, Львів, вулиця Сербська, 1",70,2017-12-01,19848,Банківські послуги,Інші витрати,250556,Центральний офіс,39481037,Україна,"Сплата комісії за переказ коштів з поточного рахунку в операційний час за межі Банку за допомогою системи Клієнт-Банк по документу №387, від 01.12.2017. Без ПДВ",2600671275,current,5.00,"АТ ""АКБ ""Львів""",09801546,юридична особа
УГП,"Львівська область, Львів, вулиця Конотопська, 6/8",61,2017-12-01,386,Військовий збір,Податкові платежі,250555,Центральний офіс,39481037,Україна,"*;101;39481037; утриманий військовий збір за цив.-прав.договором №Ц/2017-1 від 11.10.2017р. із винагороди за листопад 2017.р,1,5% - 75,00 грн.;;;",2600671275,current,75.00,УДКСУ у Франківському районі м. Львова,37965138,юридична особа
УГП,"Львівська область, Львів, вулиця Конотопська, 6/8",63,2017-12-01,387,Податок на доходи,Податкові платежі,250554,Центральний офіс,39481037,Україна,"*;101;39481037; податок на доходи фізичних осіб за цив.-прав.договором №Ц/2017-1 від 11.10.2017р. із винагороди за листопад 2017р.,18% - 900,00грн.;;;",2600671275,current,900.00,УДКСУ у Франківському районі м. Львова,37965138,юридична особа
УГП,"Львівська область, Львів, вулиця Сербська, 1",70,2017-12-01,16425,Банківські послуги,Інші витрати,250553,Центральний офіс,39481037,Україна,"Сплата комісії за зарахуванню коштів на рахунки фізичних осіб підприємства по зарплатному проекту по документу №16424, від 01.12.2017. Без ПДВ.",2600671275,current,71.00,"АТ ""АКБ ""Львів""",09801546,юридична особа
УГП,"Львівська область, Львів, вулиця Сербська, 1",70,2017-12-01,7718,Банківські послуги,Інші витрати,250552,Центральний офіс,39481037,Україна,"Сплата комісії за переказ коштів з поточного рахунку в операційний час за межі Банку за допомогою системи Клієнт-Банк по документу №385, від 01.12.2017. Без ПДВ",2600671275,current,5.00,"АТ ""АКБ ""Львів""",09801546,юридична особа
УГП,"Київ, провулок Руслана Лужевського, 14",79,2017-12-01,385,"Оренда будинків і приміщень та експлуатаційні витрати (прибирання, страхування орендованих будинків, охорона, сигналізація, ремонт, вивіз сміття, тощо)",Оренда нерухомості,250551,Центральний офіс,39481037,Україна,"Попередня оплата за оренду приміщення за грудень 2017р. згідно Договору суборенди №201 від 24.07.2017р., згідно рахунку №183 від 27.11.17р., без ПДВ.",2600671275,current,7000.00,"ТОВ ""КБД Груп""",40833518,юридична особа
УГП,"Львівська область, Львів, вулиця Сербська, 1",70,2017-12-01,7675,Банківські послуги,Інші витрати,250550,Центральний офіс,39481037,Україна,"Сплата комісії за переказ коштів з поточного рахунку в операційний час за межі Банку за допомогою системи Клієнт-Банк по документу №383, від 01.12.2017. Без ПДВ",2600671275,current,5.00,"АТ ""АКБ ""Львів""",09801546,юридична особа
УГП,"Львівська область, Львів, вулиця Сербська, 1",70,2017-12-01,7676,Банківські послуги,Інші витрати,250549,Центральний офіс,39481037,Україна,"Сплата комісії за переказ коштів з поточного рахунку в операційний час за межі Банку за допомогою системи Клієнт-Банк по документу №384, від 01.12.2017. Без ПДВ",2600671275,current,5.00,"АТ ""АКБ ""Львів""",09801546,юридична особа
УГП,"Львівська область, Львів, вулиця Конотопська, 6/8",63,2017-12-01,383,Податок на доходи,Податкові платежі,250548,Центральний офіс,39481037,Україна,"*;101;39481037; податок на доходи фізичних осіб із зароб.плати за 2 половину листопада 2017р.,18% - 2646,00 грн.;;;",2600671275,current,2646.00,УДКСУ у Франківському районі м. Львова,37965138,юридична особа
УГП,"Львівська область, Львів, вулиця Стрийська, 35",62,2017-12-01,384,Сплата ЄСВ,Податкові платежі,250547,Центральний офіс,39481037,Україна,"*;101;39481037; 22,0% нарах. єдиного внеску на зароб.плату за 2 половину листопада 2017р. - 3234,00 грн.;;;",2600671275,current,3234.00,Залізнична ОДПІ ГУ ДФС у Львівській області,39554382,юридична особа
УГП,"Львівська область, Львів, вулиця Сербська, 1",70,2017-12-01,7670,Банківські послуги,Інші витрати,250546,Центральний офіс,39481037,Україна,"Сплата комісії за переказ коштів з поточного рахунку в операційний час за межі Банку за допомогою системи Клієнт-Банк по документу №382, від 01.12.2017. Без ПДВ",2600671275,current,5.00,"АТ ""АКБ ""Львів""",09801546,юридична особа
УГП,"Львівська область, Львів, вулиця Конотопська, 6/8",61,2017-12-01,382,Військовий збір,Податкові платежі,250545,Центральний офіс,39481037,Україна,"*;101;39481037; утриманий військовий збір із заробітної плати за 2 половину листопада 2017р.,1,5% - 220,50 грн.;;;",2600671275,current,220.50,УДКСУ у Франківському районі м. Львова,37965138,юридична особа
УГП,"Львівська область, Львів",84,2017-12-01,16429,"Заробітна плата, премії","Заробітна плата, лікарняні, вагітності, відрядження, компенсації",250054,Центральний офіс,39481037,Україна,Заробітна плата за 2 половину листопада 2017 року.,2600671275,current,1408.75,Герич Ганна Вікторівна,,фізична особа
УГП,"Тернопільська область, Чортківський район, Косів",84,2017-12-01,16428,"Заробітна плата, премії","Заробітна плата, лікарняні, вагітності, відрядження, компенсації",250053,Центральний офіс,39481037,Україна,Заробітна плата за 2 половину листопада 2017 року.,2600671275,current,3139.50,Велиган Ігор Богданович,,фізична особа
УГП,"Львівська область, Львів",84,2017-12-01,16427,"Заробітна плата, премії","Заробітна плата, лікарняні, вагітності, відрядження, компенсації",250052,Центральний офіс,39481037,Україна,Заробітна плата за 2 половину листопада 2017 року.,2600671275,current,3139.50,Лозинський Роман Михайлович,,фізична особа
УГП,"Львівська область, Львів",84,2017-12-01,16426,"Заробітна плата, премії","Заробітна плата, лікарняні, вагітності, відрядження, компенсації",250051,Центральний офіс,39481037,Україна,Заробітна плата за 2 половину листопада 2017 року.,2600671275,current,4145.75,Панкевич Богдан Романович,,фізична особа
УГП,"Київська обл., Бориспіль",82,2017-12-01,389,"Гонорари, в тому числі за надані консультаційні послуги","Гонорари, в тому числі за надані консультаційні послуги",250050,Центральний офіс,39481037,Україна,"Оплата на карту 5168745012660707 Дрога Каріна Миколаївна, ІПН 3414012420, винагороди за цив.-прав.договором №Ц/2017-1 від 11.10.17, за листопад 2017р., без ПДВ",2600671275,current,4025.00,Дрога Каріна Миколаївна,,фізична особа
УГП,"Львівська область, Львів",79,2017-12-01,390,"Оренда будинків і приміщень та експлуатаційні витрати (прибирання, страхування орендованих будинків, охорона, сигналізація, ремонт, вивіз сміття, тощо)",Оренда нерухомості,250049,Центральний офіс,39481037,Україна,"Попередня оплата за оренду приміщення за грудень 2017р., згідно рахунку №12 від 01.12.2017р., згідно договору №01/2016 від 05.09.2016р., без ПДВ.",2600671275,current,5280.00,Монастирська Олеся Володимирівна,,фізична особа
УГП,"Тернопільська область, Тернопіль, вулиця Руська, 44",51,2017-11-30,108,Оплата ефірного часу на ТБ,Телереклама,251112,Тернопільська обласна організація,40011526,Тернопільська область,Оплата за iнформацiйнi послуги згiдно рах. N 96 вiд 22.11.2017р.,26006055117228,current,3500.00,"ПП ""ТРК ""Смайл""Телеканал ""ІНТБ""",34473456,юридична особа
УГП,"Тернопільська область, Тернопіль, вулиця Руська, 44",51,2017-11-30,109,Оплата ефірного часу на ТБ,Телереклама,251111,Тернопільська обласна організація,40011526,Тернопільська область,Оплата за рекламнi послуги згiдно рах. N 95 вiд 21.11.2017р.,26006055117228,current,9870.00,"ПП ""ТРК ""Смайл""Телеканал ""ІНТБ""",34473456,юридична особа
УГП,"Львівська область, Львів, вулиця Сербська, 1",70,2017-11-30,499926,Банківські послуги,Інші витрати,250986,Львівська обласна організація,40014820,Львівська область,"Комісія за pозрахункове обслуговування Клієнтів по системі ""Клієнт-Банк"" за період 01.11.17-30.11.17 зг. договору. №N40.00.002425/РКО вiд 17.09.2015.",2600477437,current,50.00,"АТ ""АКБ ""Львів""",09801546,юридична особа
УГП,"Львівська область, Львів, вулиця Сербська, 1",70,2017-11-30,499925,Банківські послуги,Інші витрати,250985,Львівська обласна організація,40014820,Львівська область,Комісія за ведення функціонуючого рахунку за період 01.11.17-30.11.17 зг. договору. №N40.00.002425/РКО вiд 17.09.2015.,2600477437,current,100.00,"АТ ""АКБ ""Львів""",09801546,юридична особа
УГП,"Львівська область, Львів, вулиця Сербська, 1",70,2017-11-30,502414,Банківські послуги,Інші витрати,250544,Центральний офіс,39481037,Україна,"Комісія за pозрахункове обслуговування Клієнтів по системі ""Клієнт-Банк"" за період 01.11.17-30.11.17 зг. договору. №N40.00.002175/РКО вiд 10.12.2014.",2600671275,current,50.00,"АТ ""АКБ ""Львів""",09801546,юридична особа
УГП,"Львівська область, Львів, вулиця Сербська, 1",70,2017-11-30,502413,Банківські послуги,Інші витрати,250543,Центральний офіс,39481037,Україна,Комісія за ведення функціонуючого рахунку за період 01.11.17-30.11.17 зг. договору. №N40.00.002175/РКО вiд 10.12.2014.,2600671275,current,100.00,"АТ ""АКБ ""Львів""",09801546,юридична особа
УГП,"Львівська область, Львів, вулиця Сербська, 1",70,2017-11-30,485105,Банківські послуги,Інші витрати,250542,Центральний офіс,39481037,Україна,"Сплата комісії за переказ коштів з поточного рахунку в операційний час за межі Банку за допомогою системи Клієнт-Банк по документу №381, від 30.11.2017. Без ПДВ",2600671275,current,5.00,"АТ ""АКБ ""Львів""",09801546,юридична особа
УГП,"Львівська область, Львів, вулиця Кондукторська, 16",79,2017-11-30,381,"Оренда будинків і приміщень та експлуатаційні витрати (прибирання, страхування орендованих будинків, охорона, сигналізація, ремонт, вивіз сміття, тощо)",Оренда нерухомості,250541,Центральний офіс,39481037,Україна,"Оплата за послуги центр.охорони обʼєкта за листопад 2017р., згідно рахунку №СФ-0000864 від 30.11.2017р., зг.договору № ЦС 040117 від 17.01.2017р., без ПДВ",2600671275,current,400.00,"ПП ""Приватна безпека""",33562906,юридична особа
УГП,"Львівська область, Львів, вулиця Сербська, 1",70,2017-11-29,477343,Банківські послуги,Інші витрати,250540,Центральний офіс,39481037,Україна,"Сплата комісії за переказ коштів з поточного рахунку в операційний час за межі Банку за допомогою системи Клієнт-Банк по документу №380, від 29.11.2017. Без ПДВ",2600671275,current,5.00,"АТ ""АКБ ""Львів""",09801546,юридична особа
УГП,"Львівська область, Львів, вулиця Сербська, 1",70,2017-11-27,436939,Банківські послуги,Інші витрати,250984,Львівська обласна організація,40014820,Львівська область,"Сплата комісії за переказ коштів з поточного рахунку в операційний час за межі Банку за допомогою системи Клієнт-Банк по документу №33, від 27.11.2017. Без ПДВ.",2600477437,current,5.00,"АТ ""АКБ ""Львів""",09801546,юридична особа
УГП,,59,2017-11-27,33,Грошова застава,Грошова застава,250983,Львівська обласна організація,40014820,Львівська область,"Грошова застава Камʼянка-Бузької районної організації ПП ""УГП"" за список кандидатів у депутати до Камʼянка-Бузької міської ради, без ПДВ.",2600477437,current,1779.00,Камʼянка-Бузька міська виборча комісія,34028584,юридична особа
УГП,"Львівська область, Львів, вулиця Сербська, 1",70,2017-11-27,438403,Банківські послуги,Інші витрати,250538,Центральний офіс,39481037,Україна,"Сплата комісії за переказ коштів з поточного рахунку в операційний час за межі Банку за допомогою системи Клієнт-Банк по документу №379, від 27.11.2017. Без ПДВ",2600671275,current,5.00,"АТ ""АКБ ""Львів""",09801546,юридична особа
УГП,"Львівська область, Львів, вулиця Яна Матейка, 6",69,2017-11-27,379,Організація заходів та інші організаційні послуги,Організація заходів та інші організаційні послуги,250537,Центральний офіс,39481037,Україна,"Попередня оплата за оренду конференц-зали згідно рахунку № 1561 від 27.11.2017р., в тому числі ПДВ - 450,00 грн.",2600671275,current,2700.00,ПАТ ТГК Дністер,13828634,юридична особа
УГП,"Івано-Франківська область, Івано-Франківськ, вулиця Січових стрільців, 15",70,2017-11-24,BOO0KFJ2HY,Банківські послуги,Інші витрати,250892,Івано-Франківська обласна організація,40026836,Івано-Франківська область,"Комiсiя за виконання платежiв в нацiональнiй валютi, згiдно з вiдкритою офертою банку N б/н вiд 29.09.2015 та тарифiв банку, без ПДВ.",26005052517967,current,3.00,"ПАТ КБ ""Приватбанк""",14360570,юридична особа
УГП,"Івано-Франківська область, Івано-Франківськ, вулиця Незалежності, 6",75,2017-11-24,222,Поштові послуги та поширення друкованих матеріалів,Поштові послуги та поширення друкованих матеріалів,250891,Івано-Франківська обласна організація,40026836,Івано-Франківська область,Оплата за доставку реклами згiдно рахунку N 119 вiд 22.11.2017р. у т.ч. ПДВ - 20 % 660.00 грн.,26005052517967,current,3960.00,Івано-Франківська дирекція АТ Укрпошта,22178632,юридична особа
УГП,"Івано-Франківська область, Івано-Франківськ, вулиця Січових стрільців, 15",70,2017-11-24,BOO0KFFQ1Y,Банківські послуги,Інші витрати,250890,Івано-Франківська обласна організація,40026836,Івано-Франківська область,"Комiсiя за виконання платежiв в нацiональнiй валютi, згiдно з вiдкритою офертою банку N б/н вiд 29.09.2015 та тарифiв банку, без ПДВ.",26005052517967,current,3.00,"ПАТ КБ ""Приватбанк""",14360570,юридична особа
УГП,"Тернопільська область, Тернопіль, проспект Степана Бандери, 38",70,2017-11-23,BNO0KBAF3Y,Банківські послуги,Інші витрати,251110,Тернопільська обласна організація,40011526,Тернопільська область,"Комiсiя за виконання платежiв в нацiональнiй валютi, згiдно з вiдкритою офертою банку N б/н вiд 21.09.2015 та тарифiв банку, без ПДВ.",26006055117228,current,3.00,"ПАТ КБ ""Приватбанк""",14360570,юридична особа
УГП,"Тернопільська область, Тернопіль",79,2017-11-23,107,"Оренда будинків і приміщень та експлуатаційні витрати (прибирання, страхування орендованих будинків, охорона, сигналізація, ремонт, вивіз сміття, тощо)",Оренда нерухомості,251009,Тернопільська обласна організація,40011526,Тернопільська область,Оплата за оренду згiдно договору N28 вiд 01.11.2015р. за листопад 2017р.,26006055117228,current,2500.68,Клепач Валентина Анатоліївна,,фізична особа
УГП,"Львівська область, Львів, вулиця Сербська, 1",70,2017-11-23,365588,Банківські послуги,Інші витрати,250982,Львівська обласна організація,40014820,Львівська область,"Сплата комісії за переказ коштів з поточного рахунку в операційний час за межі Банку за допомогою системи Клієнт-Банк по документу №32, від 23.11.2017. Без ПДВ.",2600477437,current,5.00,"АТ ""АКБ ""Львів""",09801546,юридична особа
УГП,"Львівська область, Борислав",79,2017-11-23,32,"Оренда будинків і приміщень та експлуатаційні витрати (прибирання, страхування орендованих будинків, охорона, сигналізація, ремонт, вивіз сміття, тощо)",Оренда нерухомості,250932,Львівська обласна організація,40014820,Львівська область,"Oплата за оренду рекл.площин, її розробку та розміщення згідно договору №2414200-1 від 04.09.2017р., зг.рахунку №47 від 21.11.17р., без ПДВ.",2600477437,current,4200.00,Майсак Назар Олександрович,,фізична особа
УГП,"Тернопільська область, Тернопіль, проспект Степана Бандери, 38",70,2017-11-22,BMO0K710SY,Банківські послуги,Інші витрати,251109,Тернопільська обласна організація,40011526,Тернопільська область,"Комiсiя за виконання платежiв в нацiональнiй валютi, згiдно з вiдкритою офертою банку N б/н вiд 21.09.2015 та тарифiв банку, без ПДВ.",26006055117228,current,3.00,"ПАТ КБ ""Приватбанк""",14360570,юридична особа
УГП,"Тернопільська область, Тернопіль, проспект Степана Бандери, 38",70,2017-11-22,BMO0K7116Y,Банківські послуги,Інші витрати,251108,Тернопільська обласна організація,40011526,Тернопільська область,"Комiсiя за виконання платежiв в нацiональнiй валютi, згiдно з вiдкритою офертою банку N б/н вiд 21.09.2015 та тарифiв банку, без ПДВ.",26006055117228,current,3.00,"ПАТ КБ ""Приватбанк""",14360570,юридична особа
УГП,"Тернопільська область, Тернопіль, проспект Степана Бандери, 38",70,2017-11-22,BMO0K711BY,Банківські послуги,Інші витрати,251107,Тернопільська обласна організація,40011526,Тернопільська область,"Комiсiя за виконання платежiв в нацiональнiй валютi, згiдно з вiдкритою офертою банку N б/н вiд 21.09.2015 та тарифiв банку, без ПДВ.",26006055117228,current,3.00,"ПАТ КБ ""Приватбанк""",14360570,юридична особа
УГП,"Тернопільська область, Тернопіль, проспект Степана Бандери, 38",70,2017-11-22,106,Банківські послуги,Інші витрати,251106,Тернопільська обласна організація,40011526,Тернопільська область,Комiсiя РКО вiд зарплати за першу половину листопада 2017р.,26006055117228,current,17.71,"ПАТ КБ ""Приватбанк""",14360570,юридична особа
УГП,"Тернопільська область, Тернопіль, бульвар Тараса Шевченка, 3",61,2017-11-22,105,Військовий збір,Податкові платежі,251105,Тернопільська обласна організація,40011526,Тернопільська область,Вiйськовий збiр вiд зарплати за першу половину листопада 2017р.,26006055117228,current,132.00,УДКСУ у м. Тернопіль,37977726,юридична особа
УГП,"Тернопільська область, Тернопіль, бульвар Тараса Шевченка, 3",63,2017-11-22,103,Податок на доходи,Податкові платежі,251104,Тернопільська обласна організація,40011526,Тернопільська область,ПДФО вiд зарплати за першу половину листопада 2017р.,26006055117228,current,1584.00,УДКСУ у м. Тернопіль,37977726,юридична особа
УГП,"Тернопільська область, Тернопіль, вулиця Білецька, 1",62,2017-11-22,104,Сплата ЄСВ,Податкові платежі,251103,Тернопільська обласна організація,40011526,Тернопільська область,ЄСВ вiд зарплати за першу половину листопада 2017р.,26006055117228,current,1936.00,Тернопільська ОДПІ ГУ ДФС в Тернопільській області,39502025,юридична особа
УГП,"Тернопільська область, Бучацький район, Трибухівці",84,2017-11-22,102,"Заробітна плата, премії","Заробітна плата, лікарняні, вагітності, відрядження, компенсації",251008,Тернопільська обласна організація,40011526,Тернопільська область,Зарплата за першу половину листопада 2017р.,26006055117228,current,2415.00,Кізюк Іван Йосипович,,фізична особа
УГП,"Тернопільська область, Теребовлянський район, Застіноче",84,2017-11-22,102,"Заробітна плата, премії","Заробітна плата, лікарняні, вагітності, відрядження, компенсації",251007,Тернопільська обласна організація,40011526,Тернопільська область,Зарплата за першу половину листопада 2017р.,26006055117228,current,2817.50,Вітвіцький Олег Іванович,,фізична особа
УГП,"Тернопільська область, Тернопіль",84,2017-11-22,102,"Заробітна плата, премії","Заробітна плата, лікарняні, вагітності, відрядження, компенсації",251006,Тернопільська обласна організація,40011526,Тернопільська область,Зарплата за першу половину листопада 2017р.,26006055117228,current,1851.50,Богун Андрій Ігорович,,фізична особа
УГП,"Тернопільська область, Тернопіль",43,2017-11-21,101,Інші витрати,Інші витрати,251005,Тернопільська обласна організація,40011526,Тернопільська область,Оплата згiдно рах. N СФ-0000781 вiд 26.10.2017р. Без ПДВ,26006055117228,current,3000.00,Яремчук Яна Ігорівна,,фізична особа
УГП,"Івано-Франківська область, Івано-Франківськ, вулиця Січових стрільців, 15",70,2017-11-21,16C2000034,Банківські послуги,Інші витрати,250889,Івано-Франківська обласна організація,40026836,Івано-Франківська область,Погашення комiсiї за кас. обслуг. по зарахуванню на картки згiдно 16C20000342 вiд 21.12.2016 р.,26005052517967,current,10.57,"ПАТ КБ ""Приватбанк""",14360570,юридична особа
УГП,"Івано-Франківська область, Івано-Франківськ, вулиця Незалежності",62,2017-11-20,218,Сплата ЄСВ,Податкові платежі,250888,Івано-Франківська обласна організація,40026836,Івано-Франківська область,*;101;40026836;Сплата єдиного соцiального внеску з авансу за листопад 2017р;;;,26005052517967,current,1155.00,ДПІ в м. Івано-Франківську ГУ ДФС в Івано-Франківській області,39508514,юридична особа
УГП,"Івано-Франківська область, Івано-Франківськ, вулиця Січових стрільців, 15",70,2017-11-20,BKO0JYSOHY,Банківські послуги,Інші витрати,250887,Івано-Франківська обласна організація,40026836,Івано-Франківська область,"Комiсiя за виконання платежiв в нацiональнiй валютi, згiдно з вiдкритою офертою банку N б/н вiд 29.09.2015 та тарифiв банку, без ПДВ.",26005052517967,current,3.00,"ПАТ КБ ""Приватбанк""",14360570,юридична особа
УГП,"Івано-Франківська область, Івано-Франківськ, вулиця Незалежності, 46",61,2017-11-20,220,Військовий збір,Податкові платежі,250886,Івано-Франківська обласна організація,40026836,Івано-Франківська область,*;101;40026836;Сплата вiйськового збору з авансу за листопад 2017р;;;,26005052517967,current,78.75,УДКСУ у м. Івано-Франківську,37952250,юридична особа
УГП,"Івано-Франківська область, Івано-Франківськ, вулиця Січових стрільців, 15",70,2017-11-20,BKO0JYSOKY,Банківські послуги,Інші витрати,250885,Івано-Франківська обласна організація,40026836,Івано-Франківська область,"Комiсiя за виконання платежiв в нацiональнiй валютi, згiдно з вiдкритою офертою банку N б/н вiд 29.09.2015 та тарифiв банку, без ПДВ.",26005052517967,current,3.00,"ПАТ КБ ""Приватбанк""",14360570,юридична особа
УГП,"Івано-Франківська область, Івано-Франківськ, вулиця Незалежності, 46",63,2017-11-20,219,Податок на доходи,Податкові платежі,250884,Івано-Франківська обласна організація,40026836,Івано-Франківська область,*;101;40026836;Податок з доходiв фiзичних осiб з авансу за листопад 2017р;;;,26005052517967,current,945.00,УДКСУ у м. Івано-Франківську,37952250,юридична особа
УГП,"Івано-Франківська область, Івано-Франківськ, вулиця Січових стрільців, 15",70,2017-11-20,BKO0JYSOSY,Банківські послуги,Інші витрати,250883,Івано-Франківська обласна організація,40026836,Івано-Франківська область,"Комiсiя за виконання платежiв в нацiональнiй валютi, згiдно з вiдкритою офертою банку N б/н вiд 29.09.2015 та тарифiв банку, без ПДВ.",26005052517967,current,3.00,"ПАТ КБ ""Приватбанк""",14360570,юридична особа
УГП,"Івано-Франківська область, Івано-Франківськ, вулиця Січових стрільців, 30А",51,2017-11-20,217,Оплата ефірного часу на ТБ,Телереклама,250882,Івано-Франківська обласна організація,40026836,Івано-Франківська область,"Оплата за трансляцiю передачi (сек) згiдно рахунку N 21 вiд 02.11.2017р. у т.ч. ПДВ - 20 % 316,66 грн.",26005052517967,current,1899.96,"Філія ПАТ ""НСТУ"" ""Івано-Франківська регіональна дирекція ""Карпати""",40020572,юридична особа
УГП,"Івано-Франківська область, Івано-Франківськ",84,2017-11-20,221,"Заробітна плата, премії","Заробітна плата, лікарняні, вагітності, відрядження, компенсації",250645,Івано-Франківська обласна організація,40026836,Івано-Франківська область,Аванс за листопад 2017р.,26005052517967,current,1408.75,Федоляк Наталія Орестівна,,фізична особа
УГП,"Івано-Франківська область, Івано-Франківськ",84,2017-11-20,221,"Заробітна плата, премії","Заробітна плата, лікарняні, вагітності, відрядження, компенсації",250644,Івано-Франківська обласна організація,40026836,Івано-Франківська область,Аванс за листопад 2017р.,26005052517967,current,2817.50,Романчук Любомир Петрович,,фізична особа
УГП,"Тернопільська область, Тернопіль, проспект Степана Бандери, 38",70,2017-11-17,BHO0JRIC1Y,Банківські послуги,Інші витрати,251102,Тернопільська обласна організація,40011526,Тернопільська область,"Комiсiя за виконання платежiв в нацiональнiй валютi, згiдно з вiдкритою офертою банку N б/н вiд 21.09.2015 та тарифiв банку, без ПДВ.",26006055117228,current,3.00,"ПАТ КБ ""Приватбанк""",14360570,юридична особа
УГП,"Тернопільська область, Тернопіль, вулиця Гетьмана Сагайдачного, 2",43,2017-11-17,100,Інші витрати,Інші витрати,251101,Тернопільська обласна організація,40011526,Тернопільська область,"Оплата згiдно рах. N СФ-0000434 вiд 16.11.2017р. У сумi 5883.33 грн., ПДВ - 20 % 1176.67 грн.",26006055117228,current,7060.00,"ТОВ ""TV-4""",14029496,юридична особа
УГП,,69,2017-11-17,31,Організація заходів та інші організаційні послуги,Організація заходів та інші організаційні послуги,250981,Львівська обласна організація,40014820,Львівська область,"Оплата за послуги з надан.у корист.акт.залу РНД ""Просвіта"" для провед.публ.заходу 17.11 2017р., зг. договору №2 від 17.11.17р., зг.рах.№53 від 17.11.17, без ПДВ",2600477437,current,722.60,Сектор культури Кам'янка-Бузької РДА Львівської області,02229273,юридична особа
УГП,"Львівська область, Львів, вулиця Сербська, 1",70,2017-11-17,267266,Банківські послуги,Інші витрати,250980,Львівська обласна організація,40014820,Львівська область,"Сплата комісії за переказ коштів з поточного рахунку в операційний час за межі Банку за допомогою системи Клієнт-Банк по документу №31, від 17.11.2017. Без ПДВ.",2600477437,current,5.00,"АТ ""АКБ ""Львів""",09801546,юридична особа
УГП,"Львівська область, Львів, вулиця Сербська, 1",70,2017-11-17,256571,Банківські послуги,Інші витрати,250536,Центральний офіс,39481037,Україна,"Сплата комісії за зарахуванню коштів на рахунки фізичних осіб підприємства по зарплатному проекту по документу №256570, від 17.11.2017. Без ПДВ.",2600671275,current,71.00,"АТ ""АКБ ""Львів""",09801546,юридична особа
УГП,"Львівська область, Львів, вулиця Сербська, 1",70,2017-11-17,256272,Банківські послуги,Інші витрати,250535,Центральний офіс,39481037,Україна,"Сплата комісії за переказ коштів з поточного рахунку в операційний час за межі Банку за допомогою системи Клієнт-Банк по документу №378, від 17.11.2017. Без ПДВ",2600671275,current,5.00,"АТ ""АКБ ""Львів""",09801546,юридична особа
УГП,"Львівська область, Львів, вулиця Стрийська, 35",62,2017-11-17,378,Сплата ЄСВ,Податкові платежі,250534,Центральний офіс,39481037,Україна,"*;101;39481037; 22,0% нарах. єдиного внеску на зароб.плату за 1 половину листопада 2017р. - 3234,00 грн.;;;",2600671275,current,3234.00,Залізнична ОДПІ ГУ ДФС у Львівській області,39554382,юридична особа
УГП,"Львівська область, Львів, вулиця Сербська, 1",70,2017-11-17,256231,Банківські послуги,Інші витрати,250533,Центральний офіс,39481037,Україна,"Сплата комісії за переказ коштів з поточного рахунку в операційний час за межі Банку за допомогою системи Клієнт-Банк по документу №377, від 17.11.2017. Без ПДВ",2600671275,current,5.00,"АТ ""АКБ ""Львів""",09801546,юридична особа
УГП,"Львівська область, Львів, вулиця Сербська, 1",70,2017-11-17,256226,Банківські послуги,Інші витрати,250532,Центральний офіс,39481037,Україна,"Сплата комісії за переказ коштів з поточного рахунку в операційний час за межі Банку за допомогою системи Клієнт-Банк по документу №376, від 17.11.2017. Без ПДВ",2600671275,current,5.00,"АТ ""АКБ ""Львів""",09801546,юридична особа
УГП,"Львівська область, Львів, вулиця Конотопська, 6/8",61,2017-11-17,376,Військовий збір,Податкові платежі,250531,Центральний офіс,39481037,Україна,"*;101;39481037; утриманий військовий збір із заробітної плати за 1 половину листопада 2017р.,1,5% - 220,50 грн.;;;",2600671275,current,220.50,УДКСУ у Франківському районі м. Львова,37965138,юридична особа
УГП,"Львівська область, Львів, вулиця Конотопська, 6/8",63,2017-11-17,377,Податок на доходи,Податкові платежі,250530,Центральний офіс,39481037,Україна,"*;101;39481037; податок на доходи фізичних осіб із зароб.плати за 1 половину листопада 2017р.,18% - 2646,00 грн.;;;",2600671275,current,2646.00,УДКСУ у Франківському районі м. Львова,37965138,юридична особа
УГП,"Львівська область, Львів",84,2017-11-17,256575,"Заробітна плата, премії","Заробітна плата, лікарняні, вагітності, відрядження, компенсації",250048,Центральний офіс,39481037,Україна,Заробітна плата (аванс) за 1 половину листопада 2017 року.,2600671275,current,1408.75,Герич Ганна Вікторівна,,фізична особа
УГП,"Тернопільська область, Чортківський район, Косів",84,2017-11-17,256574,"Заробітна плата, премії","Заробітна плата, лікарняні, вагітності, відрядження, компенсації",250047,Центральний офіс,39481037,Україна,Заробітна плата (аванс) за 1 половину листопада 2017 року.,2600671275,current,3139.50,Велиган Ігор Богданович,,фізична особа
УГП,"Львівська область, Львів",84,2017-11-17,256573,"Заробітна плата, премії","Заробітна плата, лікарняні, вагітності, відрядження, компенсації",250046,Центральний офіс,39481037,Україна,Заробітна плата (аванс) за 1 половину листопада 2017 року.,2600671275,current,3139.50,Лозинський Роман Михайлович,,фізична особа
УГП,"Львівська область, Львів",84,2017-11-17,256572,"Заробітна плата, премії","Заробітна плата, лікарняні, вагітності, відрядження, компенсації",250045,Центральний офіс,39481037,Україна,Заробітна плата (аванс) за 1 половину листопада 2017 року.,2600671275,current,4145.75,Панкевич Богдан Романович,,фізична особа
УГП,"Львівська область, Львів, вулиця Сербська, 1",70,2017-11-16,251400,Банківські послуги,Інші витрати,250529,Центральний офіс,39481037,Україна,"Сплата комісії за переказ коштів з поточного рахунку в операційний час за межі Банку за допомогою системи Клієнт-Банк по документу №374, від 16.11.2017. Без ПДВ",2600671275,current,5.00,"АТ ""АКБ ""Львів""",09801546,юридична особа
УГП,"Львівська область, Львів, вулиця Сербська, 1",70,2017-11-16,250875,Банківські послуги,Інші витрати,250527,Центральний офіс,39481037,Україна,"Сплата комісії за переказ коштів з поточного рахунку в операційний час за межі Банку за допомогою системи Клієнт-Банк по документу №373, від 16.11.2017. Без ПДВ",2600671275,current,5.00,"АТ ""АКБ ""Львів""",09801546,юридична особа
УГП,"Львівська область, Львів, вулиця Сербська, 1",70,2017-11-16,250460,Банківські послуги,Інші витрати,250525,Центральний офіс,39481037,Україна,"Сплата комісії за переказ коштів з поточного рахунку в операційний час за межі Банку за допомогою системи Клієнт-Банк по документу №372, від 16.11.2017. Без ПДВ",2600671275,current,5.00,"АТ ""АКБ ""Львів""",09801546,юридична особа
УГП,"Львівська область, Львів, вулиця Джерельна, 75",82,2017-11-16,372,"Гонорари, в тому числі за надані консультаційні послуги","Гонорари, в тому числі за надані консультаційні послуги",250524,Центральний офіс,39481037,Україна,"Oплата за аналіт.послуги, консульт., організ.соц.дослідж. згідно договору №17/10/17 від 17.10.17р., згід.рах.-факт.№15/11/17 від 15.11.17р., без ПДВ.",2600671275,current,80000.00,ТОВ ʼКонсалтингова компанія ʼФАМАʼ,41664187,юридична особа
УГП,"Львівська область, Львів, вулиця Сербська, 1",70,2017-11-15,223617,Банківські послуги,Інші витрати,250523,Центральний офіс,39481037,Україна,"Сплата комісії за переказ коштів з поточного рахунку в операційний час за межі Банку за допомогою системи Клієнт-Банк по документу №371, від 15.11.2017. Без ПДВ",2600671275,current,5.00,"АТ ""АКБ ""Львів""",09801546,юридична особа
УГП,"Івано-Франківська область, Івано-Франківськ, вулиця Михайла Грушевського, 21",51,2017-11-10,216,Оплата ефірного часу на ТБ,Телереклама,250881,Івано-Франківська обласна організація,40026836,Івано-Франківська область,"оплата за трансляцiю програми згiдно рах.N 329 вiд 07.11.2017р., в т.ч.ПДВ - 500,00грн.",26005052517967,current,3000.00,"Івано-Франківське обласне телебачення ""Галичина""",13641427,юридична особа
УГП,"Івано-Франківська область, Івано-Франківськ, вулиця Січових стрільців, 15",70,2017-11-10,BAO0J3AA0Y,Банківські послуги,Інші витрати,250880,Івано-Франківська обласна організація,40026836,Івано-Франківська область,"Комiсiя за виконання платежiв в нацiональнiй валютi, згiдно з вiдкритою офертою банку N б/н вiд 29.09.2015 та тарифiв банку, без ПДВ.",26005052517967,current,3.00,"ПАТ КБ ""Приватбанк""",14360570,юридична особа
УГП,"Івано-Франківська область, Івано-Франківськ, вулиця Михайла Грушевського, 21",51,2017-11-10,215,Оплата ефірного часу на ТБ,Телереклама,250879,Івано-Франківська обласна організація,40026836,Івано-Франківська область,"оплата за iформацiйнi послуги згiдно рах.N 328 вiд 07.11.2017р., в т.ч.ПДВ - 500,00грн.",26005052517967,current,3000.00,"Івано-Франківське обласне телебачення ""Галичина""",13641427,юридична особа
УГП,"Івано-Франківська область, Івано-Франківськ, вулиця Січових стрільців, 15",70,2017-11-10,BAO0J392WY,Банківські послуги,Інші витрати,250878,Івано-Франківська обласна організація,40026836,Івано-Франківська область,"Комiсiя за виконання платежiв в нацiональнiй валютi, згiдно з вiдкритою офертою банку N б/н вiд 29.09.2015 та тарифiв банку, без ПДВ.",26005052517967,current,3.00,"ПАТ КБ ""Приватбанк""",14360570,юридична особа
УГП,"Львівська область, Львів, вулиця Сербська, 1",70,2017-11-10,164263,Банківські послуги,Інші витрати,250521,Центральний офіс,39481037,Україна,"Сплата комісії за переказ коштів з поточного рахунку в операційний час за межі Банку за допомогою системи Клієнт-Банк по документу №370, від 10.11.2017. Без ПДВ",2600671275,current,5.00,"АТ ""АКБ ""Львів""",09801546,юридична особа
УГП,"Львівська область, Львів, вулиця Героїв УПА, 65",58,2017-11-10,370,"Виготовлення друкованих матеріалів (плакатів, листівок, буклетів та інших агітаційних матеріалів)",Друкована агітація,250520,Центральний офіс,39481037,Україна,"Oплата за друк газети ""Наша Галичина"" 6 згід.рах.-фак.№ВЗ-0001193 від 08.11.2017р., в т.ч. ПДВ 11666,67 грн.",2600671275,current,70000.00,"ТОВ ""Видавничий дім ""Високий замок""",13807781,юридична особа
УГП,"Львівська область, Львів, вулиця Сербська, 1",70,2017-11-10,149886,Банківські послуги,Інші витрати,250519,Центральний офіс,39481037,Україна,"Сплата комісії за переказ коштів з поточного рахунку в операційний час за межі Банку за допомогою системи Клієнт-Банк по документу №369, від 10.11.2017. Без ПДВ",2600671275,current,5.00,"АТ ""АКБ ""Львів""",09801546,юридична особа
УГП,"Київ, провулок Руслана Лужевського, 14",79,2017-11-10,369,"Оренда будинків і приміщень та експлуатаційні витрати (прибирання, страхування орендованих будинків, охорона, сигналізація, ремонт, вивіз сміття, тощо)",Оренда нерухомості,250518,Центральний офіс,39481037,Україна,"Оплата відшкодування комунальних послуг за жовтень 2017р. згідно Договору суборенди №201 від 24.07.2017р., згідно рахунку №170 від 31.10.17р., без ПДВ",2600671275,current,1337.13,"ТОВ ""КБД Груп""",40833518,юридична особа
УГП,"Львівська область, Львів, вулиця Сербська, 1",70,2017-11-09,132930,Банківські послуги,Інші витрати,250517,Центральний офіс,39481037,Україна,"Сплата комісії за переказ коштів з поточного рахунку в операційний час за межі Банку за допомогою системи Клієнт-Банк по документу №368, від 09.11.2017. Без ПДВ",2600671275,current,5.00,"АТ ""АКБ ""Львів""",09801546,юридична особа
УГП,"Львівська область, Львів, вулиця Героїв УПА, 65",58,2017-11-09,368,"Виготовлення друкованих матеріалів (плакатів, листівок, буклетів та інших агітаційних матеріалів)",Друкована агітація,250516,Центральний офіс,39481037,Україна,"Попередня оплата за друк газети ""Наша Галичина"" 6 згід.рах.-фак.№ВЗ-0001193 від 08.11.2017р., в т.ч. ПДВ 13127,50 грн.",2600671275,current,78765.00,"ТОВ ""Видавничий дім ""Високий замок""",13807781,юридична особа
УГП,"Львівська область, Львів, вулиця Сербська, 1",70,2017-11-08,128352,Банківські послуги,Інші витрати,250515,Центральний офіс,39481037,Україна,"Сплата комісії за переказ коштів з поточного рахунку в операційний час за межі Банку за допомогою системи Клієнт-Банк по документу №367, від 08.11.2017. Без ПДВ",2600671275,current,5.00,"АТ ""АКБ ""Львів""",09801546,юридична особа
УГП,"Київ, бульвар Дружби Народів, 8А",72,2017-11-08,367,"Придбання, ремонт офісної техніки та програмного забезпечення (Бухгалтерські програми, Ліга.закон, домени)",Придбання офісної техніки та програмного забезпечення,250514,Центральний офіс,39481037,Україна,"Попередня оплата за ноутбук НР Probook 430 G4 згідно рахунку №СФ-01491081 від 08.11.2017р., зг.договору №1491081 від 08.11.2017р., в т.ч. ПДВ 3340,67 грн.",2600671275,current,20044.00,"ТОВ ""Розетка.УА""",37193071,юридична особа
УГП,"Львівська область, Львів, вулиця Сербська, 1",70,2017-11-08,128187,Банківські послуги,Інші витрати,250513,Центральний офіс,39481037,Україна,"Сплата комісії за переказ коштів з поточного рахунку в операційний час за межі Банку за допомогою системи Клієнт-Банк по документу №365, від 08.11.2017. Без ПДВ",2600671275,current,5.00,"АТ ""АКБ ""Львів""",09801546,юридична особа
УГП,"Київ, вулиця Хрещатик, 44",50,2017-11-08,365,Оплата ефірного часу на радіо,Реклама на радіо,250512,Центральний офіс,39481037,Україна,"Попередня оплата за трансляцію рекл.матеріалів згідно рах.-фактури №СФ-0000471 від 08.11.17р., згідно договору №17-054 від 08.11.17р., в т.ч. ПДВ 3230,20 грн.",2600671275,current,19381.20,"КП ""Радіостанція ""Голос Києва""",32455608,юридична особа
УГП,"Львівська область, Львів, вулиця Сербська, 1",70,2017-11-08,128149,Банківські послуги,Інші витрати,250511,Центральний офіс,39481037,Україна,"Сплата комісії за переказ коштів з поточного рахунку в операційний час за межі Банку за допомогою системи Клієнт-Банк по документу №364, від 08.11.2017. Без ПДВ",2600671275,current,5.00,"АТ ""АКБ ""Львів""",09801546,юридична особа
УГП,"Львівська область, Львів, вулиця Сербська, 1",70,2017-11-08,116693,Банківські послуги,Інші витрати,250510,Центральний офіс,39481037,Україна,"Сплата комісії за переказ коштів з поточного рахунку в операційний час за межі Банку за допомогою системи Клієнт-Банк по документу №363, від 08.11.2017. Без ПДВ",2600671275,current,5.00,"АТ ""АКБ ""Львів""",09801546,юридична особа
УГП,"Київ, вулиця Саксаганського, 91",50,2017-11-08,363,Оплата ефірного часу на радіо,Реклама на радіо,250509,Центральний офіс,39481037,Україна,"Оплата за рекламні послуги на Радіо ""Країна ФМ"" згідно рах.-фактури №СФ-0000273 від 03.11.2017р.,зг.договору №ДГ-69 від 03.11.17р., в т.ч.ПДВ - 2529,21 грн.",2600671275,current,15175.27,"ПРАТ ""Радіокомпанія ""Гала""",20023766,юридична особа
УГП,"Тернопільська область, Тернопіль",50,2017-11-08,364,Оплата ефірного часу на радіо,Реклама на радіо,250044,Центральний офіс,39481037,Україна,"Оплата рекламних послуг (аудіо рекл. на зуп.комплексах) за період 01.10-31.10.17р. згідно рахунку №120/02 від 30.10.2017р., без ПДВ.",2600671275,current,5709.60,Нитка Олег Богданович,,фізична особа
УГП,"Тернопільська область, Тернопіль, проспект Степана Бандери, 38",70,2017-11-07,B7O0IQM0XY,Банківські послуги,Інші витрати,251100,Тернопільська обласна організація,40011526,Тернопільська область,"Комiсiя за виконання платежiв в нацiональнiй валютi, згiдно з вiдкритою офертою банку N б/н вiд 21.09.2015 та тарифiв банку, без ПДВ.",26006055117228,current,3.00,"ПАТ КБ ""Приватбанк""",14360570,юридична особа
УГП,"Тернопільська область, Тернопіль, проспект Степана Бандери, 38",70,2017-11-07,B7O0IQM14Y,Банківські послуги,Інші витрати,251099,Тернопільська обласна організація,40011526,Тернопільська область,"Комiсiя за виконання платежiв в нацiональнiй валютi, згiдно з вiдкритою офертою банку N б/н вiд 21.09.2015 та тарифiв банку, без ПДВ.",26006055117228,current,3.00,"ПАТ КБ ""Приватбанк""",14360570,юридична особа
УГП,"Тернопільська область, Тернопіль, проспект Степана Бандери, 38",70,2017-11-07,99,Банківські послуги,Інші витрати,251098,Тернопільська обласна організація,40011526,Тернопільська область,Комiсiя РКО вiд зарплати за другу половину жовтня 2017р.,26006055117228,current,17.51,"ПАТ КБ ""Приватбанк""",14360570,юридична особа
УГП,"Тернопільська область, Тернопіль, бульвар Тараса Шевченка, 3",63,2017-11-07,96,Податок на доходи,Податкові платежі,251097,Тернопільська обласна організація,40011526,Тернопільська область,ПДФО вiд зарплати за другу половину жовтня 2017р.,26006055117228,current,1566.00,УДКСУ у м. Тернопіль,37977726,юридична особа
УГП,"Тернопільська область, Тернопіль, вулиця Білецька, 1",62,2017-11-07,97,Сплата ЄСВ,Податкові платежі,251096,Тернопільська обласна організація,40011526,Тернопільська область,ЄСВ вiд зарплати за другу половину жовтня 2017р.,26006055117228,current,1914.00,Тернопільська ОДПІ ГУ ДФС в Тернопільській області,39502025,юридична особа
УГП,"Тернопільська область, Тернопіль, проспект Степана Бандери, 38",70,2017-11-07,B7O0IQM0TY,Банківські послуги,Інші витрати,251095,Тернопільська обласна організація,40011526,Тернопільська область,"Комiсiя за виконання платежiв в нацiональнiй валютi, згiдно з вiдкритою офертою банку N б/н вiд 21.09.2015 та тарифiв банку, без ПДВ.",26006055117228,current,3.00,"ПАТ КБ ""Приватбанк""",14360570,юридична особа
УГП,"Тернопільська область, Тернопіль, бульвар Тараса Шевченка, 3",61,2017-11-07,98,Військовий збір,Податкові платежі,251094,Тернопільська обласна організація,40011526,Тернопільська область,Вiйськовий збiр вiд зарплати за другу половину жовтня 2017р.,26006055117228,current,130.50,УДКСУ у м. Тернопіль,37977726,юридична особа
УГП,"Тернопільська область, Бучацький район, Трибухівці",84,2017-11-07,95,"Заробітна плата, премії","Заробітна плата, лікарняні, вагітності, відрядження, компенсації",251004,Тернопільська обласна організація,40011526,Тернопільська область,Зарплата за другу половину жовтня 2017р.,26006055117228,current,2415.00,Кізюк Іван Йосипович,,фізична особа
УГП,"Тернопільська область, Теребовлянський район, Застіноче",84,2017-11-07,95,"Заробітна плата, премії","Заробітна плата, лікарняні, вагітності, відрядження, компенсації",251003,Тернопільська обласна організація,40011526,Тернопільська область,Зарплата за другу половину жовтня 2017р.,26006055117228,current,2817.50,Вітвіцький Олег Іванович,,фізична особа
УГП,"Тернопільська область, Тернопіль",84,2017-11-07,95,"Заробітна плата, премії","Заробітна плата, лікарняні, вагітності, відрядження, компенсації",251002,Тернопільська обласна організація,40011526,Тернопільська область,Зарплата за другу половину жовтня 2017р.,26006055117228,current,1771.00,Богун Андрій Ігорович,,фізична особа
УГП,"Івано-Франківська область, Івано-Франківськ, вулиця Січових стрільців, 15",70,2017-11-07,16C2000034,Банківські послуги,Інші витрати,250877,Івано-Франківська обласна організація,40026836,Івано-Франківська область,Погашення комiсiї за кас. обслуг. по зарахуванню на картки згiдно 16C20000342 вiд 21.12.2016 р.,26005052517967,current,7.14,"ПАТ КБ ""Приватбанк""",14360570,юридична особа
УГП,"Івано-Франківська область, Івано-Франківськ, вулиця Січових стрільців, 30А",51,2017-11-07,214,Оплата ефірного часу на ТБ,Телереклама,250876,Івано-Франківська обласна організація,40026836,Івано-Франківська область,"Оплата за рекламу (сек) згiдно рахунку N 26 вiд 13.10.2017р. у т.ч. ПДВ - 20 % 134,90 грн.",26005052517967,current,809.40,"Філія ПАТ ""НСТУ"" ""Івано-Франківська регіональна дирекція ""Карпати""",40020572,юридична особа
УГП,"Львівська область, Львів, вулиця Сербська, 1",70,2017-11-07,110816,Банківські послуги,Інші витрати,250508,Центральний офіс,39481037,Україна,"Сплата комісії за переказ коштів з поточного рахунку в операційний час за межі Банку за допомогою системи Клієнт-Банк по документу №362, від 07.11.2017. Без ПДВ",2600671275,current,5.00,"АТ ""АКБ ""Львів""",09801546,юридична особа
УГП,"Львівська область, Львів, вулиця Петра Дорошенка, 43",76,2017-11-07,362,Послуги зв’язку,Послуги зв’язку,250507,Центральний офіс,39481037,Україна,"Оплата за телеком.посл.за жовтень 2017 р. зг.дог.№ 4600000000017884 від 26.10.16,зг.рах. №4600000000017884.10..2017 від 31.10.17, в т.ч.ПДВ 12,50 грн",2600671275,current,75.00,"ПАТ ""Укртелеком""",21560766,юридична особа
УГП,"Львівська область, Львів, вулиця Сербська, 1",70,2017-11-07,97314,Банківські послуги,Інші витрати,250506,Центральний офіс,39481037,Україна,"Сплата комісії за переказ коштів з поточного рахунку в операційний час за межі Банку за допомогою системи Клієнт-Банк по документу №361, від 07.11.2017. Без ПДВ",2600671275,current,5.00,"АТ ""АКБ ""Львів""",09801546,юридична особа
УГП,"Львівська область, Львів, вулиця Сербська, 1",70,2017-11-07,97171,Банківські послуги,Інші витрати,250505,Центральний офіс,39481037,Україна,"Сплата комісії за переказ коштів з поточного рахунку в операційний час за межі Банку за допомогою системи Клієнт-Банк по документу №358, від 07.11.2017. Без ПДВ",2600671275,current,5.00,"АТ ""АКБ ""Львів""",09801546,юридична особа
УГП,"Львівська область, Львів, вулиця Сербська, 1",70,2017-11-07,97170,Банківські послуги,Інші витрати,250504,Центральний офіс,39481037,Україна,"Сплата комісії за переказ коштів з поточного рахунку в операційний час за межі Банку за допомогою системи Клієнт-Банк по документу №360, від 07.11.2017. Без ПДВ",2600671275,current,5.00,"АТ ""АКБ ""Львів""",09801546,юридична особа
УГП,"Львівська область, Львів, вулиця Сербська, 1",70,2017-11-07,97164,Банківські послуги,Інші витрати,250503,Центральний офіс,39481037,Україна,"Сплата комісії за переказ коштів з поточного рахунку в операційний час за межі Банку за допомогою системи Клієнт-Банк по документу №359, від 07.11.2017. Без ПДВ",2600671275,current,5.00,"АТ ""АКБ ""Львів""",09801546,юридична особа
УГП,"Львівська область, Львів, вулиця Конотопська, 6/8",61,2017-11-07,358,Військовий збір,Податкові платежі,250502,Центральний офіс,39481037,Україна,"*;101;39481037; утриманий військовий збір за цив.-прав.договором №Ц/2017-1 від 11.10.2017р. із винагороди за жовтень 2017.р,1,5% - 75,00 грн.;;;",2600671275,current,75.00,УДКСУ у Франківському районі м. Львова,37965138,юридична особа
УГП,"Львівська область, Львів, вулиця Конотопська, 6/8",63,2017-11-07,359,Податок на доходи,Податкові платежі,250501,Центральний офіс,39481037,Україна,"*;101;39481037; податок на доходи фізичних осіб за цив.-прав.договором №Ц/2017-1 від 11.10.2017р. із винагороди за жовтень 2017р.,18% - 900,00грн.;;;",2600671275,current,900.00,УДКСУ у Франківському районі м. Львова,37965138,юридична особа
УГП,"Львівська область, Львів, вулиця Стрийська, 35",62,2017-11-07,360,Сплата ЄСВ,Податкові платежі,250500,Центральний офіс,39481037,Україна,"*;101;39481037; нарах. єдиного внеску на винагороду за жовтень 2017р. за цив.-прав.договором №Ц/2017-1 від 11.10.2017р. 22,0% - 1100,00 грн.;;;",2600671275,current,1100.00,Залізнична ОДПІ ГУ ДФС у Львівській області,39554382,юридична особа
УГП,"Київська обл., Бориспіль",82,2017-11-07,361,"Гонорари, в тому числі за надані консультаційні послуги","Гонорари, в тому числі за надані консультаційні послуги",250043,Центральний офіс,39481037,Україна,"Оплата на карту 5168745012660707 Дрога Каріна Миколаївна, ІПН 3414012420, винагороди за цив.-прав.договором №Ц/2017-1 від 11.10.17р., за жовтень 2017р., без ПДВ",2600671275,current,4025.00,Дрога Каріна Миколаївна,,фізична особа
УГП,"Івано-Франківська область, Івано-Франківськ, вулиця Незалежності",62,2017-11-06,210,Сплата ЄСВ,Податкові платежі,250875,Івано-Франківська обласна організація,40026836,Івано-Франківська область,*;101;40026836;Сплата єдиного соцiального внеску з зарплати за жовтень 2017р;;;,26005052517967,current,781.00,ДПІ в м. Івано-Франківську ГУ ДФС в Івано-Франківській області,39508514,юридична особа
УГП,"Івано-Франківська область, Івано-Франківськ, вулиця Січових стрільців, 15",70,2017-11-06,B6O0IM77OY,Банківські послуги,Інші витрати,250874,Івано-Франківська обласна організація,40026836,Івано-Франківська область,"Комiсiя за виконання платежiв в нацiональнiй валютi, згiдно з вiдкритою офертою банку N б/н вiд 29.09.2015 та тарифiв банку, без ПДВ.",26005052517967,current,3.00,"ПАТ КБ ""Приватбанк""",14360570,юридична особа
УГП,"Івано-Франківська область, Івано-Франківськ, вулиця Незалежності, 46",61,2017-11-06,212,Військовий збір,Податкові платежі,250873,Івано-Франківська обласна організація,40026836,Івано-Франківська область,*;101;40026836;Сплата вiйськового збору з зарплати за жовтень 2017р;;;,26005052517967,current,53.25,УДКСУ у м. Івано-Франківську,37952250,юридична особа
УГП,"Івано-Франківська область, Івано-Франківськ, вулиця Січових стрільців, 15",70,2017-11-06,B6O0IM77SY,Банківські послуги,Інші витрати,250872,Івано-Франківська обласна організація,40026836,Івано-Франківська область,"Комiсiя за виконання платежiв в нацiональнiй валютi, згiдно з вiдкритою офертою банку N б/н вiд 29.09.2015 та тарифiв банку, без ПДВ.",26005052517967,current,3.00,"ПАТ КБ ""Приватбанк""",14360570,юридична особа
УГП,"Івано-Франківська область, Івано-Франківськ, вулиця Незалежності, 46",63,2017-11-06,211,Податок на доходи,Податкові платежі,250871,Івано-Франківська обласна організація,40026836,Івано-Франківська область,*;101;40026836;Податок з доходiв фiзичних осiб з зарплати за жовтень 2017р;;;,26005052517967,current,639.00,УДКСУ у м. Івано-Франківську,37952250,юридична особа
УГП,"Івано-Франківська область, Івано-Франківськ, вулиця Січових стрільців, 15",70,2017-11-06,B6O0IM77WY,Банківські послуги,Інші витрати,250870,Івано-Франківська обласна організація,40026836,Івано-Франківська область,"Комiсiя за виконання платежiв в нацiональнiй валютi, згiдно з вiдкритою офертою банку N б/н вiд 29.09.2015 та тарифiв банку, без ПДВ.",26005052517967,current,3.00,"ПАТ КБ ""Приватбанк""",14360570,юридична особа
УГП,"Івано-Франківська область, Івано-Франківськ",84,2017-11-06,213,"Заробітна плата, премії","Заробітна плата, лікарняні, вагітності, відрядження, компенсації",250643,Івано-Франківська обласна організація,40026836,Івано-Франківська область,Заробітна плата за жовтень 2017р.,26005052517967,current,1328.25,Федоляк Наталія Орестівна,,фізична особа
УГП,"Івано-Франківська область, Івано-Франківськ",84,2017-11-06,213,"Заробітна плата, премії","Заробітна плата, лікарняні, вагітності, відрядження, компенсації",250642,Івано-Франківська обласна організація,40026836,Івано-Франківська область,Заробітна плата за жовтень 2017р.,26005052517967,current,1529.50,Романчук Любомир Петрович,,фізична особа
УГП,"Львівська область, Львів, вулиця Сербська, 1",70,2017-11-03,44852,Банківські послуги,Інші витрати,250499,Центральний офіс,39481037,Україна,"Сплата комісії за переказ коштів з поточного рахунку в операційний час за межі Банку за допомогою системи Клієнт-Банк по документу №357, від 03.11.2017. Без ПДВ",2600671275,current,5.00,"АТ ""АКБ ""Львів""",09801546,юридична особа
УГП,"Київ, провулок Руслана Лужевського, 14",79,2017-11-03,357,"Оренда будинків і приміщень та експлуатаційні витрати (прибирання, страхування орендованих будинків, охорона, сигналізація, ремонт, вивіз сміття, тощо)",Оренда нерухомості,250498,Центральний офіс,39481037,Україна,"Оплата відшкодування комунальних послуг за вересень 2017р. згідно Договору суборенди №201 від 24.07.2017р., згідно рахунку №129 від 30.09.17р., без ПДВ",2600671275,current,140.00,"ТОВ ""КБД Груп""",40833518,юридична особа
УГП,"Івано-Франківська область, Івано-Франківськ, площа Міцкевича, 8",79,2017-11-02,209,"Оренда будинків і приміщень та експлуатаційні витрати (прибирання, страхування орендованих будинків, охорона, сигналізація, ремонт, вивіз сміття, тощо)",Оренда нерухомості,250869,Івано-Франківська обласна організація,40026836,Івано-Франківська область,Оплата за оренду примiщення за листопад 2017 року згiдно рахунку N СФ-1031011 вiд 31.10.2017р. Без ПДВ,26005052517967,current,4181.00,"ТОВ ""Крокус-Станіслав""",38162070,юридична особа
УГП,"Івано-Франківська область, Івано-Франківськ, вулиця Січових стрільців, 15",70,2017-11-02,B2O0ICZ79Y,Банківські послуги,Інші витрати,250868,Івано-Франківська обласна організація,40026836,Івано-Франківська область,"Комiсiя за виконання платежiв в нацiональнiй валютi, згiдно з вiдкритою офертою банку N б/н вiд 29.09.2015 та тарифiв банку, без ПДВ.",26005052517967,current,3.00,"ПАТ КБ ""Приватбанк""",14360570,юридична особа
УГП,"Івано-Франківська область, Івано-Франківськ, вулиця Михайла Грушевського, 21",51,2017-11-02,208,Оплата ефірного часу на ТБ,Телереклама,250867,Івано-Франківська обласна організація,40026836,Івано-Франківська область,"оплата за iнформацiйнi послуги згiдно рах.N 296 вiд 05.10.2017р., в т.ч.ПДВ - 500,00грн.",26005052517967,current,3000.00,"Івано-Франківське обласне телебачення ""Галичина""",13641427,юридична особа
УГП,"Івано-Франківська область, Івано-Франківськ, вулиця Січових стрільців, 15",70,2017-11-02,B2O0IAX0NY,Банківські послуги,Інші витрати,250866,Івано-Франківська обласна організація,40026836,Івано-Франківська область,"Комiсiя за виконання платежiв в нацiональнiй валютi, згiдно з вiдкритою офертою банку N б/н вiд 29.09.2015 та тарифiв банку, без ПДВ.",26005052517967,current,3.00,"ПАТ КБ ""Приватбанк""",14360570,юридична особа
УГП,"Львівська область, Львів, вулиця Сербська, 1",70,2017-11-02,37444,Банківські послуги,Інші витрати,250497,Центральний офіс,39481037,Україна,"Сплата комісії за переказ коштів з поточного рахунку в операційний час за межі Банку за допомогою системи Клієнт-Банк по документу №356, від 02.11.2017. Без ПДВ",2600671275,current,5.00,"АТ ""АКБ ""Львів""",09801546,юридична особа
УГП,"Львівська область, Львів, вулиця Сербська, 1",70,2017-11-02,29696,Банківські послуги,Інші витрати,250495,Центральний офіс,39481037,Україна,"Сплата комісії за зарахуванню коштів на рахунки фізичних осіб підприємства по зарплатному проекту по документу №29692, від 02.11.2017. Без ПДВ.",2600671275,current,75.30,"АТ ""АКБ ""Львів""",09801546,юридична особа
УГП,"Львівська область, Львів, вулиця Сербська, 1",70,2017-11-02,27777,Банківські послуги,Інші витрати,250494,Центральний офіс,39481037,Україна,"Сплата комісії за переказ коштів з поточного рахунку в операційний час за межі Банку за допомогою системи Клієнт-Банк по документу №355, від 02.11.2017. Без ПДВ",2600671275,current,5.00,"АТ ""АКБ ""Львів""",09801546,юридична особа
УГП,"Львівська область, Львів, вулиця Сербська, 1",70,2017-11-02,27731,Банківські послуги,Інші витрати,250493,Центральний офіс,39481037,Україна,"Сплата комісії за переказ коштів з поточного рахунку в операційний час за межі Банку за допомогою системи Клієнт-Банк по документу №353, від 02.11.2017. Без ПДВ",2600671275,current,5.00,"АТ ""АКБ ""Львів""",09801546,юридична особа
УГП,"Львівська область, Львів, вулиця Сербська, 1",70,2017-11-02,27730,Банківські послуги,Інші витрати,250492,Центральний офіс,39481037,Україна,"Сплата комісії за переказ коштів з поточного рахунку в операційний час за межі Банку за допомогою системи Клієнт-Банк по документу №354, від 02.11.2017. Без ПДВ",2600671275,current,5.00,"АТ ""АКБ ""Львів""",09801546,юридична особа
УГП,"Львівська область, Львів, вулиця Сербська, 1",70,2017-11-02,27729,Банківські послуги,Інші витрати,250491,Центральний офіс,39481037,Україна,"Сплата комісії за переказ коштів з поточного рахунку в операційний час за межі Банку за допомогою системи Клієнт-Банк по документу №352, від 02.11.2017. Без ПДВ",2600671275,current,5.00,"АТ ""АКБ ""Львів""",09801546,юридична особа
УГП,"Львівська область, Львів, вулиця Конотопська, 6/8",61,2017-11-02,352,Військовий збір,Податкові платежі,250490,Центральний офіс,39481037,Україна,"*;101;39481037; утриманий військовий збір із заробітної плати за 2 половину жовтня 2017р.,1,5% - 233,85 грн.;;;",2600671275,current,233.85,УДКСУ у Франківському районі м. Львова,37965138,юридична особа
УГП,"Львівська область, Львів, вулиця Конотопська, 6/8",63,2017-11-02,353,Податок на доходи,Податкові платежі,250489,Центральний офіс,39481037,Україна,"*;101;39481037; податок на доходи фізичних осіб із зароб.плати за 2 половину жовтня 2017р.,18% - 2806,29 грн.;;;",2600671275,current,2806.29,УДКСУ у Франківському районі м. Львова,37965138,юридична особа
УГП,"Львівська область, Львів, вулиця Стрийська, 35",62,2017-11-02,354,Сплата ЄСВ,Податкові платежі,250488,Центральний офіс,39481037,Україна,"*;101;39481037; 22,0% нарах. єдиного внеску на зароб.плату за 2 половину жовтня 2017р. - 3429,90 грн.;;;",2600671275,current,3429.90,Залізнична ОДПІ ГУ ДФС у Львівській області,39554382,юридична особа
УГП,"Львівська область, Львів",84,2017-11-02,29707,"Заробітна плата, премії","Заробітна плата, лікарняні, вагітності, відрядження, компенсації",250042,Центральний офіс,39481037,Україна,Заробітна плата за 2 половину жовтня 2017 року,2600671275,current,1514.17,Герич Ганна Вікторівна,,фізична особа
УГП,"Тернопільська область, Чортківський район, Косів",84,2017-11-02,29705,"Заробітна плата, премії","Заробітна плата, лікарняні, вагітності, відрядження, компенсації",250041,Центральний офіс,39481037,Україна,Заробітна плата за 2 половину жовтня 2017 року,2600671275,current,3327.33,Велиган Ігор Богданович,,фізична особа
УГП,"Львівська область, Львів",84,2017-11-02,29700,"Заробітна плата, премії","Заробітна плата, лікарняні, вагітності, відрядження, компенсації",250040,Центральний офіс,39481037,Україна,Заробітна плата за 2 половину жовтня 2017 року,2600671275,current,3327.33,Лозинський Роман Михайлович,,фізична особа
УГП,"Львівська область, Львів",84,2017-11-02,29699,"Заробітна плата, премії","Заробітна плата, лікарняні, вагітності, відрядження, компенсації",250039,Центральний офіс,39481037,Україна,Заробітна плата за 2 половину жовтня 2017 року,2600671275,current,4381.50,Панкевич Богдан Романович,,фізична особа
УГП,"Львівська область, Львів",79,2017-11-02,355,"Оренда будинків і приміщень та експлуатаційні витрати (прибирання, страхування орендованих будинків, охорона, сигналізація, ремонт, вивіз сміття, тощо)",Оренда нерухомості,250038,Центральний офіс,39481037,Україна,"Попередня оплата за оренду приміщення за листопад 2017р., згідно рахунку №11 від 01.11.2017р., згідно договору №01/2016 від 05.09.2016р., без ПДВ.",2600671275,current,5280.00,Монастирська Олеся Володимирівна,,фізична особа
УГП,"Тернопільська область, Тернопіль, проспект Степана Бандери, 38",70,2017-11-01,AS7av186fp,Банківські послуги,Інші витрати,251093,Тернопільська обласна організація,40011526,Тернопільська область,"Комiсiя за обслуговування рахунку жовтень 2017р. згiдно договору банкiвського рахунку вiд 21.09.2015, без ПДВ",26006055117228,current,100.00,"ПАТ КБ ""Приватбанк""",14360570,юридична особа
УГП,"Івано-Франківська область, Івано-Франківськ, вулиця Січових стрільців, 15",70,2017-11-01,AS7av2ggip,Банківські послуги,Інші витрати,250865,Івано-Франківська обласна організація,40026836,Івано-Франківська область,"Комiсiя за обслуговування рахунку жовтень 2017р. згiдно договору банкiвського рахунку вiд 29.09.2015, без ПДВ",26005052517967,current,100.00,"ПАТ КБ ""Приватбанк""",14360570,юридична особа
УГП,"Львівська область, Львів, вулиця Сербська, 1",70,2017-11-01,19094,Банківські послуги,Інші витрати,250487,Центральний офіс,39481037,Україна,"Сплата комісії за переказ коштів з поточного рахунку в операційний час за межі Банку за допомогою системи Клієнт-Банк по документу №351, від 01.11.2017. Без ПДВ",2600671275,current,5.00,"АТ ""АКБ ""Львів""",09801546,юридична особа
УГП,"Київ, провулок Руслана Лужевського, 14",79,2017-11-01,351,"Оренда будинків і приміщень та експлуатаційні витрати (прибирання, страхування орендованих будинків, охорона, сигналізація, ремонт, вивіз сміття, тощо)",Оренда нерухомості,250486,Центральний офіс,39481037,Україна,"Попередня оплата за оренду приміщення за листопад 2017р. згідно Договору суборенди №201 від 24.07.2017р., згідно рахунку №146 від 23.10.17р., без ПДВ.",2600671275,current,7000.00,"ТОВ ""КБД Груп""",40833518,юридична особа
УГП,"Львівська область, Львів, вулиця Сербська, 1",70,2017-11-01,18987,Банківські послуги,Інші витрати,250485,Центральний офіс,39481037,Україна,"Сплата комісії за переказ коштів з поточного рахунку в операційний час за межі Банку за допомогою системи Клієнт-Банк по документу №350, від 01.11.2017. Без ПДВ",2600671275,current,5.00,"АТ ""АКБ ""Львів""",09801546,юридична особа
УГП,"Львівська область, Львів, вулиця Сербська, 1",70,2017-10-31,526171,Банківські послуги,Інші витрати,250979,Львівська обласна організація,40014820,Львівська область,"Комісія за pозрахункове обслуговування Клієнтів по системі ""Клієнт-Банк"" за період 01.10.17-31.10.17 зг. договору. №N40.00.002425/РКО вiд 17.09.2015.",2600477437,current,50.00,"АТ ""АКБ ""Львів""",09801546,юридична особа
УГП,"Львівська область, Львів, вулиця Сербська, 1",70,2017-10-31,526165,Банківські послуги,Інші витрати,250978,Львівська обласна організація,40014820,Львівська область,Комісія за ведення функціонуючого рахунку за період 01.10.17-31.10.17 зг. договору. №N40.00.002425/РКО вiд 17.09.2015.,2600477437,current,100.00,"АТ ""АКБ ""Львів""",09801546,юридична особа
УГП,"Львівська область, Львів, вулиця Сербська, 1",70,2017-10-31,523472,Банківські послуги,Інші витрати,250483,Центральний офіс,39481037,Україна,"Комісія за pозрахункове обслуговування Клієнтів по системі ""Клієнт-Банк"" за період 01.10.17-31.10.17 зг. договору. №N40.00.002175/РКО вiд 10.12.2014.",2600671275,current,50.00,"АТ ""АКБ ""Львів""",09801546,юридична особа
УГП,"Львівська область, Львів, вулиця Сербська, 1",70,2017-10-31,523471,Банківські послуги,Інші витрати,250482,Центральний офіс,39481037,Україна,Комісія за ведення функціонуючого рахунку за період 01.10.17-31.10.17 зг. договору. №N40.00.002175/РКО вiд 10.12.2014.,2600671275,current,100.00,"АТ ""АКБ ""Львів""",09801546,юридична особа
УГП,"Львівська область, Львів, вулиця Сербська, 1",70,2017-10-31,468586,Банківські послуги,Інші витрати,250481,Центральний офіс,39481037,Україна,"Сплата комісії за переказ коштів з поточного рахунку в операційний час за межі Банку за допомогою системи Клієнт-Банк по документу №349, від 31.10.2017. Без ПДВ",2600671275,current,5.00,"АТ ""АКБ ""Львів""",09801546,юридична особа
УГП,"Львівська область, Львів, вулиця Кондукторська, 16",79,2017-10-31,349,"Оренда будинків і приміщень та експлуатаційні витрати (прибирання, страхування орендованих будинків, охорона, сигналізація, ремонт, вивіз сміття, тощо)",Оренда нерухомості,250480,Центральний офіс,39481037,Україна,"Оплата за послуги центр.охорони обʼєкта за жовтень 2017р., зг. Рах.№СФ-0000787 від 31.10.2017р., зг.дог. № ЦС 040117 від 17.01.2017р., без ПДВ",2600671275,current,400.00,"ПП ""Приватна безпека""",33562906,юридична особа
УГП,"Львівська область, Львів, вулиця Сербська, 1",70,2017-10-30,420910,Банківські послуги,Інші витрати,250479,Центральний офіс,39481037,Україна,"Сплата комісії за переказ коштів з поточного рахунку в операційний час за межі Банку за допомогою системи Клієнт-Банк по документу №348, від 30.10.2017. Без ПДВ",2600671275,current,5.00,"АТ ""АКБ ""Львів""",09801546,юридична особа
УГП,"Тернопільська область, Тернопіль, вулиця Руська, 52",50,2017-10-30,348,Оплата ефірного часу на радіо,Реклама на радіо,250478,Центральний офіс,39481037,Україна,"Оплата за розміщення інформ.матеріалів на ""УХ-радіо"" 101,1ФМ згідно рахунку№СФ-0000178 від 27.10.2017р., в т.ч. ПДВ 1211,10 грн.",2600671275,current,7266.60,"ПП телерадіоорганізація ""УХ-радіо""",31994907,юридична особа
УГП,"Львівська область, Львів, вулиця Сербська, 1",70,2017-10-30,420830,Банківські послуги,Інші витрати,250477,Центральний офіс,39481037,Україна,"Сплата комісії за переказ коштів з поточного рахунку в операційний час за межі Банку за допомогою системи Клієнт-Банк по документу №347, від 30.10.2017. Без ПДВ",2600671275,current,5.00,"АТ ""АКБ ""Львів""",09801546,юридична особа
УГП,"Тернопільська область, Тернопіль, вулиця Руська, 52",50,2017-10-30,347,Оплата ефірного часу на радіо,Реклама на радіо,250476,Центральний офіс,39481037,Україна,"Оплата за розміщення інформ.матеріалів на радіо ""ФМ Галичина"" 102,3 в м.Тернопіль, згід.рахунку-факт.№СФ-0000178 від 27.10.2017р., в т.ч. ПДВ 613,25 грн.",2600671275,current,3679.50,"ПП ""Телерадіоорганізація ""Українська хвиля""",24631372,юридична особа
УГП,"Львівська область, Львів, вулиця Сербська, 1",70,2017-10-27,399688,Банківські послуги,Інші витрати,250475,Центральний офіс,39481037,Україна,"Сплата комісії за переказ коштів з поточного рахунку в операційний час за межі Банку за допомогою системи Клієнт-Банк по документу №346, від 27.10.2017. Без ПДВ",2600671275,current,5.00,"АТ ""АКБ ""Львів""",09801546,юридична особа
УГП,"Львівська область, Львів, вулиця Джерельна, 75",82,2017-10-27,346,"Гонорари, в тому числі за надані консультаційні послуги","Гонорари, в тому числі за надані консультаційні послуги",250474,Центральний офіс,39481037,Україна,"Попередня оплата за аналіт.послуги, консульт., організ.соц.дослідж. згідно договору №17/10/17 від 17.10.17р., згід.рах.-факт.№26/10/17 від 26.10.17р., без ПДВ.",2600671275,current,100000.00,ТОВ ʼКонсалтингова компанія ʼФАМАʼ,41664187,юридична особа
УГП,"Львівська область, Львів, вулиця Сербська, 1",70,2017-10-26,391885,Банківські послуги,Інші витрати,250473,Центральний офіс,39481037,Україна,"Сплата комісії за переказ коштів з поточного рахунку в операційний час за межі Банку за допомогою системи Клієнт-Банк по документу №345, від 26.10.2017. Без ПДВ",2600671275,current,5.00,"АТ ""АКБ ""Львів""",09801546,юридична особа
УГП,"Київ, вулиця Кирилівська, 86",50,2017-10-26,345,Оплата ефірного часу на радіо,Реклама на радіо,250472,Центральний офіс,39481037,Україна,"Оплата за рекл.послуги на каналі ""Радіо-Ера"" ФМ у жовтні 2017р, зг.рах.№374 від 25.10.17р., зг.дог.№44 від 25.10.17р., в т.ч. ПДВ 136,00 грн.",2600671275,current,816.00,"ТОВ ""ТРК ""Радіо-Ера""",30019068,юридична особа
УГП,"Тернопільська область, Лановецький район, Ванжулів",46,2017-10-25,94,Перерахування коштів на виборчі рахунки партії,Перерахування коштів до виборчих фондів,251092,Тернопільська обласна організація,40011526,Тернопільська область,"Перерахування коштiв на накопичувальний рахунок виборчого фонду Лановецької РО ПП ""Українська Галицька партiя"". вiд 25.10.2017р. Без ПДВ",26006055117228,current,3050.00,Тернопільська обласна організація Українська Галицька Партія,40011526,юридична особа
УГП,"Івано-Франківська область, Івано-Франківськ, вулиця Михайла Грушевського, 21",51,2017-10-25,207,Оплата ефірного часу на ТБ,Телереклама,250864,Івано-Франківська обласна організація,40026836,Івано-Франківська область,"оплата за трансляцiю програми згiдно рах.N 295 вiд 05.10.2017р., в т.ч.ПДВ - 1000,00грн.",26005052517967,current,6000.00,"Івано-Франківське обласне телебачення ""Галичина""",13641427,юридична особа
УГП,"Івано-Франківська область, Івано-Франківськ, вулиця Січових стрільців, 15",70,2017-10-25,APO0HLJ78Y,Банківські послуги,Інші витрати,250863,Івано-Франківська обласна організація,40026836,Івано-Франківська область,"Комiсiя за виконання платежiв в нацiональнiй валютi, згiдно з вiдкритою офертою банку N б/н вiд 29.09.2015 та тарифiв банку, без ПДВ.",26005052517967,current,3.00,"ПАТ КБ ""Приватбанк""",14360570,юридична особа
УГП,"Львівська область, Львів, вулиця Сербська, 1",70,2017-10-24,356778,Банківські послуги,Інші витрати,250471,Центральний офіс,39481037,Україна,"Сплата комісії за переказ коштів з поточного рахунку в операційний час за межі Банку за допомогою системи Клієнт-Банк по документу №344, від 24.10.2017. Без ПДВ",2600671275,current,5.00,"АТ ""АКБ ""Львів""",09801546,юридична особа
УГП,"Львівська область, Львів, вулиця Володимира Великого, 5А",49,2017-10-24,344,Публікування матеріалів у друкованих ЗМІ,Реклама в друкованих ЗМІ,250470,Центральний офіс,39481037,Україна,"Попередня оплата за рекл.-інформ.послуги 26.10.17 у газеті Експрес, четвер,Івано-Франківські нов. зг.рахунку №1002/1 від 23.10.2017р., в т.ч. ПДВ 1077,60 грн.",2600671275,current,6465.60,"ТОВ ""Газета ""Експрес”""",30823524,юридична особа
УГП,"Тернопільська область, Зборівський район, Залізці, вулиця Олени Пчілки",46,2017-10-23,92,Перерахування коштів на виборчі рахунки партії,Перерахування коштів до виборчих фондів,251091,Тернопільська обласна організація,40011526,Тернопільська область,"Перерахування коштiв на накопичувальний рахунок виборчого фонду Зборiвської РО ПП ""Українська Галицька партiя""",26006055117228,current,3050.00,Тернопільська обласна організація Українська Галицька Партія,40011526,юридична особа
УГП,"Тернопільська область, Гусятинський район, Гусятин, вулиця Шевченка, 2а, 1",46,2017-10-23,93,Перерахування коштів на виборчі рахунки партії,Перерахування коштів до виборчих фондів,251090,Тернопільська обласна організація,40011526,Тернопільська область,"Перерахування коштiв на накопичувальний рахунок виборчого фонду Гусятинської РО ПП ""Українська Галицька партiя""",26006055117228,current,6382.00,Тернопільська обласна організація Українська Галицька Партія,40011526,юридична особа
УГП,"Тернопільська область, Тернопіль, проспект Степана Бандери, 38",70,2017-10-23,ANO0HF4JTY,Банківські послуги,Інші витрати,251089,Тернопільська обласна організація,40011526,Тернопільська область,"Комiсiя за виконання платежiв в нацiональнiй валютi, згiдно з вiдкритою офертою банку N б/н вiд 21.09.2015 та тарифiв банку, без ПДВ.",26006055117228,current,3.00,"ПАТ КБ ""Приватбанк""",14360570,юридична особа
УГП,"Львівська область, Львів, вулиця Сербська, 1",70,2017-10-23,334646,Банківські послуги,Інші витрати,250469,Центральний офіс,39481037,Україна,"Сплата комісії за переказ коштів з поточного рахунку в операційний час за межі Банку за допомогою системи Клієнт-Банк по документу №343, від 23.10.2017. Без ПДВ",2600671275,current,5.00,"АТ ""АКБ ""Львів""",09801546,юридична особа
УГП,"Тернопільська область, Тернопіль, вулиця Руська, 44",54,2017-10-23,343,Виготовлення відеозаписів,Реклама (без класифікації),250468,Центральний офіс,39481037,Україна,"Оплата за послуги з виготовл.відеоролика (зйом., монт.), згідно рахунку-фактури №78 від 19.10.2017р., без ПДВ.",2600671275,current,2000.00,"ПП ""ТРК ""Смайл""Телеканал ""ІНТБ""",34473456,юридична особа
УГП,"Тернопільська область, Тернопіль, проспект Степана Бандери, 38",70,2017-10-20,AKO0H8L5PY,Банківські послуги,Інші витрати,251088,Тернопільська обласна організація,40011526,Тернопільська область,"Комiсiя за виконання платежiв в нацiональнiй валютi, згiдно з вiдкритою офертою банку N б/н вiд 21.09.2015 та тарифiв банку, без ПДВ.",26006055117228,current,3.00,"ПАТ КБ ""Приватбанк""",14360570,юридична особа
УГП,"Тернопільська область, Тернопіль, проспект Степана Бандери, 38",70,2017-10-20,AKO0H8L5YY,Банківські послуги,Інші витрати,251087,Тернопільська обласна організація,40011526,Тернопільська область,"Комiсiя за виконання платежiв в нацiональнiй валютi, згiдно з вiдкритою офертою банку N б/н вiд 21.09.2015 та тарифiв банку, без ПДВ.",26006055117228,current,3.00,"ПАТ КБ ""Приватбанк""",14360570,юридична особа
УГП,"Тернопільська область, Тернопіль, бульвар Тараса Шевченка, 3",61,2017-10-20,88,Військовий збір,Податкові платежі,251085,Тернопільська обласна організація,40011526,Тернопільська область,Вiйськовий збiр вiд зарплати за першу половину жовтня 2017р.,26006055117228,current,132.00,УДКСУ у м. Тернопіль,37977726,юридична особа
УГП,"Тернопільська область, Тернопіль, вулиця Білецька, 1",62,2017-10-20,87,Сплата ЄСВ,Податкові платежі,251084,Тернопільська обласна організація,40011526,Тернопільська область,ЄСВ вiд зарплати за першу половину жовтня 2017р.,26006055117228,current,1936.00,Тернопільська ОДПІ ГУ ДФС в Тернопільській області,39502025,юридична особа
УГП,"Тернопільська область, Тернопіль, проспект Степана Бандери, 38",70,2017-10-20,AKO0H8JHYY,Банківські послуги,Інші витрати,251083,Тернопільська обласна організація,40011526,Тернопільська область,"Комiсiя за виконання платежiв в нацiональнiй валютi, згiдно з вiдкритою офертою банку N б/н вiд 21.09.2015 та тарифiв банку, без ПДВ.",26006055117228,current,3.00,"ПАТ КБ ""Приватбанк""",14360570,юридична особа
УГП,"Тернопільська область, Тернопіль, проспект Степана Бандери, 38",70,2017-10-20,AKO0H8JI5Y,Банківські послуги,Інші витрати,251082,Тернопільська обласна організація,40011526,Тернопільська область,"Комiсiя за виконання платежiв в нацiональнiй валютi, згiдно з вiдкритою офертою банку N б/н вiд 21.09.2015 та тарифiв банку, без ПДВ.",26006055117228,current,3.00,"ПАТ КБ ""Приватбанк""",14360570,юридична особа
УГП,"Тернопільська область, Тернопіль, проспект Степана Бандери, 38",70,2017-10-20,AKO0H8JICY,Банківські послуги,Інші витрати,251081,Тернопільська обласна організація,40011526,Тернопільська область,"Комiсiя за виконання платежiв в нацiональнiй валютi, згiдно з вiдкритою офертою банку N б/н вiд 21.09.2015 та тарифiв банку, без ПДВ.",26006055117228,current,3.00,"ПАТ КБ ""Приватбанк""",14360570,юридична особа
УГП,"Тернопільська область, Тернопіль, бульвар Тараса Шевченка, 3",63,2017-10-20,86,Податок на доходи,Податкові платежі,251080,Тернопільська обласна організація,40011526,Тернопільська область,ПДФО вiд зарплати за першу половину жовтня 2017р.,26006055117228,current,1584.00,УДКСУ у м. Тернопіль,37977726,юридична особа
УГП,"Тернопільська область, Тернопіль, проспект Степана Бандери, 38",70,2017-10-20,89,Банківські послуги,Інші витрати,251079,Тернопільська обласна організація,40011526,Тернопільська область,Комiсiя РКО вiд зарплати за першу половину жовтня 2017р.,26006055117228,current,17.71,"ПАТ КБ ""Приватбанк""",14360570,юридична особа
УГП,"Тернопільська область, Тернопіль",79,2017-10-20,89,"Оренда будинків і приміщень та експлуатаційні витрати (прибирання, страхування орендованих будинків, охорона, сигналізація, ремонт, вивіз сміття, тощо)",Оренда нерухомості,251001,Тернопільська обласна організація,40011526,Тернопільська область,Оплата за оренду згiдно договору N28 вiд 01.11.2015р. за жовтень 2017р.,26006055117228,current,2500.68,Клепач Валентина Анатоліївна,,фізична особа
УГП,"Тернопільська область, Бучацький район, Трибухівці",84,2017-10-20,85,"Заробітна плата, премії","Заробітна плата, лікарняні, вагітності, відрядження, компенсації",251000,Тернопільська обласна організація,40011526,Тернопільська область,Зарплата за першу половину жовтня 2017р.,26006055117228,current,2415.00,Кізюк Іван Йосипович,,фізична особа
УГП,"Тернопільська область, Теребовлянський район, Застіноче",84,2017-10-20,85,"Заробітна плата, премії","Заробітна плата, лікарняні, вагітності, відрядження, компенсації",250999,Тернопільська обласна організація,40011526,Тернопільська область,Зарплата за першу половину жовтня 2017р.,26006055117228,current,2817.50,Вітвіцький Олег Іванович,,фізична особа
УГП,"Тернопільська область, Тернопіль",84,2017-10-20,85,"Заробітна плата, премії","Заробітна плата, лікарняні, вагітності, відрядження, компенсації",250998,Тернопільська обласна організація,40011526,Тернопільська область,Зарплата за першу половину жовтня 2017р.,26006055117228,current,1851.50,Богун Андрій Ігорович,,фізична особа
УГП,"Івано-Франківська область, Івано-Франківськ, вулиця Січових стрільців, 15",70,2017-10-20,206,Банківські послуги,Інші витрати,250862,Івано-Франківська обласна організація,40026836,Івано-Франківська область,Комiсiя РКО вiд авансу за жовтень 2017р.,26005052517967,current,6.94,"ПАТ КБ ""Приватбанк""",14360570,юридична особа
УГП,"Івано-Франківська область, Івано-Франківськ, вулиця Незалежності, 46",63,2017-10-20,203,Податок на доходи,Податкові платежі,250861,Івано-Франківська обласна організація,40026836,Івано-Франківська область,*;101;40026836;Податок з доходiв фiзичних осiб з авансу за жовтень 2017р;;;,26005052517967,current,621.00,УДКСУ у м. Івано-Франківську,37952250,юридична особа
УГП,"Івано-Франківська область, Івано-Франківськ, вулиця Січових стрільців, 15",70,2017-10-20,AKO0H7GV0Y,Банківські послуги,Інші витрати,250860,Івано-Франківська обласна організація,40026836,Івано-Франківська область,"Комiсiя за виконання платежiв в нацiональнiй валютi, згiдно з вiдкритою офертою банку N б/н вiд 29.09.2015 та тарифiв банку, без ПДВ.",26005052517967,current,3.00,"ПАТ КБ ""Приватбанк""",14360570,юридична особа
УГП,"Івано-Франківська область, Івано-Франківськ, вулиця Незалежності",62,2017-10-20,204,Сплата ЄСВ,Податкові платежі,250859,Івано-Франківська обласна організація,40026836,Івано-Франківська область,*;101;40026836;Сплата єдиного соцiального внеску з авансу за жовтень 2017р;;;,26005052517967,current,759.00,ДПІ в м. Івано-Франківську ГУ ДФС в Івано-Франківській області,39508514,юридична особа
УГП,"Івано-Франківська область, Івано-Франківськ, вулиця Січових стрільців, 15",70,2017-10-20,AKO0H7GV3Y,Банківські послуги,Інші витрати,250858,Івано-Франківська обласна організація,40026836,Івано-Франківська область,"Комiсiя за виконання платежiв в нацiональнiй валютi, згiдно з вiдкритою офертою банку N б/н вiд 29.09.2015 та тарифiв банку, без ПДВ.",26005052517967,current,3.00,"ПАТ КБ ""Приватбанк""",14360570,юридична особа
УГП,"Івано-Франківська область, Івано-Франківськ, вулиця Незалежності, 46",61,2017-10-20,205,Військовий збір,Податкові платежі,250857,Івано-Франківська обласна організація,40026836,Івано-Франківська область,*;101;40026836;Сплата вiйськового збору з авансу за жовтень 2017р;;;,26005052517967,current,51.75,УДКСУ у м. Івано-Франківську,37952250,юридична особа
УГП,"Івано-Франківська область, Івано-Франківськ, вулиця Січових стрільців, 15",70,2017-10-20,AKO0H7GVCY,Банківські послуги,Інші витрати,250856,Івано-Франківська обласна організація,40026836,Івано-Франківська область,"Комiсiя за виконання платежiв в нацiональнiй валютi, згiдно з вiдкритою офертою банку N б/н вiд 29.09.2015 та тарифiв банку, без ПДВ.",26005052517967,current,3.00,"ПАТ КБ ""Приватбанк""",14360570,юридична особа
УГП,"Івано-Франківська область, Івано-Франківськ",84,2017-10-20,202,"Заробітна плата, премії","Заробітна плата, лікарняні, вагітності, відрядження, компенсації",250641,Івано-Франківська обласна організація,40026836,Івано-Франківська область,Аванс за за жовтень 2017р.,26005052517967,current,1328.25,Федоляк Наталія Орестівна,,фізична особа
УГП,"Івано-Франківська область, Івано-Франківськ",84,2017-10-20,202,"Заробітна плата, премії","Заробітна плата, лікарняні, вагітності, відрядження, компенсації",250640,Івано-Франківська обласна організація,40026836,Івано-Франківська область,Аванс за за жовтень 2017р.,26005052517967,current,1449.00,Романчук Любомир Петрович,,фізична особа
УГП,"Львівська область, Львів, вулиця Сербська, 1",70,2017-10-18,256885,Банківські послуги,Інші витрати,250467,Центральний офіс,39481037,Україна,"Сплата комісії за зарахуванню коштів на рахунки фізичних осіб підприємства по зарплатному проекту по документу №256884, від 18.10.2017. Без ПДВ.",2600671275,current,66.70,"АТ ""АКБ ""Львів""",09801546,юридична особа
УГП,"Львівська область, Львів, вулиця Сербська, 1",70,2017-10-18,256678,Банківські послуги,Інші витрати,250466,Центральний офіс,39481037,Україна,"Сплата комісії за переказ коштів з поточного рахунку в операційний час за межі Банку за допомогою системи Клієнт-Банк по документу №339, від 18.10.2017. Без ПДВ",2600671275,current,5.00,"АТ ""АКБ ""Львів""",09801546,юридична особа
УГП,"Львівська область, Львів, вулиця Сербська, 1",70,2017-10-18,256680,Банківські послуги,Інші витрати,250465,Центральний офіс,39481037,Україна,"Сплата комісії за переказ коштів з поточного рахунку в операційний час за межі Банку за допомогою системи Клієнт-Банк по документу №341, від 18.10.2017. Без ПДВ",2600671275,current,5.00,"АТ ""АКБ ""Львів""",09801546,юридична особа
УГП,"Львівська область, Львів, вулиця Сербська, 1",70,2017-10-18,256677,Банківські послуги,Інші витрати,250464,Центральний офіс,39481037,Україна,"Сплата комісії за переказ коштів з поточного рахунку в операційний час за межі Банку за допомогою системи Клієнт-Банк по документу №340, від 18.10.2017. Без ПДВ",2600671275,current,5.00,"АТ ""АКБ ""Львів""",09801546,юридична особа
УГП,"Львівська область, Львів, вулиця Сербська, 1",70,2017-10-18,339,Банківські послуги,Інші витрати,250463,Центральний офіс,39481037,Україна,"Сплата комісії за переказ коштів з поточного рахунку в операційний час за межі Банку за допомогою системи Клієнт-Банк по документу №342, від 18.10.2017. Без ПДВ",2600671275,current,5.00,"АТ ""АКБ ""Львів""",09801546,юридична особа
УГП,"Львівська область, Львів, вулиця Конотопська, 6/8",61,2017-10-18,339,Військовий збір,Податкові платежі,250462,Центральний офіс,39481037,Україна,"*;101;39481037; утриманий військовий збір із заробітної плати за 1 половину жовтня 2017р.,1,5% - 207,15 грн.;;;",2600671275,current,207.15,УДКСУ у Франківському районі м. Львова,37965138,юридична особа
УГП,"Львівська область, Львів, вулиця Стрийська, 35",62,2017-10-18,341,Сплата ЄСВ,Податкові платежі,250461,Центральний офіс,39481037,Україна,"*;101;39481037; 22,0% нарах. єдиного внеску на зароб.плату за 1 половину жовтня 2017р. - 3038,10 грн.;;;",2600671275,current,3038.10,Залізнична ОДПІ ГУ ДФС у Львівській області,39554382,юридична особа
УГП,"Львівська область, Львів, вулиця Конотопська, 6/8",63,2017-10-18,340,Податок на доходи,Податкові платежі,250459,Центральний офіс,39481037,Україна,"*;101;39481037; податок на доходи фізичних осіб із зароб.плати за 1 половину жовтня 2017р.,18% - 2485,71 грн.;;;",2600671275,current,2485.71,УДКСУ у Франківському районі м. Львова,37965138,юридична особа
УГП,"Львівська область, Львів",84,2017-10-18,256889,"Заробітна плата, премії","Заробітна плата, лікарняні, вагітності, відрядження, компенсації",250037,Центральний офіс,39481037,Україна,Заробітна плата за 1 половину жовтня 2017 року.,2600671275,current,1303.33,Герич Ганна Вікторівна,,фізична особа
УГП,"Тернопільська область, Чортківський район, Косів",84,2017-10-18,256888,"Заробітна плата, премії","Заробітна плата, лікарняні, вагітності, відрядження, компенсації",250036,Центральний офіс,39481037,Україна,Заробітна плата за 1 половину жовтня 2017 року.,2600671275,current,2951.67,Велиган Ігор Богданович,,фізична особа
УГП,"Львівська область, Львів",84,2017-10-18,256887,"Заробітна плата, премії","Заробітна плата, лікарняні, вагітності, відрядження, компенсації",250035,Центральний офіс,39481037,Україна,Заробітна плата за 1 половину жовтня 2017 року.,2600671275,current,2951.67,Лозинський Роман Михайлович,,фізична особа
УГП,"Львівська область, Львів",84,2017-10-18,256886,"Заробітна плата, премії","Заробітна плата, лікарняні, вагітності, відрядження, компенсації",250034,Центральний офіс,39481037,Україна,Заробітна плата за 1 половину жовтня 2017 року.,2600671275,current,3910.00,Панкевич Богдан Романович,,фізична особа
УГП,"Львівська область, Львів, вулиця Сербська, 1",70,2017-10-17,217244,Банківські послуги,Інші витрати,250458,Центральний офіс,39481037,Україна,"Сплата комісії за переказ коштів з поточного рахунку в операційний час за межі Банку за допомогою системи Клієнт-Банк по документу №338, від 17.10.2017. Без ПДВ",2600671275,current,5.00,"АТ ""АКБ ""Львів""",09801546,юридична особа
УГП,"Тернопільська область, Тернопіль, вулиця Руська, 44",51,2017-10-17,338,Оплата ефірного часу на ТБ,Телереклама,250457,Центральний офіс,39481037,Україна,"Оплата за інф.послуги, сюжет випуску нов., згідно рахунку-фактури №75 від 10.10.2017р., без ПДВ.",2600671275,current,3500.00,"ПП ""ТРК ""Смайл""Телеканал ""ІНТБ""",34473456,юридична особа
УГП,"Львівська область, Львів, вулиця Сербська, 1",70,2017-10-17,217150,Банківські послуги,Інші витрати,250456,Центральний офіс,39481037,Україна,"Сплата комісії за переказ коштів з поточного рахунку в операційний час в межах системи Банку за допомогою системи Клієнт-Банк по документу №337, від 17.10.2017.",2600671275,current,3.00,"АТ ""АКБ ""Львів""",09801546,юридична особа
УГП,"Львівська область, Львів, вулиця Гуцульська, 9",50,2017-10-17,337,Оплата ефірного часу на радіо,Реклама на радіо,250455,Центральний офіс,39481037,Україна,"Оплата за надання рекламних послуг на радіо ""Львівська хвиля"" згідно рахунку-фактури №СФ-000671 від 12.10.2017р., в т.ч. ПДВ 3333,33 грн.",2600671275,current,20000.00,"ТОВ ’Телерадіокомпанія ""Львівська хвиля""",13824151,юридична особа
УГП,"Львівська область, Львів, вулиця Сербська, 1",70,2017-10-11,160006,Банківські послуги,Інші витрати,250454,Центральний офіс,39481037,Україна,"Сплата комісії за переказ коштів з поточного рахунку в операційний час за межі Банку за допомогою системи Клієнт-Банк по документу №335, від 11.10.2017. Без ПДВ",2600671275,current,5.00,"АТ ""АКБ ""Львів""",09801546,юридична особа
УГП,"Львівська область, Львів, Соборна площа, 12",50,2017-10-11,335,Оплата ефірного часу на радіо,Реклама на радіо,250453,Центральний офіс,39481037,Україна,"Оплата за послуги реклами у вересні 2017р на радіо FM Галичина (мережа) згідно рах.-фактури №СФ-0000359 від 10.10.2017р., в т.ч. ПДВ 7888,30грн.",2600671275,current,47329.80,"ТОВ ""Телерадіокомпанія Галичина""",36610255,юридична особа
УГП,"Львівська область, Львів, вулиця Сербська, 1",70,2017-10-11,159850,Банківські послуги,Інші витрати,250452,Центральний офіс,39481037,Україна,"Сплата комісії за переказ коштів з поточного рахунку в операційний час за межі Банку за допомогою системи Клієнт-Банк по документу №334, від 11.10.2017. Без ПДВ",2600671275,current,5.00,"АТ ""АКБ ""Львів""",09801546,юридична особа
УГП,"Львівська область, Львів, вулиця Сербська, 1",70,2017-10-09,109868,Банківські послуги,Інші витрати,250977,Львівська обласна організація,40014820,Львівська область,Комісія за надання довідки стосовно наявності відкритого поточного рахунку та РКО зг. договору. №N40.00.002425/РКО вiд 17.09.2015,2600477437,current,50.00,"АТ ""АКБ ""Львів""",09801546,юридична особа
УГП,"Львівська область, Львів, вулиця Сербська, 1",70,2017-10-09,110282,Банківські послуги,Інші витрати,250450,Центральний офіс,39481037,Україна,"Сплата комісії за переказ коштів з поточного рахунку в операційний час за межі Банку за допомогою системи Клієнт-Банк по документу №333, від 09.10.2017. Без ПДВ",2600671275,current,5.00,"АТ ""АКБ ""Львів""",09801546,юридична особа
УГП,"Львівська область, Львів, вулиця Сербська, 1",70,2017-10-09,109963,Банківські послуги,Інші витрати,250448,Центральний офіс,39481037,Україна,Комісія за надання довідки стосовно наявності відкритого поточного рахунку та РКО зг. договору. №N40.00.002175/РКО вiд 10.12.2014,2600671275,current,50.00,"АТ ""АКБ ""Львів""",09801546,юридична особа
УГП,"Івано-Франківська область, Івано-Франківськ, вулиця Незалежності, 6",75,2017-10-06,201,Поштові послуги та поширення друкованих матеріалів,Поштові послуги та поширення друкованих матеріалів,250855,Івано-Франківська обласна організація,40026836,Івано-Франківська область,Оплата за доставку реклами згiдно рахунку N 32 вiд 05.10.2017р. у т.ч. ПДВ - 20 % 570.00 грн.,26005052517967,current,3420.00,Івано-Франківська дирекція АТ Укрпошта,22178632,юридична особа
УГП,"Івано-Франківська область, Івано-Франківськ, вулиця Січових стрільців, 15",70,2017-10-06,A6O0FZOT4Y,Банківські послуги,Інші витрати,250854,Івано-Франківська обласна організація,40026836,Івано-Франківська область,"Комiсiя за виконання платежiв в нацiональнiй валютi, згiдно з вiдкритою офертою банку N б/н вiд 29.09.2015 та тарифiв банку, без ПДВ.",26005052517967,current,3.00,"ПАТ КБ ""Приватбанк""",14360570,юридична особа
УГП,"Івано-Франківська область, Івано-Франківськ, вулиця Незалежності, 46",63,2017-10-06,197,Податок на доходи,Податкові платежі,250853,Івано-Франківська обласна організація,40026836,Івано-Франківська область,*;101;40026836;Податок з доходiв фiзичних осiб з зарплати за вересень 2017р;;;,26005052517967,current,621.00,УДКСУ у м. Івано-Франківську,37952250,юридична особа
УГП,"Івано-Франківська область, Івано-Франківськ, вулиця Січових стрільців, 15",70,2017-10-06,A6O0FX96UY,Банківські послуги,Інші витрати,250852,Івано-Франківська обласна організація,40026836,Івано-Франківська область,"Комiсiя за виконання платежiв в нацiональнiй валютi, згiдно з вiдкритою офертою банку N б/н вiд 29.09.2015 та тарифiв банку, без ПДВ.",26005052517967,current,3.00,"ПАТ КБ ""Приватбанк""",14360570,юридична особа
УГП,"Івано-Франківська область, Івано-Франківськ, вулиця Незалежності",62,2017-10-06,198,Сплата ЄСВ,Податкові платежі,250851,Івано-Франківська обласна організація,40026836,Івано-Франківська область,*;101;40026836;Сплата єдиного соцiального внеску з зарплати за вересень 2017р;;;,26005052517967,current,759.00,ДПІ в м. Івано-Франківську ГУ ДФС в Івано-Франківській області,39508514,юридична особа
УГП,"Івано-Франківська область, Івано-Франківськ, вулиця Січових стрільців, 15",70,2017-10-06,A6O0FX96YY,Банківські послуги,Інші витрати,250850,Івано-Франківська обласна організація,40026836,Івано-Франківська область,"Комiсiя за виконання платежiв в нацiональнiй валютi, згiдно з вiдкритою офертою банку N б/н вiд 29.09.2015 та тарифiв банку, без ПДВ.",26005052517967,current,3.00,"ПАТ КБ ""Приватбанк""",14360570,юридична особа
УГП,"Івано-Франківська область, Івано-Франківськ, вулиця Незалежності, 46",61,2017-10-06,199,Військовий збір,Податкові платежі,250849,Івано-Франківська обласна організація,40026836,Івано-Франківська область,*;101;40026836;Військовий збір з зарплати за вересень 2017р;;;,26005052517967,current,51.75,УДКСУ у м. Івано-Франківську,37952250,юридична особа
УГП,"Івано-Франківська область, Івано-Франківськ, вулиця Січових стрільців, 15",70,2017-10-06,A6O0FX970Y,Банківські послуги,Інші витрати,250848,Івано-Франківська обласна організація,40026836,Івано-Франківська область,"Комiсiя за виконання платежiв в нацiональнiй валютi, згiдно з вiдкритою офертою банку N б/н вiд 29.09.2015 та тарифiв банку, без ПДВ.",26005052517967,current,3.00,"ПАТ КБ ""Приватбанк""",14360570,юридична особа
УГП,"Івано-Франківська область, Івано-Франківськ, вулиця Січових стрільців, 15",70,2017-10-06,200,Банківські послуги,Інші витрати,250847,Івано-Франківська обласна організація,40026836,Івано-Франківська область,Комiсiя РКО вiд зарплати за вересень 2017р.,26005052517967,current,6.94,"ПАТ КБ ""Приватбанк""",14360570,юридична особа
УГП,"Івано-Франківська область, Івано-Франківськ",84,2017-10-06,196,"Заробітна плата, премії","Заробітна плата, лікарняні, вагітності, відрядження, компенсації",250639,Івано-Франківська обласна організація,40026836,Івано-Франківська область,Заробітна плата за вересень 2017р.,26005052517967,current,1328.25,Федоляк Наталія Орестівна,,фізична особа
УГП,"Івано-Франківська область, Івано-Франківськ",84,2017-10-06,196,"Заробітна плата, премії","Заробітна плата, лікарняні, вагітності, відрядження, компенсації",250638,Івано-Франківська обласна організація,40026836,Івано-Франківська область,Заробітна плата за вересень 2017р.,26005052517967,current,1449.00,Романчук Любомир Петрович,,фізична особа
УГП,"Івано-Франківська область, Івано-Франківськ, вулиця Короля Данила, 16",58,2017-10-05,195,"Виготовлення друкованих матеріалів (плакатів, листівок, буклетів та інших агітаційних матеріалів)",Друкована агітація,250846,Івано-Франківська обласна організація,40026836,Івано-Франківська область,"Оплата за виготовлення плакатiв зг.рах.NОТ-0005989 вiд 05.10.2017р., в т.ч. ПДВ - 383,33",26005052517967,current,2300.00,"ТОВ ""Друкарня Oтто Ганс""",35276632,юридична особа
УГП,"Івано-Франківська область, Івано-Франківськ, площа Міцкевича, 8",79,2017-10-05,194,"Оренда будинків і приміщень та експлуатаційні витрати (прибирання, страхування орендованих будинків, охорона, сигналізація, ремонт, вивіз сміття, тощо)",Оренда нерухомості,250845,Івано-Франківська обласна організація,40026836,Івано-Франківська область,Оплата за оренду примiщення за жовтень 2017 року згiдно рахунку N СФ-0930011 вiд 30.09.2017р. Без ПДВ,26005052517967,current,4080.00,"ТОВ ""Крокус-Станіслав""",38162070,юридична особа
УГП,"Івано-Франківська область, Івано-Франківськ, вулиця Січових стрільців, 15",70,2017-10-05,A5O0FUEZSY,Банківські послуги,Інші витрати,250844,Івано-Франківська обласна організація,40026836,Івано-Франківська область,"Комiсiя за виконання платежiв в нацiональнiй валютi, згiдно з вiдкритою офертою банку N б/н вiд 29.09.2015 та тарифiв банку, без ПДВ.",26005052517967,current,3.00,"ПАТ КБ ""Приватбанк""",14360570,юридична особа
УГП,"Львівська область, Львів, вулиця Сербська, 1",70,2017-10-05,74948,Банківські послуги,Інші витрати,250447,Центральний офіс,39481037,Україна,"Сплата комісії за переказ коштів з поточного рахунку в операційний час за межі Банку за допомогою системи Клієнт-Банк по документу №332, від 05.10.2017. Без ПДВ",2600671275,current,5.00,"АТ ""АКБ ""Львів""",09801546,юридична особа
УГП,"Київ, провулок Руслана Лужевського, 14",79,2017-10-05,332,"Оренда будинків і приміщень та експлуатаційні витрати (прибирання, страхування орендованих будинків, охорона, сигналізація, ремонт, вивіз сміття, тощо)",Оренда нерухомості,250446,Центральний офіс,39481037,Україна,"Оплата відшкодування комунальних послуг за вересень 2017р. згідно Договору суборенди №201 від 24.07.2017р., згідно рахунку №129 від 30.09.17р., без ПДВ",2600671275,current,1126.65,"ТОВ ""КБД Груп""",40833518,юридична особа
УГП,"Івано-Франківська область, Івано-Франківськ, вулиця Січових стрільців, 30А",51,2017-10-04,193,Оплата ефірного часу на ТБ,Телереклама,250843,Івано-Франківська обласна організація,40026836,Івано-Франківська область,Оплата за трансляцiю передачi хв. згiдно рахунку N 18 вiд 02.10.2017р. у т.ч. ПДВ - 20 % 391.92 грн.,26005052517967,current,2351.52,"Філія ПАТ ""НСТУ"" ""Івано-Франківська регіональна дирекція ""Карпати""",40020572,юридична особа
УГП,"Львівська область, Львів, вулиця Сербська, 1",70,2017-10-04,70703,Банківські послуги,Інші витрати,250445,Центральний офіс,39481037,Україна,"Сплата комісії за переказ коштів з поточного рахунку в операційний час за межі Банку за допомогою системи Клієнт-Банк по документу №331, від 04.10.2017. Без ПДВ",2600671275,current,5.00,"АТ ""АКБ ""Львів""",09801546,юридична особа
УГП,"Львівська область, Львів, вулиця Героїв УПА, 65",58,2017-10-04,331,"Виготовлення друкованих матеріалів (плакатів, листівок, буклетів та інших агітаційних матеріалів)",Друкована агітація,250444,Центральний офіс,39481037,Україна,"Oплата за друк газети ""Наша Галичина"" 5 згід.рах.-фак.№ВЗ-0001029 від 02.10.2017р., в т.ч. ПДВ 5040,00 грн.",2600671275,current,30240.00,"ТОВ ""Видавничий дім ""Високий замок""",13807781,юридична особа
УГП,"Тернопільська область, Тернопіль, вулиця Родини Барвінських, 4",53,2017-10-03,84,Витрати на розміщення зовнішньої реклами,Зовнішня реклама,251078,Тернопільська обласна організація,40011526,Тернопільська область,Оплата згiдно договору N 17/09 вiд 22.09.2017р. та N 18/09 вiд 22.09.2017р. за рекламнi послуги та користування мiсцем розмiщення тимчасової реклами.,26006055117228,current,1878.01,"КП ""Парк Загребелля""",36721282,юридична особа
УГП,"Тернопільська область, Зборівський район, Зборів, вулиця Богдана Хмельницького, 37",59,2017-10-03,83,Грошова застава,Грошова застава,251077,Тернопільська обласна організація,40011526,Тернопільська область,"Грошова застава мiсцевої органiзацiї ПП ""Українська Галицька партiя"", яка висунула кандидатiв в депутати на виборах до Зборiвської мiської ради",26006055117228,current,1663.00,Зборівська міська виборча комісія,34037830,юридична особа
УГП,"Тернопільська область, Тернопіль, проспект Степана Бандери, 38",70,2017-10-03,A3O0FMM8HY,Банківські послуги,Інші витрати,251076,Тернопільська обласна організація,40011526,Тернопільська область,"Комiсiя за виконання платежiв в нацiональнiй валютi, згiдно з вiдкритою офертою банку N б/н вiд 21.09.2015 та тарифiв банку, без ПДВ.",26006055117228,current,3.00,"ПАТ КБ ""Приватбанк""",14360570,юридична особа
УГП,"Тернопільська область, Тернопіль, проспект Степана Бандери, 38",70,2017-10-03,A3O0FMM88Y,Банківські послуги,Інші витрати,251075,Тернопільська обласна організація,40011526,Тернопільська область,"Комiсiя за виконання платежiв в нацiональнiй валютi, згiдно з вiдкритою офертою банку N б/н вiд 21.09.2015 та тарифiв банку, без ПДВ.",26006055117228,current,3.00,"ПАТ КБ ""Приватбанк""",14360570,юридична особа
УГП,"Львівська область, Львів, вулиця Сербська, 1",70,2017-10-03,447002РКО,Банківські послуги,Інші витрати,250443,Центральний офіс,39481037,Україна,Комісія за послуги Банку,2600671275,current,116.75,"АТ ""АКБ ""Львів""",09801546,юридична особа
УГП,"Львівська область, Львів, вулиця Сербська, 1",70,2017-10-03,37890,Банківські послуги,Інші витрати,250442,Центральний офіс,39481037,Україна,"Сплата комісії за переказ коштів з поточного рахунку в операційний час за межі Банку за допомогою системи Клієнт-Банк по документу №330, від 03.10.2017. Без ПДВ",2600671275,current,5.00,"АТ ""АКБ ""Львів""",09801546,юридична особа
УГП,"Львівська область, Львів, вулиця Героїв УПА, 65",58,2017-10-03,330,"Виготовлення друкованих матеріалів (плакатів, листівок, буклетів та інших агітаційних матеріалів)",Друкована агітація,250441,Центральний офіс,39481037,Україна,"Попередня оплата за друк газети ""Наша Галичина"" 5 згід.рах.-фак.№ВЗ-0001029 від 02.10.2017р., в т.ч. ПДВ 17950,00 грн.",2600671275,current,107700.00,"ТОВ ""Видавничий дім ""Високий замок""",13807781,юридична особа
УГП,"Тернопільська область, Тернопіль, проспект Степана Бандери, 38",70,2017-10-02,AS79t7diip,Банківські послуги,Інші витрати,251074,Тернопільська обласна організація,40011526,Тернопільська область,"Комiсiя за обслуговування рахунку вересень 2017р. згiдно договору банкiвського рахунку вiд 21.09.2015, без ПДВ",26006055117228,current,100.00,"ПАТ КБ ""Приватбанк""",14360570,юридична особа
УГП,"Івано-Франківська область, Івано-Франківськ, вулиця Євгена Коновальця, 16",53,2017-10-02,191,Витрати на розміщення зовнішньої реклами,Зовнішня реклама,250842,Івано-Франківська обласна організація,40026836,Івано-Франківська область,"За розмiщення рекламних матерiалiв на носiях зовн.реклами у жовтнi 2017р. зг.рах.N1039ВБ вiд 29.09.2017р., дог.N05/09-17/м вiд 29.09.2017р., в т.ч. ПДВ - 792,00",26005052517967,current,4752.00,"ТОВ ""Вестборд""",38712586,юридична особа
УГП,"Івано-Франківська область, Івано-Франківськ, вулиця Січових стрільців, 15",70,2017-10-02,A2O0FGI4QY,Банківські послуги,Інші витрати,250841,Івано-Франківська обласна організація,40026836,Івано-Франківська область,"Комiсiя за виконання платежiв в нацiональнiй валютi, згiдно з вiдкритою офертою банку N б/н вiд 29.09.2015 та тарифiв банку, без ПДВ.",26005052517967,current,3.00,"ПАТ КБ ""Приватбанк""",14360570,юридична особа
УГП,"Івано-Франківська область, Івано-Франківськ, вулиця Січових стрільців, 15",70,2017-10-02,A2O0FGI6HY,Банківські послуги,Інші витрати,250840,Івано-Франківська обласна організація,40026836,Івано-Франківська область,"Комiсiя за виконання платежiв в нацiональнiй валютi, згiдно з вiдкритою офертою банку N б/н вiд 29.09.2015 та тарифiв банку, без ПДВ.",26005052517967,current,3.00,"ПАТ КБ ""Приватбанк""",14360570,юридична особа
УГП,"Івано-Франківська область, Івано-Франківськ, вулиця Січових стрільців, 15",70,2017-10-02,AS79t4038p,Банківські послуги,Інші витрати,250839,Івано-Франківська обласна організація,40026836,Івано-Франківська область,"Комiсiя за обслуговування рахунку вересень 2017р. згiдно договору банкiвського рахунку вiд 29.09.2015, без ПДВ",26005052517967,current,100.00,"ПАТ КБ ""Приватбанк""",14360570,юридична особа
УГП,"Івано-Франківська область, Івано-Франківськ, вулиця Гординського, 11",53,2017-10-02,192,Витрати на розміщення зовнішньої реклами,Зовнішня реклама,250637,Івано-Франківська обласна організація,40026836,Івано-Франківська область,"Оплата за експонування та обслуговування плакатiв на рекламоносiях зг.рах.NШа-0000158 вiд 29.09.2017р., дог.NШа-16/17 вiд 29.09.2017р., без ПДВ.",26005052517967,current,15800.00,Шаблєвський Олександр Віталійович,2759913416,фізична особа
УГП,"Львівська область, Львів, вулиця Сербська, 1",70,2017-10-02,30494,Банківські послуги,Інші витрати,250440,Центральний офіс,39481037,Україна,"Сплата комісії за зарахуванню коштів на рахунки фізичних осіб підприємства по зарплатному проекту по документу №30493, від 02.10.2017. Без ПДВ.",2600671275,current,66.70,"АТ ""АКБ ""Львів""",09801546,юридична особа
УГП,"Львівська область, Львів, вулиця Сербська, 1",70,2017-10-02,9401,Банківські послуги,Інші витрати,250439,Центральний офіс,39481037,Україна,"Сплата комісії за переказ коштів з поточного рахунку в операційний час за межі Банку за допомогою системи Клієнт-Банк по документу №329, від 02.10.2017. Без ПДВ",2600671275,current,5.00,"АТ ""АКБ ""Львів""",09801546,юридична особа
УГП,"Львівська область, Львів, вулиця Сербська, 1",70,2017-10-02,9368,Банківські послуги,Інші витрати,250438,Центральний офіс,39481037,Україна,"Сплата комісії за переказ коштів з поточного рахунку в операційний час за межі Банку за допомогою системи Клієнт-Банк по документу №328, від 02.10.2017. Без ПДВ",2600671275,current,5.00,"АТ ""АКБ ""Львів""",09801546,юридична особа
УГП,"Львівська область, Львів, вулиця Стрийська, 35",62,2017-10-02,328,Сплата ЄСВ,Податкові платежі,250437,Центральний офіс,39481037,Україна,"*;101;39481037; 22,0% нарах. єдиного внеску на зароб.плату за 2 половину вересня 2017р. - 3038,10 грн.;;;",2600671275,current,3038.10,Залізнична ОДПІ ГУ ДФС у Львівській області,39554382,юридична особа
УГП,"Львівська область, Львів, вулиця Сербська, 1",70,2017-10-02,9332,Банківські послуги,Інші витрати,250436,Центральний офіс,39481037,Україна,"Сплата комісії за переказ коштів з поточного рахунку в операційний час за межі Банку за допомогою системи Клієнт-Банк по документу №326, від 02.10.2017. Без ПДВ",2600671275,current,5.00,"АТ ""АКБ ""Львів""",09801546,юридична особа
УГП,"Львівська область, Львів, вулиця Конотопська, 6/8",61,2017-10-02,326,Військовий збір,Податкові платежі,250435,Центральний офіс,39481037,Україна,"*;101;39481037; утриманий військовий збір із заробітної плати за 2 половину вересня 2017р.,1,5% - 207,15 грн.;;;",2600671275,current,207.15,УДКСУ у Франківському районі м. Львова,37965138,юридична особа
УГП,"Львівська область, Львів, вулиця Сербська, 1",70,2017-10-02,9334,Банківські послуги,Інші витрати,250434,Центральний офіс,39481037,Україна,"Сплата комісії за переказ коштів з поточного рахунку в операційний час за межі Банку за допомогою системи Клієнт-Банк по документу №327, від 02.10.2017. Без ПДВ",2600671275,current,5.00,"АТ ""АКБ ""Львів""",09801546,юридична особа
УГП,"Львівська область, Львів, вулиця Конотопська, 6/8",63,2017-10-02,327,Податок на доходи,Податкові платежі,250433,Центральний офіс,39481037,Україна,"*;101;39481037; податок на доходи фізичних осіб із зароб.плати за 2 половину вересня 2017р.,18% - 2485,71 грн.;;;",2600671275,current,2485.71,УДКСУ у Франківському районі м. Львова,37965138,юридична особа
УГП,"Львівська область, Львів, вулиця Сербська, 1",70,2017-10-02,9246,Банківські послуги,Інші витрати,250432,Центральний офіс,39481037,Україна,"Сплата комісії за переказ коштів з поточного рахунку в операційний час за межі Банку за допомогою системи Клієнт-Банк по документу №325, від 02.10.2017. Без ПДВ",2600671275,current,5.00,"АТ ""АКБ ""Львів""",09801546,юридична особа
УГП,"Київ, провулок Руслана Лужевського, 14",79,2017-10-02,325,"Оренда будинків і приміщень та експлуатаційні витрати (прибирання, страхування орендованих будинків, охорона, сигналізація, ремонт, вивіз сміття, тощо)",Оренда нерухомості,250431,Центральний офіс,39481037,Україна,"Попередня оплата за оренду приміщення за жовтень 2017р. згідно Договору суборенди №201 від 24.07.2017р., згідно рахунку №113 від 27.09.17р., без ПДВ.",2600671275,current,7000.00,"ТОВ ""КБД Груп""",40833518,юридична особа
УГП,"Львівська область, Львів, вулиця Сербська, 1",70,2017-10-02,8824,Банківські послуги,Інші витрати,250430,Центральний офіс,39481037,Україна,"Сплата комісії за переказ коштів з поточного рахунку в операційний час за межі Банку за допомогою системи Клієнт-Банк по документу №324, від 02.10.2017. Без ПДВ",2600671275,current,5.00,"АТ ""АКБ ""Львів""",09801546,юридична особа
УГП,"Львівська область, Львів",84,2017-10-02,30498,"Заробітна плата, премії","Заробітна плата, лікарняні, вагітності, відрядження, компенсації",250033,Центральний офіс,39481037,Україна,Заробітна плата за 2 половину вересня 2017 року.,2600671275,current,1303.33,Герич Ганна Вікторівна,,фізична особа
УГП,"Тернопільська область, Чортківський район, Косів",84,2017-10-02,30497,"Заробітна плата, премії","Заробітна плата, лікарняні, вагітності, відрядження, компенсації",250032,Центральний офіс,39481037,Україна,Заробітна плата за 2 половину вересня 2017 року.,2600671275,current,2951.67,Велиган Ігор Богданович,,фізична особа
УГП,"Львівська область, Львів",84,2017-10-02,30496,"Заробітна плата, премії","Заробітна плата, лікарняні, вагітності, відрядження, компенсації",250031,Центральний офіс,39481037,Україна,Заробітна плата за 2 половину вересня 2017 року.,2600671275,current,2951.67,Лозинський Роман Михайлович,,фізична особа
УГП,"Львівська область, Львів",84,2017-10-02,30495,"Заробітна плата, премії","Заробітна плата, лікарняні, вагітності, відрядження, компенсації",250030,Центральний офіс,39481037,Україна,Заробітна плата за 2 половину вересня 2017 року.,2600671275,current,3910.00,Панкевич Богдан Романович,,фізична особа
УГП,"Львівська область, Львів",79,2017-10-02,329,"Оренда будинків і приміщень та експлуатаційні витрати (прибирання, страхування орендованих будинків, охорона, сигналізація, ремонт, вивіз сміття, тощо)",Оренда нерухомості,250029,Центральний офіс,39481037,Україна,"Попередня оплата за оренду приміщення за жовтень 2017р., згідно рахунку №10 від 02.10.2017р., згідно договору №01/2016 від 05.09.2016р., без ПДВ.",2600671275,current,5280.00,Монастирська Олеся Володимирівна,,фізична особа
УГП,"Тернопільська область, Гусятинський район, Хоростків, Князя Володимира, 17",59,2017-09-29,83,Грошова застава,Грошова застава,251073,Тернопільська обласна організація,40011526,Тернопільська область,"Грошова застава мiсцевої органiзацiї ПП ""Українська Галицька партiя"", яка висунула кандидатiв в депутати на виборах до Хоросткiвької мiської ради",26006055117228,current,1439.00,Хоростківська МВК,33866157,юридична особа
УГП,"Тернопільська область, Тернопіль, проспект Степана Бандери, 38",70,2017-09-29,9TO0FALPMY,Банківські послуги,Інші витрати,251072,Тернопільська обласна організація,40011526,Тернопільська область,"Комiсiя за виконання платежiв в нацiональнiй валютi, згiдно з вiдкритою офертою банку N б/н вiд 21.09.2015 та тарифiв банку, без ПДВ.",26006055117228,current,3.00,"ПАТ КБ ""Приватбанк""",14360570,юридична особа
УГП,"Тернопільська область, Тернопіль, проспект Степана Бандери, 38",70,2017-09-29,9TO0FALPPY,Банківські послуги,Інші витрати,251070,Тернопільська обласна організація,40011526,Тернопільська область,"Комiсiя за виконання платежiв в нацiональнiй валютi, згiдно з вiдкритою офертою банку N б/н вiд 21.09.2015 та тарифiв банку, без ПДВ.",26006055117228,current,3.00,"ПАТ КБ ""Приватбанк""",14360570,юридична особа
УГП,"Тернопільська область, Лановецький район, Ланівці, вулиця Незалежності, 34",59,2017-09-29,82,Грошова застава,Грошова застава,251069,Тернопільська обласна організація,40011526,Тернопільська область,"Грошова застава мiсцевої органiзацiї ПП ""Українська Галицька партiя"", яка висунула кандидатiв в депутати на виборах до Лановецької мiської ради",26006055117228,current,1194.00,Лановецька МВК,34039450,юридична особа
УГП,"Тернопільська область, Тернопіль, проспект Степана Бандери, 38",70,2017-09-29,9TO0FALPWY,Банківські послуги,Інші витрати,251068,Тернопільська обласна організація,40011526,Тернопільська область,"Комiсiя за виконання платежiв в нацiональнiй валютi, згiдно з вiдкритою офертою банку N б/н вiд 21.09.2015 та тарифiв банку, без ПДВ.",26006055117228,current,3.00,"ПАТ КБ ""Приватбанк""",14360570,юридична особа
УГП,"Львівська область, Львів, вулиця Сербська, 1",70,2017-09-29,494850,Банківські послуги,Інші витрати,250976,Львівська обласна організація,40014820,Львівська область,Комісія за ведення функціонуючого рахунку за період 01.09.17-30.09.17 зг. договору.N40.00.002425/ РКО вiд 17.09.2015,2600477437,current,100.00,"АТ ""АКБ ""Львів""",09801546,юридична особа
УГП,"Львівська область, Львів, вулиця Сербська, 1",70,2017-09-29,494852,Банківські послуги,Інші витрати,250975,Львівська обласна організація,40014820,Львівська область,"Комісія за pозрахункове обслуговування Клієнтів по системі ""Клієнт-Банк"" за період 01.09.17-30.09.17 зг.договору. N40.00.002425/ РКО вiд 17.09.2015.",2600477437,current,50.00,"АТ ""АКБ ""Львів""",09801546,юридична особа
УГП,"Львівська область, Львів, вулиця Сербська, 1",70,2017-09-29,426896,Банківські послуги,Інші витрати,250974,Львівська обласна організація,40014820,Львівська область,"Сплата комісії за переказ коштів з поточного рахунку в операційний час в межах системи Банку за допомогою системи Клієнт-Банк по документу №30, від 29.09.2017.",2600477437,current,3.00,"АТ ""АКБ ""Львів""",09801546,юридична особа
УГП,"Львівська область, Львів, вулиця Сербська, 1",70,2017-09-29,414977,Банківські послуги,Інші витрати,250428,Центральний офіс,39481037,Україна,"Сплата комісії за переказ коштів з поточного рахунку в операційний час за межі Банку за допомогою системи Клієнт-Банк по документу №322, від 29.09.2017. Без ПДВ",2600671275,current,5.00,"АТ ""АКБ ""Львів""",09801546,юридична особа
УГП,"Львівська область, Львів, вулиця Сербська, 1",70,2017-09-29,426849,Банківські послуги,Інші витрати,250427,Центральний офіс,39481037,Україна,"Сплата комісії за переказ коштів з поточного рахунку в операційний час за межі Банку за допомогою системи Клієнт-Банк по документу №323, від 29.09.2017. Без ПДВ",2600671275,current,5.00,"АТ ""АКБ ""Львів""",09801546,юридична особа
УГП,"Львівська область, Львів, вулиця Сербська, 1",70,2017-09-29,495175,Банківські послуги,Інші витрати,250426,Центральний офіс,39481037,Україна,"Комісія за pозрахункове обслуговування Клієнтів по системі ""Клієнт-Банк"" за період 01.09.17-30.09.17 зг. договору. №N40.00.002175/РКО вiд 10.12.2014.",2600671275,current,50.00,"АТ ""АКБ ""Львів""",09801546,юридична особа
УГП,"Львівська область, Львів, вулиця Сербська, 1",70,2017-09-29,495173,Банківські послуги,Інші витрати,250425,Центральний офіс,39481037,Україна,Комісія за ведення функціонуючого рахунку за період 01.09.17-30.09.17 зг. договору. №N40.00.002175/РКО вiд 10.12.2014.,2600671275,current,100.00,"АТ ""АКБ ""Львів""",09801546,юридична особа
УГП,"Тернопільська область, Тернопіль, вулиця Камінна, 5",50,2017-09-29,322,Оплата ефірного часу на радіо,Реклама на радіо,250424,Центральний офіс,39481037,Україна,"Оплата за радіорекламні посл. на радіо Рокс та Хіт Fm зг. рах.-факт.№СФ-0000513 від 28.09.2017р., зг. дог.№13 від 28.09.17р., в т.ч. ПДВ 1556,00 грн.",2600671275,current,9336.00,"ТОВ ""Радіо тон""",21155577,юридична особа
УГП,"Львівська область, Львів, вулиця Сербська, 1",70,2017-09-27,385877,Банківські послуги,Інші витрати,250422,Центральний офіс,39481037,Україна,"Сплата комісії за переказ коштів з поточного рахунку в операційний час за межі Банку за допомогою системи Клієнт-Банк по документу №320, від 27.09.2017. Без ПДВ",2600671275,current,5.00,"АТ ""АКБ ""Львів""",09801546,юридична особа
УГП,"Львівська область, Львів, вулиця Сербська, 1",70,2017-09-27,386976,Банківські послуги,Інші витрати,250421,Центральний офіс,39481037,Україна,"Сплата комісії за переказ коштів з поточного рахунку в операційний час за межі Банку за допомогою системи Клієнт-Банк по документу №321, від 27.09.2017. Без ПДВ",2600671275,current,5.00,"АТ ""АКБ ""Львів""",09801546,юридична особа
УГП,"Львівська область, Львів, вулиця Героїв УПА, 65",49,2017-09-27,320,Публікування матеріалів у друкованих ЗМІ,Реклама в друкованих ЗМІ,250419,Центральний офіс,39481037,Україна,"Оплата за рекламу на кольоровій стор. згідно рах.-фак.№ВЗ-0001273 від 07.09.2017р., в т.ч. ПДВ 2416,67 грн.",2600671275,current,14500.00,"ТОВ ""Видавничий дім ""Високий замок""",13807781,юридична особа
УГП,"Львівська область, Львів, вулиця Сербська, 1",70,2017-09-22,316715,Банківські послуги,Інші витрати,250418,Центральний офіс,39481037,Україна,"Сплата комісії за переказ коштів з поточного рахунку в операційний час за межі Банку за допомогою системи Клієнт-Банк по документу №319, від 22.09.2017. Без ПДВ",2600671275,current,5.00,"АТ ""АКБ ""Львів""",09801546,юридична особа
УГП,"Львівська область, Львів, вулиця Кондукторська, 16",79,2017-09-22,319,"Оренда будинків і приміщень та експлуатаційні витрати (прибирання, страхування орендованих будинків, охорона, сигналізація, ремонт, вивіз сміття, тощо)",Оренда нерухомості,250417,Центральний офіс,39481037,Україна,"Оплата за послуги центр.охорони обʼєкта за вересень 2017р., згідно рахунку №СФ-0000708 від 22.09.2017р., зг.договору № ЦС 040117 від 17.01.2017р., без ПДВ",2600671275,current,400.00,"ПП ""Приватна безпека""",33562906,юридична особа
УГП,"Івано-Франківська область, Івано-Франківськ, вулиця Михайла Грушевського, 21",51,2017-09-21,190,Оплата ефірного часу на ТБ,Телереклама,250838,Івано-Франківська обласна організація,40026836,Івано-Франківська область,"Оплата за iнформацiйнi послуги згiдно рах.N 271 вiд 18.09.2017р., договiр про надання послуг N 13-02/2017 вiд 14.02.2017р., в т.ч. ПДВ 20% - 500,00 грн.",26005052517967,current,3000.00,"Івано-Франківське обласне телебачення ""Галичина""",13641427,юридична особа
УГП,"Івано-Франківська область, Івано-Франківськ, вулиця Січових стрільців, 15",70,2017-09-21,9LO0ELPIZY,Банківські послуги,Інші витрати,250837,Івано-Франківська обласна організація,40026836,Івано-Франківська область,"Комiсiя за виконання платежiв в нацiональнiй валютi, згiдно з вiдкритою офертою банку N б/н вiд 29.09.2015 та тарифiв банку, без ПДВ.",26005052517967,current,3.00,"ПАТ КБ ""Приватбанк""",14360570,юридична особа
УГП,"Івано-Франківська область, Івано-Франківськ, вулиця Незалежності, 46",63,2017-09-20,186,Податок на доходи,Податкові платежі,250836,Івано-Франківська обласна організація,40026836,Івано-Франківська область,*;101;40026836;Податок з доходiв фiзичних осiб iз авансу за вересень 2017р;;;,26005052517967,current,621.00,УДКСУ у м. Івано-Франківську,37952250,юридична особа
УГП,"Івано-Франківська область, Івано-Франківськ, вулиця Січових стрільців, 15",70,2017-09-20,9KO0EH5OPY,Банківські послуги,Інші витрати,250835,Івано-Франківська обласна організація,40026836,Івано-Франківська область,"Комiсiя за виконання платежiв в нацiональнiй валютi, згiдно з вiдкритою офертою банку N б/н вiд 29.09.2015 та тарифiв банку, без ПДВ.",26005052517967,current,3.00,"ПАТ КБ ""Приватбанк""",14360570,юридична особа
УГП,"Івано-Франківська область, Івано-Франківськ, вулиця Незалежності",62,2017-09-20,187,Сплата ЄСВ,Податкові платежі,250834,Івано-Франківська обласна організація,40026836,Івано-Франківська область,*;101;40026836;Сплата єдиного соцiального внеску iз авансу за вересень 2017р;;;,26005052517967,current,759.00,ДПІ в м. Івано-Франківську ГУ ДФС в Івано-Франківській області,39508514,юридична особа
УГП,"Івано-Франківська область, Івано-Франківськ, вулиця Січових стрільців, 15",70,2017-09-20,9KO0EH5OVY,Банківські послуги,Інші витрати,250833,Івано-Франківська обласна організація,40026836,Івано-Франківська область,"Комiсiя за виконання платежiв в нацiональнiй валютi, згiдно з вiдкритою офертою банку N б/н вiд 29.09.2015 та тарифiв банку, без ПДВ.",26005052517967,current,3.00,"ПАТ КБ ""Приватбанк""",14360570,юридична особа
УГП,"Івано-Франківська область, Івано-Франківськ, вулиця Незалежності, 46",61,2017-09-20,188,Військовий збір,Податкові платежі,250832,Івано-Франківська обласна організація,40026836,Івано-Франківська область,*;101;40026836;Вiйськовий збiр iз авансу за вересень 2017р;;;,26005052517967,current,51.75,УДКСУ у м. Івано-Франківську,37952250,юридична особа
УГП,"Івано-Франківська область, Івано-Франківськ, вулиця Січових стрільців, 15",70,2017-09-20,9KO0EH5P0Y,Банківські послуги,Інші витрати,250831,Івано-Франківська обласна організація,40026836,Івано-Франківська область,"Комiсiя за виконання платежiв в нацiональнiй валютi, згiдно з вiдкритою офертою банку N б/н вiд 29.09.2015 та тарифiв банку, без ПДВ.",26005052517967,current,3.00,"ПАТ КБ ""Приватбанк""",14360570,юридична особа
УГП,"Івано-Франківська область, Івано-Франківськ, вулиця Січових стрільців, 15",70,2017-09-20,189,Банківські послуги,Інші витрати,250830,Івано-Франківська обласна організація,40026836,Івано-Франківська область,Комiсiя РКО вiд зарплати за вересень 2017р.,26005052517967,current,6.94,"ПАТ КБ ""Приватбанк""",14360570,юридична особа
УГП,"Івано-Франківська область, Івано-Франківськ",84,2017-09-20,185,"Заробітна плата, премії","Заробітна плата, лікарняні, вагітності, відрядження, компенсації",250636,Івано-Франківська обласна організація,40026836,Івано-Франківська область,Аванс за вересень 2017р.,26005052517967,current,1328.25,Федоляк Наталія Орестівна,,фізична особа
УГП,"Івано-Франківська область, Івано-Франківськ",84,2017-09-20,185,"Заробітна плата, премії","Заробітна плата, лікарняні, вагітності, відрядження, компенсації",250635,Івано-Франківська обласна організація,40026836,Івано-Франківська область,Аванс за вересень 2017р.,26005052517967,current,1449.00,Романчук Любомир Петрович,,фізична особа
УГП,"Тернопільська область, Тернопіль, проспект Степана Бандери, 38",70,2017-09-19,9JO0ECIEYY,Банківські послуги,Інші витрати,251067,Тернопільська обласна організація,40011526,Тернопільська область,"Комiсiя за виконання платежiв в нацiональнiй валютi, згiдно з вiдкритою офертою банку N б/н вiд 21.09.2015 та тарифiв банку, без ПДВ.",26006055117228,current,3.00,"ПАТ КБ ""Приватбанк""",14360570,юридична особа
УГП,"Львівська область, Львів, вулиця Нечуя-Левицького, 23, 4Б",58,2017-09-19,80,"Виготовлення друкованих матеріалів (плакатів, листівок, буклетів та інших агітаційних матеріалів)",Друкована агітація,251066,Тернопільська обласна організація,40011526,Тернопільська область,"Оплата за друк постер та рекл площ згiдно рах. N 386 вiд 14.09.17р. Договiр N 21-08-17/02 вiд 21.08.17р. У сумi 20875.00 грн., ПДВ - 20 % 4175.00 грн.",26006055117228,current,25050.00,"ТОВ ""Аврора Адвертайзінг""",38893253,юридична особа
УГП,"Тернопільська область, Тернопіль, проспект Степана Бандери, 38",70,2017-09-19,9JO0ECIF3Y,Банківські послуги,Інші витрати,251065,Тернопільська обласна організація,40011526,Тернопільська область,"Комiсiя за виконання платежiв в нацiональнiй валютi, згiдно з вiдкритою офертою банку N б/н вiд 21.09.2015 та тарифiв банку, без ПДВ.",26006055117228,current,3.00,"ПАТ КБ ""Приватбанк""",14360570,юридична особа
УГП,"Тернопільська область, Тернопіль",79,2017-09-19,79,"Оренда будинків і приміщень та експлуатаційні витрати (прибирання, страхування орендованих будинків, охорона, сигналізація, ремонт, вивіз сміття, тощо)",Оренда нерухомості,250997,Тернопільська обласна організація,40011526,Тернопільська область,Оплата за оренду згiдно договору N28 вiд 01.11.2015р. за вересень 2017р.,26006055117228,current,2500.68,Клепач Валентина Анатоліївна,,фізична особа
УГП,"Львівська область, Львів, вулиця Сербська, 1",70,2017-09-19,255826,Банківські послуги,Інші витрати,250416,Центральний офіс,39481037,Україна,"Сплата комісії за переказ коштів з поточного рахунку в операційний час за межі Банку за допомогою системи Клієнт-Банк по документу №318, від 19.09.2017. Без ПДВ",2600671275,current,5.00,"АТ ""АКБ ""Львів""",09801546,юридична особа
УГП,"Львівська область, Львів, вулиця Сербська, 1",70,2017-09-18,250628,Банківські послуги,Інші витрати,250414,Центральний офіс,39481037,Україна,"Сплата комісії за переказ коштів з поточного рахунку в операційний час за межі Банку за допомогою системи Клієнт-Банк по документу №314, від 18.09.2017. Без ПДВ",2600671275,current,5.00,"АТ ""АКБ ""Львів""",09801546,юридична особа
УГП,"Львівська область, Львів, вулиця Сербська, 1",70,2017-09-18,250629,Банківські послуги,Інші витрати,250413,Центральний офіс,39481037,Україна,"Сплата комісії за переказ коштів з поточного рахунку в операційний час за межі Банку за допомогою системи Клієнт-Банк по документу №315, від 18.09.2017. Без ПДВ",2600671275,current,5.00,"АТ ""АКБ ""Львів""",09801546,юридична особа
УГП,"Львівська область, Львів, вулиця Сербська, 1",70,2017-09-18,250746,Банківські послуги,Інші витрати,250412,Центральний офіс,39481037,Україна,"Сплата комісії за переказ коштів з поточного рахунку в операційний час за межі Банку за допомогою системи Клієнт-Банк по документу №316, від 18.09.2017. Без ПДВ",2600671275,current,5.00,"АТ ""АКБ ""Львів""",09801546,юридична особа
УГП,"Львівська область, Львів, вулиця Сербська, 1",70,2017-09-18,251213,Банківські послуги,Інші витрати,250411,Центральний офіс,39481037,Україна,"Сплата комісії за переказ коштів з поточного рахунку в операційний час за межі Банку за допомогою системи Клієнт-Банк по документу №317, від 18.09.2017. Без ПДВ",2600671275,current,5.00,"АТ ""АКБ ""Львів""",09801546,юридична особа
УГП,"Львівська область, Львів, вулиця Сербська, 1",70,2017-09-18,251073,Банківські послуги,Інші витрати,250410,Центральний офіс,39481037,Україна,"Сплата комісії за зарахуванню коштів на рахунки фізичних осіб підприємства по зарплатному проекту по документу №251072, від 18.09.2017. Без ПДВ.",2600671275,current,53.89,"АТ ""АКБ ""Львів""",09801546,юридична особа
УГП,"Львівська область, Львів, вулиця Стрийська, 35",62,2017-09-18,316,Сплата ЄСВ,Податкові платежі,250409,Центральний офіс,39481037,Україна,"*;101;39481037; 22,0% нарах. єдиного внеску на зароб.плату за 1 половину вересня 2017р. - 2454,57 грн.;;;",2600671275,current,2454.57,Залізнична ОДПІ ГУ ДФС у Львівській області,39554382,юридична особа
УГП,"Львівська область, Львів, вулиця Конотопська, 6/8",63,2017-09-18,315,Податок на доходи,Податкові платежі,250408,Центральний офіс,39481037,Україна,"*;101;39481037; податок на доходи фізичних осіб із зароб.плати за 1 половину вересня 2017р.,18% - 2008,29 грн.;;;",2600671275,current,2008.29,УДКСУ у Франківському районі м. Львова,37965138,юридична особа
УГП,"Львівська область, Львів, вулиця Конотопська, 6/8",61,2017-09-18,314,Військовий збір,Податкові платежі,250407,Центральний офіс,39481037,Україна,"*;101;39481037; утриманий військовий збір із заробітної плати за 1 половину вересня 2017р.,1,5% - 167,35 грн.;;;",2600671275,current,167.35,УДКСУ у Франківському районі м. Львова,37965138,юридична особа
УГП,"Львівська область, Львів",84,2017-09-18,251076,"Заробітна плата, премії","Заробітна плата, лікарняні, вагітності, відрядження, компенсації",250028,Центральний офіс,39481037,Україна,Заробітна плата (аванс) за 1 половину вересня 2017 року.,2600671275,current,1433.67,Герич Ганна Вікторівна,,фізична особа
УГП,"Львівська область, Львів",84,2017-09-18,251075,"Заробітна плата, премії","Заробітна плата, лікарняні, вагітності, відрядження, компенсації",250027,Центральний офіс,39481037,Україна,Заробітна плата (аванс) за 1 половину вересня 2017 року.,2600671275,current,3246.83,Лозинський Роман Михайлович,,фізична особа
УГП,"Львівська область, Львів",84,2017-09-18,251074,"Заробітна плата, премії","Заробітна плата, лікарняні, вагітності, відрядження, компенсації",250026,Центральний офіс,39481037,Україна,Заробітна плата (аванс) за 1 половину вересня 2017 року.,2600671275,current,4301.00,Панкевич Богдан Романович,,фізична особа
УГП,"Івано-Франківська область, Івано-Франківськ, вулиця Січових стрільців, 30А",51,2017-09-13,184,Оплата ефірного часу на ТБ,Телереклама,250829,Івано-Франківська обласна організація,40026836,Івано-Франківська область,"Оплата за трансляцiю передачi хв. згiдно рахунку N 17 вiд 05.09.2017р. у т.ч. ПДВ - 20 % 274,34 грн.",26005052517967,current,1646.06,"Філія ПАТ ""НСТУ"" ""Івано-Франківська регіональна дирекція ""Карпати""",40020572,юридична особа
УГП,"Івано-Франківська область, Івано-Франківськ, вулиця Михайла Грушевського, 21",51,2017-09-13,183,Оплата ефірного часу на ТБ,Телереклама,250828,Івано-Франківська обласна організація,40026836,Івано-Франківська область,"оплата за трансляцiю програми згiдно рах.N 259 вiд 11.09.2017р., в т.ч.ПДВ - 1000,00грн.",26005052517967,current,6000.00,"Івано-Франківське обласне телебачення ""Галичина""",13641427,юридична особа
УГП,"Івано-Франківська область, Івано-Франківськ, вулиця Січових стрільців, 15",70,2017-09-13,9DO0DV35LY,Банківські послуги,Інші витрати,250827,Івано-Франківська обласна організація,40026836,Івано-Франківська область,"Комiсiя за виконання платежiв в нацiональнiй валютi, згiдно з вiдкритою офертою банку N б/н вiд 29.09.2015 та тарифiв банку, без ПДВ.",26005052517967,current,3.00,"ПАТ КБ ""Приватбанк""",14360570,юридична особа
УГП,"Львівська область, Львів, вулиця Сербська, 1",70,2017-09-11,132564,Банківські послуги,Інші витрати,250405,Центральний офіс,39481037,Україна,"Сплата комісії за переказ коштів з поточного рахунку в операційний час за межі Банку за допомогою системи Клієнт-Банк по документу №312, від 11.09.2017. Без ПДВ",2600671275,current,5.00,"АТ ""АКБ ""Львів""",09801546,юридична особа
УГП,"Львівська область, Львів, вулиця Сербська, 1",70,2017-09-11,154742,Банківські послуги,Інші витрати,250404,Центральний офіс,39481037,Україна,"Сплата комісії за переказ коштів з поточного рахунку в операційний час за межі Банку за допомогою системи Клієнт-Банк по документу №313, від 11.09.2017. Без ПДВ",2600671275,current,5.00,"АТ ""АКБ ""Львів""",09801546,юридична особа
УГП,"Львівська область, Львів, вулиця Володимира Великого, 5А",49,2017-09-11,313,Публікування матеріалів у друкованих ЗМІ,Реклама в друкованих ЗМІ,250403,Центральний офіс,39481037,Україна,"Попередня оплата за рекл.-інформ.послуги 14.09.17 у газеті Експрес, четвер, Україна згідно рахунку №902/1 від 08.09.2017р., в тому числі ПДВ 3510,00грн.",2600671275,current,21060.00,"ТОВ ""Газета ""Експрес”""",30823524,юридична особа
УГП,"Львівська область, Львів",56,2017-09-11,312,Виготовлення (оренда) агітаційних наметів,Виготовлення (оренда) агітаційних наметів,250025,Центральний офіс,39481037,Україна,"Попередня оплата за намети (61) згідно договору №117 від 01.09.2017р., зг. рахунку №117 від 01.09.2017р., без ПДВ.",2600671275,current,65000.00,Білик Наталія Петрівна,,фізична особа
УГП,"Львівська область, Львів, вулиця Сербська, 1",70,2017-09-08,114075,Банківські послуги,Інші витрати,250402,Центральний офіс,39481037,Україна,"Сплата комісії за переказ коштів з поточного рахунку в операційний час за межі Банку за допомогою системи Клієнт-Банк по документу №311, від 08.09.2017. Без ПДВ",2600671275,current,5.00,"АТ ""АКБ ""Львів""",09801546,юридична особа
УГП,"Львівська область, Львів, вулиця Шота Руставелі, 7",49,2017-09-08,311,Публікування матеріалів у друкованих ЗМІ,Реклама в друкованих ЗМІ,250401,Центральний офіс,39481037,Україна,"Попередня оплата за розміщ. реклам.матеріалів та ін.рекл.послуг під час ""24 Форуму видавців у Львові"" зг. договору №1/ФВ/ТОВ94/2017 від 19.07.2017р., без ПДВ",2600671275,current,40000.00,"ТОВ ""Форум видавців 1994""",41229357,юридична особа
УГП,"Львівська область, Львів, вулиця Сербська, 1",70,2017-09-07,108082,Банківські послуги,Інші витрати,250972,Львівська обласна організація,40014820,Львівська область,"Сплата комісії за переказ коштів з поточного рахунку в операційний час за межі Банку за допомогою системи Клієнт-Банк по документу №29, від 07.09.2017. Без ПДВ.",2600477437,current,5.00,"АТ ""АКБ ""Львів""",09801546,юридична особа
УГП,"Львівська область, Борислав",53,2017-09-07,29,Витрати на розміщення зовнішньої реклами,Зовнішня реклама,250931,Львівська обласна організація,40014820,Львівська область,"Попередня оплата за рекл.площину (бігборд), її розробку та розміщення згідно договору №2414200-1 від 04.09.2017р., без ПДВ.",2600477437,current,1350.00,Майсак Назар Олександрович,,фізична особа
УГП,Київ,66,2017-09-07,303,Повернення внесків приватних внесків (донорам),Повернення приватних внесків (донорам),250024,Центральний офіс,39481037,Україна,Повертаються кошти зг.плат.доруч. 303 вiд 04.09.17 Не соответствует ОКПО,2600671275,current,25000.00,Невідоме Імʼя,,фізична особа
УГП,"Івано-Франківська область, Івано-Франківськ, площа Міцкевича, 8",79,2017-09-06,182,"Оренда будинків і приміщень та експлуатаційні витрати (прибирання, страхування орендованих будинків, охорона, сигналізація, ремонт, вивіз сміття, тощо)",Оренда нерухомості,250826,Івано-Франківська обласна організація,40026836,Івано-Франківська область,Оплата за оренду примiщення за вересень 2017 року згiдно рахунку N СФ-0831009 вiд 31.08.2017р. Без ПДВ,26005052517967,current,4120.00,"ТОВ ""Крокус-Станіслав""",38162070,юридична особа
УГП,"Івано-Франківська область, Івано-Франківськ, вулиця Січових стрільців, 15",70,2017-09-06,96O0D7S3XY,Банківські послуги,Інші витрати,250825,Івано-Франківська обласна організація,40026836,Івано-Франківська область,"Комiсiя за виконання платежiв в нацiональнiй валютi, згiдно з вiдкритою офертою банку N б/н вiд 29.09.2015 та тарифiв банку, без ПДВ.",26005052517967,current,3.00,"ПАТ КБ ""Приватбанк""",14360570,юридична особа
УГП,"Івано-Франківська область, Івано-Франківськ, вулиця Січових стрільців, 15",70,2017-09-06,96O0D7LWFY,Банківські послуги,Інші витрати,250824,Івано-Франківська обласна організація,40026836,Івано-Франківська область,"Комiсiя за виконання платежiв в нацiональнiй валютi, згiдно з вiдкритою офертою банку N б/н вiд 29.09.2015 та тарифiв банку, без ПДВ.",26005052517967,current,3.00,"ПАТ КБ ""Приватбанк""",14360570,юридична особа
УГП,"Івано-Франківська область, Івано-Франківськ, вулиця Незалежності, 46",63,2017-09-06,178,Податок на доходи,Податкові платежі,250823,Івано-Франківська обласна організація,40026836,Івано-Франківська область,*;101;40026836;Податок з доходiв фiзичних осiб iз зарплати за серпень 2017р;;;,26005052517967,current,630.00,УДКСУ у м. Івано-Франківську,37952250,юридична особа
УГП,"Івано-Франківська область, Івано-Франківськ, вулиця Незалежності",62,2017-09-06,179,Сплата ЄСВ,Податкові платежі,250822,Івано-Франківська обласна організація,40026836,Івано-Франківська область,*;101;40026836;Сплата єдиного соцiального внеску iз заплати за серпень 2017р.;;;,26005052517967,current,770.00,ДПІ в м. Івано-Франківську ГУ ДФС в Івано-Франківській області,39508514,юридична особа
УГП,"Івано-Франківська область, Івано-Франківськ, вулиця Січових стрільців, 15",70,2017-09-06,96O0D7LWJY,Банківські послуги,Інші витрати,250821,Івано-Франківська обласна організація,40026836,Івано-Франківська область,"Комiсiя за виконання платежiв в нацiональнiй валютi, згiдно з вiдкритою офертою банку N б/н вiд 29.09.2015 та тарифiв банку, без ПДВ.",26005052517967,current,3.00,"ПАТ КБ ""Приватбанк""",14360570,юридична особа
УГП,"Івано-Франківська область, Івано-Франківськ, вулиця Незалежності, 46",61,2017-09-06,180,Військовий збір,Податкові платежі,250820,Івано-Франківська обласна організація,40026836,Івано-Франківська область,*;101;40026836;Вiйськовий збiр iз зарплати за серпень 2017р;;;,26005052517967,current,52.50,УДКСУ у м. Івано-Франківську,37952250,юридична особа
УГП,"Івано-Франківська область, Івано-Франківськ, вулиця Січових стрільців, 15",70,2017-09-06,96O0D7LWLY,Банківські послуги,Інші витрати,250819,Івано-Франківська обласна організація,40026836,Івано-Франківська область,"Комiсiя за виконання платежiв в нацiональнiй валютi, згiдно з вiдкритою офертою банку N б/н вiд 29.09.2015 та тарифiв банку, без ПДВ.",26005052517967,current,3.00,"ПАТ КБ ""Приватбанк""",14360570,юридична особа
УГП,"Івано-Франківська область, Івано-Франківськ, вулиця Січових стрільців, 15",70,2017-09-06,181,Банківські послуги,Інші витрати,250818,Івано-Франківська обласна організація,40026836,Івано-Франківська область,Комiсiя РКО вiд зарплати за серпень 2017р.,26005052517967,current,7.04,"ПАТ КБ ""Приватбанк""",14360570,юридична особа
УГП,"Івано-Франківська область, Івано-Франківськ",84,2017-09-06,177,"Заробітна плата, премії","Заробітна плата, лікарняні, вагітності, відрядження, компенсації",250634,Івано-Франківська обласна організація,40026836,Івано-Франківська область,Зарплата за серпень 2017р.,26005052517967,current,1368.50,Федоляк Наталія Орестівна,,фізична особа
УГП,"Івано-Франківська область, Івано-Франківськ",84,2017-09-06,177,"Заробітна плата, премії","Заробітна плата, лікарняні, вагітності, відрядження, компенсації",250633,Івано-Франківська обласна організація,40026836,Івано-Франківська область,Зарплата за серпень 2017р.,26005052517967,current,1449.00,Романчук Любомир Петрович,,фізична особа
УГП,"Львівська область, Львів, вулиця Сербська, 1",70,2017-09-06,94014,Банківські послуги,Інші витрати,250400,Центральний офіс,39481037,Україна,"Сплата комісії за переказ коштів з поточного рахунку в операційний час в межах системи Банку за допомогою системи Клієнт-Банк по документу №309, від 06.09.2017.",2600671275,current,3.00,"АТ ""АКБ ""Львів""",09801546,юридична особа
УГП,"Львівська область, Львів, вулиця Сербська, 1",70,2017-09-06,82727,Банківські послуги,Інші витрати,250399,Центральний офіс,39481037,Україна,"Сплата комісії за переказ коштів з поточного рахунку в операційний час за межі Банку за допомогою системи Клієнт-Банк по документу №306, від 06.09.2017. Без ПДВ",2600671275,current,5.00,"АТ ""АКБ ""Львів""",09801546,юридична особа
УГП,"Львівська область, Львів, вулиця Сербська, 1",70,2017-09-06,91253,Банківські послуги,Інші витрати,250398,Центральний офіс,39481037,Україна,"Сплата комісії за переказ коштів з поточного рахунку в операційний час за межі Банку за допомогою системи Клієнт-Банк по документу №307, від 06.09.2017. Без ПДВ",2600671275,current,5.00,"АТ ""АКБ ""Львів""",09801546,юридична особа
УГП,"Львівська область, Львів, вулиця Сербська, 1",70,2017-09-06,91265,Банківські послуги,Інші витрати,250397,Центральний офіс,39481037,Україна,"Сплата комісії за переказ коштів з поточного рахунку в операційний час за межі Банку за допомогою системи Клієнт-Банк по документу №308, від 06.09.2017. Без ПДВ",2600671275,current,5.00,"АТ ""АКБ ""Львів""",09801546,юридична особа
УГП,"Львівська область, Львів, вулиця Сербська, 1",70,2017-09-06,94086,Банківські послуги,Інші витрати,250396,Центральний офіс,39481037,Україна,"Сплата комісії за переказ коштів з поточного рахунку в операційний час за межі Банку за допомогою системи Клієнт-Банк по документу №310, від 06.09.2017. Без ПДВ",2600671275,current,5.00,"АТ ""АКБ ""Львів""",09801546,юридична особа
УГП,"Львівська область, Львів, вулиця Петра Дорошенка, 43",76,2017-09-06,310,Послуги зв’язку,Послуги зв’язку,250395,Центральний офіс,39481037,Україна,"Оплата за телеком.посл.за серпень 2017, аванс за верес.зг.дог.№ 4600000000017884 від 26.10.16,зг.рах. №4600000000017884.8.2017 від 31.08.17,в т.ч.ПДВ 25,00",2600671275,current,150.00,"ПАТ ""Укртелеком""",21560766,юридична особа
УГП,"Київ, провулок Руслана Лужевського, 14",79,2017-09-06,307,"Оренда будинків і приміщень та експлуатаційні витрати (прибирання, страхування орендованих будинків, охорона, сигналізація, ремонт, вивіз сміття, тощо)",Оренда нерухомості,250394,Центральний офіс,39481037,Україна,"Оплата відшкодування комунальних послуг за серпень 2017р. згідно Договору суборенди №201 від 24.07.2017р., згідно рахунку №96 від 31.08.17р., без ПДВ",2600671275,current,1127.52,"ТОВ ""КБД Груп""",40833518,юридична особа
УГП,"Львівська область, Львів",69,2017-09-06,308,Організація заходів та інші організаційні послуги,Організація заходів та інші організаційні послуги,250023,Центральний офіс,39481037,Україна,"Попередня оплата за оренду конференц залу 23.09.17 згідно рахунку №432 від 04.09.17р., без ПДВ.",2600671275,current,1500.00,Мосійчук Віталій Віталійович,,фізична особа
УГП,"Львівська область, Дрогобич",58,2017-09-06,309,"Виготовлення друкованих матеріалів (плакатів, листівок, буклетів та інших агітаційних матеріалів)",Друкована агітація,250022,Центральний офіс,39481037,Україна,"Попередня оплата за посібник (3т) згідно рах.-фактури №П-00000303 від 06.09.2017р., без ПДВ.",2600671275,current,9120.00,Походжай Микола Михайлович,,фізична особа
УГП,"Львівська область, Львів",56,2017-09-06,306,Виготовлення (оренда) агітаційних наметів,Виготовлення (оренда) агітаційних наметів,250021,Центральний офіс,39481037,Україна,"Попередня оплата за намети (61) згідно договору №117 від 01.09.2017р., зг. рахунку №117 від 01.09.2017р., без ПДВ.",2600671275,current,84460.00,Білик Наталія Петрівна,,фізична особа
УГП,"Львівська область, Львів, вулиця Сербська, 1",70,2017-09-05,59029,Банківські послуги,Інші витрати,250393,Центральний офіс,39481037,Україна,"Сплата комісії за переказ коштів з поточного рахунку в операційний час за межі Банку за допомогою системи Клієнт-Банк по документу №304, від 05.09.2017. Без ПДВ",2600671275,current,5.00,"АТ ""АКБ ""Львів""",09801546,юридична особа
УГП,"Львівська область, Львів, вулиця Сербська, 1",70,2017-09-05,59031,Банківські послуги,Інші витрати,250392,Центральний офіс,39481037,Україна,"Сплата комісії за переказ коштів з поточного рахунку в операційний час за межі Банку за допомогою системи Клієнт-Банк по документу №305, від 05.09.2017. Без ПДВ",2600671275,current,5.00,"АТ ""АКБ ""Львів""",09801546,юридична особа
УГП,"Львівська область, Львів",56,2017-09-05,305,Виготовлення (оренда) агітаційних наметів,Виготовлення (оренда) агітаційних наметів,250020,Центральний офіс,39481037,Україна,"Попередня оплата за намети (61) згідно договору №117 від 01.09.2017р., зг. рахунку №117 від 01.09.2017р., без ПДВ.",2600671275,current,25000.00,Білик Наталія Петрівна,,фізична особа
УГП,"Івано-Франківська область, Івано-Франківськ, вулиця Незалежності, 6",75,2017-09-04,176,Поштові послуги та поширення друкованих матеріалів,Поштові послуги та поширення друкованих матеріалів,250817,Івано-Франківська обласна організація,40026836,Івано-Франківська область,Оплата за доставку реклами згiдно рахунку N 77 вiд 31.08.2017р. у т.ч. ПДВ - 20 % 570.00 грн.,26005052517967,current,3420.00,Івано-Франківська дирекція АТ Укрпошта,22178632,юридична особа
УГП,"Івано-Франківська область, Івано-Франківськ, вулиця Січових стрільців, 15",70,2017-09-04,94O0D1P75Y,Банківські послуги,Інші витрати,250816,Івано-Франківська обласна організація,40026836,Івано-Франківська область,"Комiсiя за виконання платежiв в нацiональнiй валютi, згiдно з вiдкритою офертою банку N б/н вiд 29.09.2015 та тарифiв банку, без ПДВ.",26005052517967,current,3.00,"ПАТ КБ ""Приватбанк""",14360570,юридична особа
УГП,"Івано-Франківська область, Івано-Франківськ, вулиця Січових стрільців, 15",70,2017-09-04,94O0D1P75X,Банківські послуги,Інші витрати,250815,Івано-Франківська обласна організація,40026836,Івано-Франківська область,"Комiсiя за викон. платежу 176 вiд 04.09.2017, 3420.00 в нац. валютi в пiсляоперацiйний час, згiдно з вiдкритою офертою банку № б/н вiд 29.09.2015 без ПДВ",26005052517967,current,6.84,"ПАТ КБ ""Приватбанк""",14360570,юридична особа
УГП,"Львівська область, Львів, вулиця Сербська, 1",70,2017-09-04,39514,Банківські послуги,Інші витрати,250390,Центральний офіс,39481037,Україна,"Сплата комісії за переказ коштів з поточного рахунку в операційний час за межі Банку за допомогою системи Клієнт-Банк по документу №299, від 04.09.2017. Без ПДВ",2600671275,current,5.00,"АТ ""АКБ ""Львів""",09801546,юридична особа
УГП,"Львівська область, Львів, вулиця Сербська, 1",70,2017-09-04,52320,Банківські послуги,Інші витрати,250389,Центральний офіс,39481037,Україна,"Сплата комісії за переказ коштів з поточного рахунку в операційний час за межі Банку за допомогою системи Клієнт-Банк по документу №300, від 04.09.2017. Без ПДВ",2600671275,current,5.00,"АТ ""АКБ ""Львів""",09801546,юридична особа
УГП,"Львівська область, Львів, вулиця Сербська, 1",70,2017-09-04,52355,Банківські послуги,Інші витрати,250388,Центральний офіс,39481037,Україна,"Сплата комісії за переказ коштів з поточного рахунку в операційний час за межі Банку за допомогою системи Клієнт-Банк по документу №301, від 04.09.2017. Без ПДВ",2600671275,current,5.00,"АТ ""АКБ ""Львів""",09801546,юридична особа
УГП,"Львівська область, Львів, вулиця Сербська, 1",70,2017-09-04,52359,Банківські послуги,Інші витрати,250387,Центральний офіс,39481037,Україна,"Сплата комісії за переказ коштів з поточного рахунку в операційний час за межі Банку за допомогою системи Клієнт-Банк по документу №302, від 04.09.2017. Без ПДВ",2600671275,current,5.00,"АТ ""АКБ ""Львів""",09801546,юридична особа
УГП,"Львівська область, Львів, вулиця Сербська, 1",70,2017-09-04,54318,Банківські послуги,Інші витрати,250386,Центральний офіс,39481037,Україна,"Сплата комісії за переказ коштів з поточного рахунку в операційний час за межі Банку за допомогою системи Клієнт-Банк по документу №303, від 04.09.2017. Без ПДВ",2600671275,current,5.00,"АТ ""АКБ ""Львів""",09801546,юридична особа
УГП,"Львівська область, Львів, вулиця Сербська, 1",70,2017-09-04,52576,Банківські послуги,Інші витрати,250385,Центральний офіс,39481037,Україна,"Сплата комісії за зарахуванню коштів на рахунки фізичних осіб підприємства по зарплатному проекту по документу №52575, від 04.09.2017. Без ПДВ.",2600671275,current,39.65,"АТ ""АКБ ""Львів""",09801546,юридична особа
УГП,"Львівська область, Львів, вулиця Стрийська, 35",62,2017-09-04,302,Сплата ЄСВ,Податкові платежі,250384,Центральний офіс,39481037,Україна,"*;101;39481037; 22,0% нарах. єдиного внеску на зароб.плату за 2 половину серпня 2017р. - 1805,99 грн.;;;",2600671275,current,1805.99,Залізнична ОДПІ ГУ ДФС у Львівській області,39554382,юридична особа
УГП,"Львівська область, Львів, вулиця Конотопська, 6/8",63,2017-09-04,301,Податок на доходи,Податкові платежі,250383,Центральний офіс,39481037,Україна,"*;101;39481037; податок на доходи фізичних осіб із зароб.плати за 2 половину серпня 2017р.,18% - 1477,63 грн.;;;",2600671275,current,1477.63,УДКСУ у Франківському районі м. Львова,37965138,юридична особа
УГП,"Львівська область, Львів, вулиця Конотопська, 6/8",61,2017-09-04,300,Військовий збір,Податкові платежі,250382,Центральний офіс,39481037,Україна,"*;101;39481037; утриманий військовий збір із заробітної плати за 2 половину серпня 2017р.,1,5% - 123.13 грн.;;;",2600671275,current,123.13,УДКСУ у Франківському районі м. Львова,37965138,юридична особа
УГП,"Львівська область, Львів",84,2017-09-04,52579,"Заробітна плата, премії","Заробітна плата, лікарняні, вагітності, відрядження, компенсації",250019,Центральний офіс,39481037,Україна,Заробітна плата за 2 половину серпня 2017 року,2600671275,current,1368.50,Герич Ганна Вікторівна,,фізична особа
УГП,"Львівська область, Львів",84,2017-09-04,52578,"Заробітна плата, премії","Заробітна плата, лікарняні, вагітності, відрядження, компенсації",250018,Центральний офіс,39481037,Україна,Заробітна плата за 2 половину серпня 2017 року,2600671275,current,2254.00,Лозинський Роман Михайлович,,фізична особа
УГП,"Львівська область, Львів",84,2017-09-04,52577,"Заробітна плата, премії","Заробітна плата, лікарняні, вагітності, відрядження, компенсації",250017,Центральний офіс,39481037,Україна,Заробітна плата за 2 половину серпня 2017 року,2600671275,current,2985.83,Панкевич Богдан Романович,,фізична особа
